Workbook

Sheet OLD PAPI_24- 27 (Delib. 246) (hidden)
A1: ID Ação | B1: Ação iniciou no PA/PI anterior? | C1: Se sim, id da ação anterior | D1: Ano previsto para início | E1: Tipo de ação | F1: É ou será empreendimento FEHIDRO? | G1: Ação requer recursos financeiros? | H1: SubPDC | I1: Prioridade do SubPDC | J1: Ação | K1: Meta | L1: % Execução da meta do quadriênio | M1: Segmento do executor | N1: Área de abrangência | O1: Nome da área de abrangência | P1: Recurso financeiro estimado no ano (R$) - Cobrança Estadual | Q1: Recurso financeiro estimado no ano (R$) - CFURH | R1: Recurso financeiro estimado no ano (R$) - Cobrança Federal | S1: Recurso financeiro estimado no ano (R$) - Outras | T1: Especificar Fonte - "Outras" | U1: Recurso financeiro estimado no ano (R$) | V1: Recurso financeiro disponibilizado no ano (R$) | W1: Recurso financeiro executado no ano (R$) | X1: Justificativa sobre execução física e financeira
A2: SID012024 | B2: Não | D2: 2024 | F2: Sim | H2: 3.1 - Efluentes | I2: Não prioritário | J2: Efetuar estudos de detalhe sobre a disponibilidade hídrica superficial e subterrânea (AG.11) | K2: MG.4 - Realizar ao menos 01 estudo que subsidie o planejamento e a gestão de recursos hídricos na UGRHi 18 | N2: Sub-bacia | O2: Sub-bacia crítica conforme classe de vazão de referência apontadas no Relatório de Situação | U2: =IF(SUM(PAPI20_22_23[[#This Row],[Recurso financeiro estimado no ano (R$) - Cobrança Estadual]:[Recurso financeiro estimado no ano (R$) - Outras]]) >0,SUM(PAPI20_22_23[[#This Row],[Recurso financeiro estimado no ano (R$) - Cobrança Estadual]:[Recurso financeiro estimado no ano (R$) - Outras]]),"") -> 
A3: SID012025 | D3: 2024 | J3: Manter o cadastro atualizado na bacia hidrográfica SJD (AG.13) | K3: MG.4 - Realizar ao menos 01 estudo para acompanhamento e adequação da cobrança pelo uso dos recursos hídricos | M3: Estado | N3: UGRHi | O3: UGRHi 18 | P3: 170000 | U3: =IF(SUM(PAPI20_22_23[[#This Row],[Recurso financeiro estimado no ano (R$) - Cobrança Estadual]:[Recurso financeiro estimado no ano (R$) - Outras]]) >0,SUM(PAPI20_22_23[[#This Row],[Recurso financeiro estimado no ano (R$) - Cobrança Estadual]:[Recurso financeiro estimado no ano (R$) - Outras]]),"") -> 170000
A4: SID012024 | J4: Execução de obras de sistemas de esgotamento sanitário, bem como de tratamento de efluentes provenientes de ETE (AI.3, 4, 5 e 6) | K4: MI. 2 e 3 - Efetuar melhorias nos sistemas de tratamento de esgoto em ao menos 02 municípios | M4: Município | N4: Município | O4: Municípios da UGRHi 18 que apresentem proporção de redução da carga orgânica poluidora domestica ≤ 80%. | P4: 260000 | U4: =IF(SUM(PAPI20_22_23[[#This Row],[Recurso financeiro estimado no ano (R$) - Cobrança Estadual]:[Recurso financeiro estimado no ano (R$) - Outras]]) >0,SUM(PAPI20_22_23[[#This Row],[Recurso financeiro estimado no ano (R$) - Cobrança Estadual]:[Recurso financeiro estimado no ano (R$) - Outras]]),"") -> 260000
A5: SID042022 | J5: Execução de obras e projetos (AI 8 e 9) nos casos em que haja comprometimento dos recursos hídricos | K5: MI.4 - Efetuar melhorias nos sistemas de aterros sanitários em ao menos 02 municípios | M5: Município | N5: Município | O5: Municípios com sistema de tratamento e coleta de resíduos sólidos ineficientes, conforme consta no Rel. Situação. | P5: 250000 | U5: =IF(SUM(PAPI20_22_23[[#This Row],[Recurso financeiro estimado no ano (R$) - Cobrança Estadual]:[Recurso financeiro estimado no ano (R$) - Outras]]) >0,SUM(PAPI20_22_23[[#This Row],[Recurso financeiro estimado no ano (R$) - Cobrança Estadual]:[Recurso financeiro estimado no ano (R$) - Outras]]),"") -> 250000
A6: SID052022 | J6: Execução de obras ou projetos que controle a erosão do solo ou assoreamento dos corpos d’água, em áreas urbanas ou rurais (AI. 14, 15 e 16) | K6: MI. 6 e MI. 7 - Aprimorar sistemas de conservação do solo e controle de erosão em ao menos 03 municípios | M6: Município | N6: Município | O6: Municípios com Plano de Drenagem ou Plano Diretor de Erosão elaborado | Q6: 288866.7 | U6: =IF(SUM(PAPI20_22_23[[#This Row],[Recurso financeiro estimado no ano (R$) - Cobrança Estadual]:[Recurso financeiro estimado no ano (R$) - Outras]]) >0,SUM(PAPI20_22_23[[#This Row],[Recurso financeiro estimado no ano (R$) - Cobrança Estadual]:[Recurso financeiro estimado no ano (R$) - Outras]]),"") -> 288866.7
A7: SID062022 | J7: Implementação das açoes indicadas no Plano de Saneamento (AI.11 e 12) (troca de hidrômetros, manutenção de rede, instalação de válvulas redutoras de pressão, entre outros) | K7: MI.5 - Reduzir perdas em sistemas de abastecimento de água em ao menos 02 municípios | M7: Município | N7: Município | O7: Ilha Solteira, Santa Fé do Sul, Suzanápolis, São João de Iracema e Neves Paulista | P7: 170000 | U7: =IF(SUM(PAPI20_22_23[[#This Row],[Recurso financeiro estimado no ano (R$) - Cobrança Estadual]:[Recurso financeiro estimado no ano (R$) - Outras]]) >0,SUM(PAPI20_22_23[[#This Row],[Recurso financeiro estimado no ano (R$) - Cobrança Estadual]:[Recurso financeiro estimado no ano (R$) - Outras]]),"") -> 170000
A8: SID072022 | J8: Execução de obras ou projetos de galerias de águas pluviais e canalização de curso d'água em área urbana e periurbana (AI.17, AI. 21, 22 e 23 ) | K8: MI. 7 e MI. 9 - Realizar melhorias nos sistemas de drenagem em ao menos 02 municípios | M8: Município | N8: Município | O8: Obras indicadas no Plano/Estudo de Drenagem no Município e para Projetos com necessidades de readequação/ampliação | Q8: 200000 | U8: =IF(SUM(PAPI20_22_23[[#This Row],[Recurso financeiro estimado no ano (R$) - Cobrança Estadual]:[Recurso financeiro estimado no ano (R$) - Outras]]) >0,SUM(PAPI20_22_23[[#This Row],[Recurso financeiro estimado no ano (R$) - Cobrança Estadual]:[Recurso financeiro estimado no ano (R$) - Outras]]),"") -> 200000
A9: SID082022 | J9: Orientação aos produtores rurais quanto à importância da outorga e treinamento/capacitação sobre os procedimentos de outorga e licenciamento ambiental (AG.25) | K9: MG.9. Realizar ao menos 1 curso de capacitação técnica relacionada ao planejamento e gestão de recursos hídricos | N9: UGRHi | O9: UGRHi 18 | P9: 150000 | U9: =IF(SUM(PAPI20_22_23[[#This Row],[Recurso financeiro estimado no ano (R$) - Cobrança Estadual]:[Recurso financeiro estimado no ano (R$) - Outras]]) >0,SUM(PAPI20_22_23[[#This Row],[Recurso financeiro estimado no ano (R$) - Cobrança Estadual]:[Recurso financeiro estimado no ano (R$) - Outras]]),"") -> 150000 | V9: 150000 | W9: 0 | X9: empreendimento não iniciado - emitiu o contrato
A10: SID012023 | J10: Realizar estudo/diagnóstico ambiental das nascentes, por sub-bacia, na UGRHI | K10: Aumentar as informações afim de subsidiar o planejamento e a gestão dos recursos hídricos na UGRHI | M10: DIVERSOS | N10: UGRHi | O10: UGRHi 18 | P10: 200197.43 | U10: =IF(SUM(PAPI20_22_23[[#This Row],[Recurso financeiro estimado no ano (R$) - Cobrança Estadual]:[Recurso financeiro estimado no ano (R$) - Outras]]) >0,SUM(PAPI20_22_23[[#This Row],[Recurso financeiro estimado no ano (R$) - Cobrança Estadual]:[Recurso financeiro estimado no ano (R$) - Outras]]),"") -> 200197.43
A11: SID022023 | J11: Elaborar mapa de feições erosivas da UGRHI | K11: Aumentar as informações afim de subsidiar o planejamento e a gestão dos recursos hídricos na UGRHI | M11: DIVERSOS | N11: UGRHi | O11: UGRHi 18 | Q11: 280000 | U11: =IF(SUM(PAPI20_22_23[[#This Row],[Recurso financeiro estimado no ano (R$) - Cobrança Estadual]:[Recurso financeiro estimado no ano (R$) - Outras]]) >0,SUM(PAPI20_22_23[[#This Row],[Recurso financeiro estimado no ano (R$) - Cobrança Estadual]:[Recurso financeiro estimado no ano (R$) - Outras]]),"") -> 280000
A12: SID032022 | J12: Elaboração do Plano diretor de controle de perdas | K12: Aumentar as informações afim de subsidiar o planejamento e a gestão dos recursos hídricos na UGRHI | M12: Município | N12: Município | O12: Ilha Solteira, Neves Paulista, São João de Iracema e Santa Fé do Sul. | P12: 170000 | U12: =IF(SUM(PAPI20_22_23[[#This Row],[Recurso financeiro estimado no ano (R$) - Cobrança Estadual]:[Recurso financeiro estimado no ano (R$) - Outras]]) >0,SUM(PAPI20_22_23[[#This Row],[Recurso financeiro estimado no ano (R$) - Cobrança Estadual]:[Recurso financeiro estimado no ano (R$) - Outras]]),"") -> 170000
A13: SID042023 | J13: Elaborar estudos para o controle de processos erosivos e projetos (básicos e/ou executivos), serviços ou obras para prevenção, prioritariamente em bacias de abastecimento, nascentes e áreas de recarga (troca de hidrômetros, manutenção de rede, instalação de válvulas redutoras de pressão, entre outros) | K13: Prevenir e controlar processos de erosão e assoreamento, visando a melhoria ou recuperação dos corpos d’água | M13: Município | N13: Município | O13: Floreal, General Salgado, Ilha Solteira, Jales, Monte Aprazível, Neves Paulista, Nhandeara, Palmeira d´oeste, Santa Fé do Sul, Sebastianópolis do Sul, Cosmorama, Monte Aprazível, Poloni, Santa Salete, Santana da Ponte Pensa, São Francisco, Tanabi, Três Fronteiras e Votuporanga | P13: 400000 | Q13: 300000 | U13: =IF(SUM(PAPI20_22_23[[#This Row],[Recurso financeiro estimado no ano (R$) - Cobrança Estadual]:[Recurso financeiro estimado no ano (R$) - Outras]]) >0,SUM(PAPI20_22_23[[#This Row],[Recurso financeiro estimado no ano (R$) - Cobrança Estadual]:[Recurso financeiro estimado no ano (R$) - Outras]]),"") -> 700000
A14: SID052023 | J14: Elaborar Projetos (básicos e/ou executivos), obras ou serviços em sistemas de abastecimento, visando controle e redução de perdas de água | K14: Alcance de uma média de 25% de perdas globais nos municípios da Bacia | M14: Município | N14: Município | O14: Ilha Solteira, Suzanápolis, Santa Fé do Sul, Neves Paulista e São João de Iracema. | P14: 300000 | U14: =IF(SUM(PAPI20_22_23[[#This Row],[Recurso financeiro estimado no ano (R$) - Cobrança Estadual]:[Recurso financeiro estimado no ano (R$) - Outras]]) >0,SUM(PAPI20_22_23[[#This Row],[Recurso financeiro estimado no ano (R$) - Cobrança Estadual]:[Recurso financeiro estimado no ano (R$) - Outras]]),"") -> 300000
A15: SID092023 | J15: Aquisição de equipamentos para operacionalização de sistemas de alerta, radares meteorológicos ou redes telemétricas integrados a sistemas de suporte à decisão; divulgação de informações e apoio à defesa civil (AG. 24) | K15: MG. 8 - Estruturar 01 Sala de Situação visando o Monitoramento de eventos extremos e sistemas de suporte a decisão | N15: Sub-bacia | O15: UGRHi 18 | P15: 400000 | U15: =IF(SUM(PAPI20_22_23[[#This Row],[Recurso financeiro estimado no ano (R$) - Cobrança Estadual]:[Recurso financeiro estimado no ano (R$) - Outras]]) >0,SUM(PAPI20_22_23[[#This Row],[Recurso financeiro estimado no ano (R$) - Cobrança Estadual]:[Recurso financeiro estimado no ano (R$) - Outras]]),"") -> 400000 | V15: 851322.1 | W15: 0 | X15: adiantamos a indicação da ação prevista para 2023 - empreendimento cancelado
A16: SID07023 | J16: Elaborar projetos (básicos e/ou executivos), serviços, obras em municípios com sistema de coleta e disposição final de resíduos sólidos ineficientes e/ou inadequadas; e implantar pontos de entrega voluntária (PEV), e programas de coleta seletiva | K16: Aumentar a cobertura da coleta de resíduos sólidos em áreas urbanas e rurais dos municípios | M16: Município | N16: Município | O16: Município | P16: 308323.15 | U16: =IF(SUM(PAPI20_22_23[[#This Row],[Recurso financeiro estimado no ano (R$) - Cobrança Estadual]:[Recurso financeiro estimado no ano (R$) - Outras]]) >0,SUM(PAPI20_22_23[[#This Row],[Recurso financeiro estimado no ano (R$) - Cobrança Estadual]:[Recurso financeiro estimado no ano (R$) - Outras]]),"") -> 308323.15
A17: SID08023 | J17: Elaborar projetos (básicos e/ou executivos), executar obras ou serviços em sistemas de abastecimento, visando propor soluções alternativas e a ampliação da rede de distribuição, das demais estruturas de apoio ao abastecimento | K17: Aproveitamento dos recursos hídricos e segurança hídrica | M17: Município | N17: Município | O17: Município | P17: 179324.92 | U17: =IF(SUM(PAPI20_22_23[[#This Row],[Recurso financeiro estimado no ano (R$) - Cobrança Estadual]:[Recurso financeiro estimado no ano (R$) - Outras]]) >0,SUM(PAPI20_22_23[[#This Row],[Recurso financeiro estimado no ano (R$) - Cobrança Estadual]:[Recurso financeiro estimado no ano (R$) - Outras]]),"") -> 179324.92
A18: SID06023 | J18: Elaborar projetos (básicos e/ou executivos), serviços ou obras para contenção de inundações, alagamentos, inclusive por técnicas de infiltração e armazenamento; e regularizações de descargas e dispositivos de lançamento de drenagem | K18: Contenção de inundações, alagamentos e regularizações de descargas na UGRHI | M18: Município | N18: Município | O18: Município | Q18: 1113141.65 | U18: =IF(SUM(PAPI20_22_23[[#This Row],[Recurso financeiro estimado no ano (R$) - Cobrança Estadual]:[Recurso financeiro estimado no ano (R$) - Outras]]) >0,SUM(PAPI20_22_23[[#This Row],[Recurso financeiro estimado no ano (R$) - Cobrança Estadual]:[Recurso financeiro estimado no ano (R$) - Outras]]),"") -> 1113141.65
U19: =IF(SUM(PAPI20_22_23[[#This Row],[Recurso financeiro estimado no ano (R$) - Cobrança Estadual]:[Recurso financeiro estimado no ano (R$) - Outras]]) >0,SUM(PAPI20_22_23[[#This Row],[Recurso financeiro estimado no ano (R$) - Cobrança Estadual]:[Recurso financeiro estimado no ano (R$) - Outras]]),"") -> 
U20: =IF(SUM(PAPI20_22_23[[#This Row],[Recurso financeiro estimado no ano (R$) - Cobrança Estadual]:[Recurso financeiro estimado no ano (R$) - Outras]]) >0,SUM(PAPI20_22_23[[#This Row],[Recurso financeiro estimado no ano (R$) - Cobrança Estadual]:[Recurso financeiro estimado no ano (R$) - Outras]]),"") -> 
U21: =IF(SUM(PAPI20_22_23[[#This Row],[Recurso financeiro estimado no ano (R$) - Cobrança Estadual]:[Recurso financeiro estimado no ano (R$) - Outras]]) >0,SUM(PAPI20_22_23[[#This Row],[Recurso financeiro estimado no ano (R$) - Cobrança Estadual]:[Recurso financeiro estimado no ano (R$) - Outras]]),"") -> 
U22: =IF(SUM(PAPI20_22_23[[#This Row],[Recurso financeiro estimado no ano (R$) - Cobrança Estadual]:[Recurso financeiro estimado no ano (R$) - Outras]]) >0,SUM(PAPI20_22_23[[#This Row],[Recurso financeiro estimado no ano (R$) - Cobrança Estadual]:[Recurso financeiro estimado no ano (R$) - Outras]]),"") -> 
U23: =IF(SUM(PAPI20_22_23[[#This Row],[Recurso financeiro estimado no ano (R$) - Cobrança Estadual]:[Recurso financeiro estimado no ano (R$) - Outras]]) >0,SUM(PAPI20_22_23[[#This Row],[Recurso financeiro estimado no ano (R$) - Cobrança Estadual]:[Recurso financeiro estimado no ano (R$) - Outras]]),"") -> 
U24: =IF(SUM(PAPI20_22_23[[#This Row],[Recurso financeiro estimado no ano (R$) - Cobrança Estadual]:[Recurso financeiro estimado no ano (R$) - Outras]]) >0,SUM(PAPI20_22_23[[#This Row],[Recurso financeiro estimado no ano (R$) - Cobrança Estadual]:[Recurso financeiro estimado no ano (R$) - Outras]]),"") -> 
U25: =IF(SUM(PAPI20_22_23[[#This Row],[Recurso financeiro estimado no ano (R$) - Cobrança Estadual]:[Recurso financeiro estimado no ano (R$) - Outras]]) >0,SUM(PAPI20_22_23[[#This Row],[Recurso financeiro estimado no ano (R$) - Cobrança Estadual]:[Recurso financeiro estimado no ano (R$) - Outras]]),"") -> 
U26: =IF(SUM(PAPI20_22_23[[#This Row],[Recurso financeiro estimado no ano (R$) - Cobrança Estadual]:[Recurso financeiro estimado no ano (R$) - Outras]]) >0,SUM(PAPI20_22_23[[#This Row],[Recurso financeiro estimado no ano (R$) - Cobrança Estadual]:[Recurso financeiro estimado no ano (R$) - Outras]]),"") -> 
U27: =IF(SUM(PAPI20_22_23[[#This Row],[Recurso financeiro estimado no ano (R$) - Cobrança Estadual]:[Recurso financeiro estimado no ano (R$) - Outras]]) >0,SUM(PAPI20_22_23[[#This Row],[Recurso financeiro estimado no ano (R$) - Cobrança Estadual]:[Recurso financeiro estimado no ano (R$) - Outras]]),"") -> 
U28: =IF(SUM(PAPI20_22_23[[#This Row],[Recurso financeiro estimado no ano (R$) - Cobrança Estadual]:[Recurso financeiro estimado no ano (R$) - Outras]]) >0,SUM(PAPI20_22_23[[#This Row],[Recurso financeiro estimado no ano (R$) - Cobrança Estadual]:[Recurso financeiro estimado no ano (R$) - Outras]]),"") -> 
U29: =IF(SUM(PAPI20_22_23[[#This Row],[Recurso financeiro estimado no ano (R$) - Cobrança Estadual]:[Recurso financeiro estimado no ano (R$) - Outras]]) >0,SUM(PAPI20_22_23[[#This Row],[Recurso financeiro estimado no ano (R$) - Cobrança Estadual]:[Recurso financeiro estimado no ano (R$) - Outras]]),"") -> 
U30: =IF(SUM(PAPI20_22_23[[#This Row],[Recurso financeiro estimado no ano (R$) - Cobrança Estadual]:[Recurso financeiro estimado no ano (R$) - Outras]]) >0,SUM(PAPI20_22_23[[#This Row],[Recurso financeiro estimado no ano (R$) - Cobrança Estadual]:[Recurso financeiro estimado no ano (R$) - Outras]]),"") -> 
U31: =IF(SUM(PAPI20_22_23[[#This Row],[Recurso financeiro estimado no ano (R$) - Cobrança Estadual]:[Recurso financeiro estimado no ano (R$) - Outras]]) >0,SUM(PAPI20_22_23[[#This Row],[Recurso financeiro estimado no ano (R$) - Cobrança Estadual]:[Recurso financeiro estimado no ano (R$) - Outras]]),"") -> 
U32: =IF(SUM(PAPI20_22_23[[#This Row],[Recurso financeiro estimado no ano (R$) - Cobrança Estadual]:[Recurso financeiro estimado no ano (R$) - Outras]]) >0,SUM(PAPI20_22_23[[#This Row],[Recurso financeiro estimado no ano (R$) - Cobrança Estadual]:[Recurso financeiro estimado no ano (R$) - Outras]]),"") -> 
U33: =IF(SUM(PAPI20_22_23[[#This Row],[Recurso financeiro estimado no ano (R$) - Cobrança Estadual]:[Recurso financeiro estimado no ano (R$) - Outras]]) >0,SUM(PAPI20_22_23[[#This Row],[Recurso financeiro estimado no ano (R$) - Cobrança Estadual]:[Recurso financeiro estimado no ano (R$) - Outras]]),"") -> 
U34: =IF(SUM(PAPI20_22_23[[#This Row],[Recurso financeiro estimado no ano (R$) - Cobrança Estadual]:[Recurso financeiro estimado no ano (R$) - Outras]]) >0,SUM(PAPI20_22_23[[#This Row],[Recurso financeiro estimado no ano (R$) - Cobrança Estadual]:[Recurso financeiro estimado no ano (R$) - Outras]]),"") -> 
U35: =IF(SUM(PAPI20_22_23[[#This Row],[Recurso financeiro estimado no ano (R$) - Cobrança Estadual]:[Recurso financeiro estimado no ano (R$) - Outras]]) >0,SUM(PAPI20_22_23[[#This Row],[Recurso financeiro estimado no ano (R$) - Cobrança Estadual]:[Recurso financeiro estimado no ano (R$) - Outras]]),"") -> 
U36: =IF(SUM(PAPI20_22_23[[#This Row],[Recurso financeiro estimado no ano (R$) - Cobrança Estadual]:[Recurso financeiro estimado no ano (R$) - Outras]]) >0,SUM(PAPI20_22_23[[#This Row],[Recurso financeiro estimado no ano (R$) - Cobrança Estadual]:[Recurso financeiro estimado no ano (R$) - Outras]]),"") -> 
U37: =IF(SUM(PAPI20_22_23[[#This Row],[Recurso financeiro estimado no ano (R$) - Cobrança Estadual]:[Recurso financeiro estimado no ano (R$) - Outras]]) >0,SUM(PAPI20_22_23[[#This Row],[Recurso financeiro estimado no ano (R$) - Cobrança Estadual]:[Recurso financeiro estimado no ano (R$) - Outras]]),"") -> 
U38: =IF(SUM(PAPI20_22_23[[#This Row],[Recurso financeiro estimado no ano (R$) - Cobrança Estadual]:[Recurso financeiro estimado no ano (R$) - Outras]]) >0,SUM(PAPI20_22_23[[#This Row],[Recurso financeiro estimado no ano (R$) - Cobrança Estadual]:[Recurso financeiro estimado no ano (R$) - Outras]]),"") -> 
U39: =IF(SUM(PAPI20_22_23[[#This Row],[Recurso financeiro estimado no ano (R$) - Cobrança Estadual]:[Recurso financeiro estimado no ano (R$) - Outras]]) >0,SUM(PAPI20_22_23[[#This Row],[Recurso financeiro estimado no ano (R$) - Cobrança Estadual]:[Recurso financeiro estimado no ano (R$) - Outras]]),"") -> 
U40: =IF(SUM(PAPI20_22_23[[#This Row],[Recurso financeiro estimado no ano (R$) - Cobrança Estadual]:[Recurso financeiro estimado no ano (R$) - Outras]]) >0,SUM(PAPI20_22_23[[#This Row],[Recurso financeiro estimado no ano (R$) - Cobrança Estadual]:[Recurso financeiro estimado no ano (R$) - Outras]]),"") -> 
U41: =IF(SUM(PAPI20_22_23[[#This Row],[Recurso financeiro estimado no ano (R$) - Cobrança Estadual]:[Recurso financeiro estimado no ano (R$) - Outras]]) >0,SUM(PAPI20_22_23[[#This Row],[Recurso financeiro estimado no ano (R$) - Cobrança Estadual]:[Recurso financeiro estimado no ano (R$) - Outras]]),"") -> 
U42: =IF(SUM(PAPI20_22_23[[#This Row],[Recurso financeiro estimado no ano (R$) - Cobrança Estadual]:[Recurso financeiro estimado no ano (R$) - Outras]]) >0,SUM(PAPI20_22_23[[#This Row],[Recurso financeiro estimado no ano (R$) - Cobrança Estadual]:[Recurso financeiro estimado no ano (R$) - Outras]]),"") -> 
U43: =IF(SUM(PAPI20_22_23[[#This Row],[Recurso financeiro estimado no ano (R$) - Cobrança Estadual]:[Recurso financeiro estimado no ano (R$) - Outras]]) >0,SUM(PAPI20_22_23[[#This Row],[Recurso financeiro estimado no ano (R$) - Cobrança Estadual]:[Recurso financeiro estimado no ano (R$) - Outras]]),"") -> 
U44: =IF(SUM(PAPI20_22_23[[#This Row],[Recurso financeiro estimado no ano (R$) - Cobrança Estadual]:[Recurso financeiro estimado no ano (R$) - Outras]]) >0,SUM(PAPI20_22_23[[#This Row],[Recurso financeiro estimado no ano (R$) - Cobrança Estadual]:[Recurso financeiro estimado no ano (R$) - Outras]]),"") -> 
U45: =IF(SUM(PAPI20_22_23[[#This Row],[Recurso financeiro estimado no ano (R$) - Cobrança Estadual]:[Recurso financeiro estimado no ano (R$) - Outras]]) >0,SUM(PAPI20_22_23[[#This Row],[Recurso financeiro estimado no ano (R$) - Cobrança Estadual]:[Recurso financeiro estimado no ano (R$) - Outras]]),"") -> 
U46: =IF(SUM(PAPI20_22_23[[#This Row],[Recurso financeiro estimado no ano (R$) - Cobrança Estadual]:[Recurso financeiro estimado no ano (R$) - Outras]]) >0,SUM(PAPI20_22_23[[#This Row],[Recurso financeiro estimado no ano (R$) - Cobrança Estadual]:[Recurso financeiro estimado no ano (R$) - Outras]]),"") -> 
U47: =IF(SUM(PAPI20_22_23[[#This Row],[Recurso financeiro estimado no ano (R$) - Cobrança Estadual]:[Recurso financeiro estimado no ano (R$) - Outras]]) >0,SUM(PAPI20_22_23[[#This Row],[Recurso financeiro estimado no ano (R$) - Cobrança Estadual]:[Recurso financeiro estimado no ano (R$) - Outras]]),"") -> 
U48: =IF(SUM(PAPI20_22_23[[#This Row],[Recurso financeiro estimado no ano (R$) - Cobrança Estadual]:[Recurso financeiro estimado no ano (R$) - Outras]]) >0,SUM(PAPI20_22_23[[#This Row],[Recurso financeiro estimado no ano (R$) - Cobrança Estadual]:[Recurso financeiro estimado no ano (R$) - Outras]]),"") -> 
U49: =IF(SUM(PAPI20_22_23[[#This Row],[Recurso financeiro estimado no ano (R$) - Cobrança Estadual]:[Recurso financeiro estimado no ano (R$) - Outras]]) >0,SUM(PAPI20_22_23[[#This Row],[Recurso financeiro estimado no ano (R$) - Cobrança Estadual]:[Recurso financeiro estimado no ano (R$) - Outras]]),"") -> 
U50: =IF(SUM(PAPI20_22_23[[#This Row],[Recurso financeiro estimado no ano (R$) - Cobrança Estadual]:[Recurso financeiro estimado no ano (R$) - Outras]]) >0,SUM(PAPI20_22_23[[#This Row],[Recurso financeiro estimado no ano (R$) - Cobrança Estadual]:[Recurso financeiro estimado no ano (R$) - Outras]]),"") -> 

Sheet Identificação das ações 24-27
A1: ID Ação | B1: Descrição da ação | C1: SubPDC | D1: Prioridade do PDC | E1: É (ou será) empreendimento FEHIDRO? | F1: Requer recursos financeiros? | G1: Quantidade de fontes de recursos | H1: Segmento do executor | I1: Área de abrangência | J1: Detalhamento da área de abrangência | K1: Início estimado da ação | L1: Fim estimado | M1: Observação Geral O cronograma de ínico das acoes foi estabelecido considerando as prioridades, os limites financeiros anuais previstos para indicacao de projetos FEHIDRO e habilitação tomadores / executores participantes do Processo de Indicação de Emp
A2: SM-01-2027 | B2: T.1.1.1. Elaboração de mapa de uso e ocupação do solo com foco na conservação, proteção, recuperação ou uso dos recursos hídricos para os município de São Bento do Sapucaí. | C2: 1.1 - Legislação | D2: PDC 1 e 2 | E2: Sim | F2: Sim | G2: 1 | H2: Sociedade Civil | I2: Município | J2: Município São Bento do Sapucaí | K2: 2024-05-01 | L2: 2025-12-01
A3: SM-02-2027 | B3: T.1.1.1. Elaboração de mapa de uso e ocupação do solo com foco na conservação, proteção, recuperação ou uso dos recursos hídricos para os município de Santo Antônio do Pinhal. | C3: 1.1 - Legislação | D3: PDC 1 e 2 | E3: Sim | F3: Sim | G3: 1 | H3: Sociedade Civil | I3: Município | J3: Município Santo Antonio do Pinhal | K3: 2024-05-01 | L3: 2025-12-01
A4: SM-03-2027 | B4: T.1.1.1. Elaboração de mapa de uso e ocupação do solo com foco na conservação, proteção, recuperação ou uso dos recursos hídricos para os município de Campos Jordao | C4: 1.1 - Legislação | D4: PDC 1 e 2 | E4: Sim | F4: Sim | G4: 1 | H4: Sociedade Civil | I4: Município | J4: Município Santo Antonio do Pinhal | K4: 2024-05-01 | L4: 2025-12-01
A5: SM-04-2027 | B5: T.1.2.2 . Diagnóstico qualitativo e/ou quantitativo de recursos hídricos superficiais e/ou subterrâneos na sub-bacia Sapucaí Guaçu. | C5: 1.2 - Planejamento | D5: PDC 1 e 2 | E5: Sim | F5: Sim | G5: 1 | H5: Sociedade Civil | I5: Sub-bacia | J5: Sub-bacia do Rio Sapucaí Guaçu | K5: 2024-05-01 | L5: 2025-12-01
A6: SM-05-2026 | B6: T.1.2.6 . Estudo, levantamento ou diagnóstico de saneamento básico e de abastecimento de água para os município de Campos de Jordao em comunidades afastado do centro urbano.(a definir: Matadouro,Melos,Campista,Descansópolis, Paque Ferradura ) | C6: 1.2 - Planejamento | D6: PDC 1 e 2 | E6: Sim | F6: Sim | G6: 1 | H6: Sociedade Civil | I6: Área rural | J6: Município Santo Antonio do Pinhal | K6: 2024-09-01 | L6: 2025-12-01
A7: SM-06-2025 | B7: T.1.2.6 . Estudo, levantamento ou diagnóstico de saneamento básico e de abastecimento de água para os município de Santo Antônio do Pinhal com foco nas comunidades da área rural. | C7: 1.2 - Planejamento | D7: PDC 1 e 2 | E7: Sim | F7: Sim | G7: 1 | H7: Sociedade Civil | I7: Área rural | J7: Município Santo Antonio do Pinhal | K7: 2024-09-01 | L7: 2025-12-01
A8: SM-07-2024 | B8: T.1.2.6 . Estudo, levantamento ou diagnóstico de saneamento básico e de abastecimento de água para os município de São Bento do Sapucaí com foco nas comunidades da área rural. | C8: 1.2 - Planejamento | D8: PDC 1 e 2 | E8: Sim | F8: Sim | G8: 1 | H8: Sociedade Civil | I8: Área rural | J8: Município São Bento do Sapucaí | K8: 2024-09-01 | L8: 2025-12-01
A9: SM-08-2025 | B9: T.1.2.19. Plano de drenagem para o município de Campos do Jordão | C9: 1.2 - Planejamento | D9: PDC 1 e 2 | E9: Sim | F9: Sim | G9: 1 | H9: Município e Sociedade Civil | I9: Município | J9: Muncípio de Campos do Jordão | K9: 2025-05-01 | L9: 2026-12-01
A10: SM-09-2024 | B10: T.1.2.19. Plano de drenagem para o município de São Bento do Sapucaí | C10: 1.2 - Planejamento | D10: PDC 1 e 2 | E10: Sim | F10: Sim | G10: 1 | H10: Município e Sociedade Civil | I10: Município | J10: Município de São Bento do Sapucaí | K10: 2024-05-01 | L10: 2025-12-01
A11: SM-10-2026 | B11: T.1.2.19. Plano de drenagem para o município de Santo Antonio do Pinhal | C11: 1.2 - Planejamento | D11: PDC 1 e 2 | E11: Sim | F11: Sim | G11: 1 | H11: Município e Sociedade Civil | I11: Município | J11: Município de Santo Antonio do Pinhal | K11: 2026-05-01 | L11: 2027-12-01
A12: SM-11-2026 | B12: T.1.2.14. Mapeamento de áreas suscetíveis a processos erosivos e deslizamentos | C12: 1.2 - Planejamento | D12: PDC 1 e 2 | E12: Sim | F12: Sim | G12: 1 | H12: Município e Sociedade Civil | I12: Município | J12: Muncípio de Campos do Jordão | K12: 2026-05-01 | L12: 2027-12-01
A13: SM-12-2027 | B13: T.1.2.24. Plano diretor para a prevenção e contenção de processos erosivos | C13: 1.2 - Planejamento | D13: PDC 1 e 2 | E13: Sim | F13: Sim | G13: 1 | H13: Município e Sociedade Civil | I13: Município | J13: Muncípio de Campos do Jordão | K13: 2027-05-01 | L13: 2027-12-01
A14: SM-13-2026 | B14: T.2.2.1. Desenvolvimento, implantação, operação, manutenção e atualização de sistema de fiscalização de outorgas de direito de uso de recursos hídricos. | C14: 2.2 - Outorga | D14: PDC 1 e 2 | E14: Sim | F14: Sim | G14: 1 | H14: Sociedade Civil | I14: UGRHi | J14: UGRHI-1 | K14: 2026-03-01 | L14: 2027-12-01
A15: SM-14-2024 | B15: T.2.3.3. Desenvolvimento ou atualização de cadastro específico para cobrança pelo uso dos recursos hídricos | C15: 2.3 - Cobrança | D15: PDC 1 e 2 | E15: Sim | F15: Sim | G15: 1 | H15: Sociedade Civil | I15: UGRHi | J15: UGRHI-1 | K15: 2024-09-01 | L15: 2025-12-01
A16: SM-15-2025 | B16: T.3.1.3. Projeto (básico e/ou executivos) de reformas, melhorias ou obras localizadas (EEE-Estação Elevatória de Esgoto e/ou ETE-Estação de tratamento de Esgoto) em Santo Antonio do Pinhal. | C16: 3.1 - Efluentes | D16: Prioritário | E16: Sim | F16: Sim | G16: 1 | H16: Município | I16: Área rural | J16: Município de Santo Antonio do Pinhal / a definir | K16: 2025-05-01 | L16: 2026-12-01
A17: SM-16-2025 | B17: T.3.1.3. Projeto (básico e/ou executivos) de reformas, melhorias ou obras localizadas (EEE-Estação Elevatória de Esgoto e/ou ETE-Estação de tratamento de Esgoto) em Sao Bento do Sapucaí. | C17: 3.1 - Efluentes | D17: Prioritário | E17: Sim | F17: Sim | G17: 1 | H17: Município | I17: Área rural | J17: Município de São Bento do Sapucaí / a definir | K17: 2025-05-01 | L17: 2026-12-01
A18: SM-17-2026 | B18: T.3.1.4. Execução de reformas, melhorias ou obras de EEE e/ou ETE em Santo Antonio do Pinhal. | C18: 3.1 - Efluentes | D18: Prioritário | E18: Sim | F18: Sim | G18: 1 | H18: Município | I18: Área rural | J18: Município de Santo Antonio do Pinhal / a definir | K18: 2026-05-01 | L18: 2027-12-01
A19: SM-18-2026 | B19: T.3.1.4. Execução de reformas, melhorias ou obras de EEE e/ou ETE em São Bento do Sapucaí | C19: 3.1 - Efluentes | D19: Prioritário | E19: Sim | F19: Sim | G19: 1 | H19: Município | I19: Área rural | J19: Município de São Bento do Sapucaí / a definir | K19: 2026-05-01 | L19: 2027-12-01
A20: SM-19-2025 | B20: T.4.1.3. Projetos (básicos e/ou executivos) para proteção e/ou contenção de margens de curso d´água no município de Campos do Jordão | C20: 4.1 - Controle erosão | D20: Prioritário | E20: Sim | F20: Sim | G20: 1 | H20: Município | I20: Área rural | J20: Município de Campos do Jordão / a definir | K20: 2025-05-01 | L20: 2026-12-01
A21: SM-20-2027 | B21: T.4.1.4. Obras/serviços de proteção e/ou contenção de margens de curso d´água no município de Campos do Jordão | C21: 4.1 - Controle erosão | D21: Prioritário | E21: Sim | F21: Sim | G21: 1 | H21: Município | I21: Área urbana | J21: Município de Campos do Jordão / a definir | K21: 2027-05-01 | L21: 2028-12-01
A22: SM-21-2025 | B22: T.4.1.4. Obras/serviços de proteção e/ou contenção de margens de curso d´água no município de São Bento do Sapucaí | C22: 4.1 - Controle erosão | D22: Prioritário | E22: Sim | F22: Sim | G22: 1 | H22: Município | I22: Área urbana | J22: Município de São Bento do Sapucaí / a definir | K22: 2025-05-01 | L22: 2026-12-01
A23: SM-22-2024 | B23: T.4.1.4. Obras/serviços de proteção e/ou contenção de margens de curso d´água no município de Santo Antonio do Pinhal | C23: 4.1 - Controle erosão | D23: Prioritário | E23: Sim | F23: Sim | G23: 1 | H23: Município | I23: Área urbana | J23: Município de Santo Antonio do Pinhal / a definir | K23: 2024-05-01 | L23: 2025-12-01
A24: SM-23-2025 | B24: T.4.2.13. Projeto executivo de Pagamento por Serviços Ambientais relacionados à água - município de São Bento do Sapucaí. | C24: 4.2 - Soluções baseadas Natureza | D24: Prioritário | E24: Sim | F24: Sim | G24: 1 | H24: Sociedade Civil | I24: Área rural | J24: Município de São Bento do Sapucaí | K24: 2025-05-01 | L24: 2026-12-01
A25: SM-24-2027 | B25: T.4.2.13. Projeto executivo de Pagamento por Serviços Ambientais relacionados à água - município de Santo Antonio do Pinhal. | C25: 4.2 - Soluções baseadas Natureza | D25: Prioritário | E25: Sim | F25: Sim | G25: 1 | H25: Sociedade Civil | I25: Área rural | J25: Município de Santo Antonio do Pinhal | K25: 2027-05-01 | L25: 2028-12-01
A26: SM-25-2027 | B26: T.7.1.1. Projetos (básicos e/ou executivos) de microdrenagem (sarjetas, guias, bocas de lobo, poços de visita, galerias, pavimentação com material drenante entre outros) no município de Campos do Jordão. | C26: 7.1 - Drenagem | D26: Prioritário | E26: Sim | F26: Sim | G26: 1 | H26: Município | I26: Área urbana | J26: Município de Campos do Jordão / a definir | K26: 2027-05-01 | L26: 2028-12-01
A27: SM-26-2024 | B27: T.7.1.3. Projetos (básicos e/ou executivos) de macrodrenagem (canalizações, retificações, travessias entre outros) no município de Campos do Jordão. | C27: 7.1 - Drenagem | D27: Prioritário | E27: Sim | F27: Sim | G27: 1 | H27: Município | I27: Área urbana | J27: Município de Campos do Jordão / a definir | K27: 2024-05-01 | L27: 2025-12-01
A28: SM-27-2026 | B28: T.7.1.4. Obras/serviços de macrodrenagem (canalizações, retificações, travessias entre outros) no município de Campos do Jordão | C28: 7.1 - Drenagem | D28: Prioritário | E28: Sim | F28: Sim | G28: 1 | H28: Município | I28: Área urbana | J28: Município de Campos do Jordão / a definir | K28: 2026-05-01 | L28: 2027-12-01
A29: SM-28-2027 | B29: T.7.1.2. Obras/serviços de microdrenagem (sarjetas, guias, bocas de lobo, poços de visita, galerias, pavimentação com material drenante entre outros) no município de São Bento do Sapucaí. | C29: 7.1 - Drenagem | D29: Prioritário | E29: Sim | F29: Sim | G29: 1 | H29: Município | I29: Área urbana | J29: Município de São Bento do Sapucaí / a definir | K29: 2027-05-01 | L29: 2028-12-01
A30: SM-29-2027 | B30: T.7.1.2. Obras/serviços de microdrenagem (sarjetas, guias, bocas de lobo, poços de visita, galerias, pavimentação com material drenante entre outros) no município de Santo Antonio do Pinhal. | C30: 7.1 - Drenagem | D30: Prioritário | E30: Sim | F30: Sim | G30: 1 | H30: Município | I30: Área urbana | J30: Município de Santo Antonio do Pinhal / a definir | K30: 2027-05-01 | L30: 2028-12-01
A31: SM-30-2024 | B31: T.8.3.1. Campanha educativa voltada para a conservação e gestão dos recursos hídricos | C31: 8.3 - Comunicação | D31: Não prioritário | E31: Sim | F31: Sim | G31: 1 | H31: Sociedade Civil | I31: Município | J31: Municípios de Santo Antonio do Pinhal e Sào Bento do Sapucaí | K31: 2024-09-01 | L31: 2025-12-01
A32: SM-31-2024 | B32: T.8.3.2. Serviços afetos à elaboração e divulgação de instrumentos de comunicação social | C32: 8.3 - Comunicação | D32: Não prioritário | E32: Sim | F32: Sim | G32: 1 | H32: Sociedade Civil | I32: UGRHi | J32: UGRHI-1 | K32: 2024-05-01 | L32: 2026-12-01
A33: SM-32-2024 | B33: 1.2.19 Revisão do Plano de Gestão Integrada de Resíduos sólidos de Santo Antonio do Pinhal. | C33: 1.2 - Planejamento | D33: PDC 1 e 2 | E33: Sim | F33: Sim | G33: 1 | H33: Sociedade Civil | I33: Município | J33: Município de Santo Antonio do Pinhal
A34: SM-33-2024 | B34: 1.2.19 Revisão do Plano de Gestão Integrada de Resíduos sólidos de São Bento do Sapucaí | C34: 1.2 - Planejamento | D34: PDC 1 e 2 | E34: Sim | F34: Sim | G34: 1 | H34: Sociedade Civil | I34: Município | J34: Município São Bento do Sapucaí
A35: SM-34-2024 | B35: T.4.2.13. Projeto executivo de Pagamento por Serviços Ambientais relacionados à água | C35: 4.2 - Soluções baseadas Natureza | D35: Prioritário | E35: Sim | F35: Sim | G35: 1 | H35: Sociedade Civil | I35: Sub-bacia | J35: Município de São Bento do Sapucaí / a definir
A36: SM-35-2025 | B36: T.1.2.11. Estudo, levantamento, diagnóstico para subsidiar projetos de PSA | C36: 1.2 - Planejamento | D36: PDC 1 e 2 | E36: Sim | F36: Sim | G36: 1 | H36: Sociedade Civil | I36: Sub-bacia | J36: Município de São Bento do Sapucaí / a definir
A37: SM-36-2026 | B37: T.1.2.16 Planejamento territorial com foco na conservação, proteção, recuperação ou uso dos recur-sos hídricos -Sao Bento do Sapucai | C37: 1.2 - Planejamento | D37: PDC 1 e 2 | E37: Sim | F37: Sim | G37: 1 | H37: Sociedade Civil | I37: Município | J37: Município São Bento do Sapucaí
A38: SM-37-2026 | B38: T.1.2.16 Planejamento territorial com foco na conservação, proteção, recuperação ou uso dos recur-sos hídricos -Santo Antonio do Pinhal | C38: 1.2 - Planejamento | D38: PDC 1 e 2 | E38: Sim | F38: Sim | G38: 1 | H38: Sociedade Civil | I38: Município | J38: Município de Santo Antonio do Pinhal
A39: SM-38-2025 | B39: T.3.2.1. Projetos (básicos e/ou executivos) de recuperação de áreas contaminadas | C39: 3.3 - Resíduos | D39: Prioritário | E39: Sim | F39: Sim | G39: 1 | H39: Sociedade Civil | I39: Área urbana | J39: Município São Bento do Sapucaí / cemiterio
A40: SM-39-2026 | B40: T.3.3.1 – Projeto ( básico ou executivo) de aterro sanitário para disposição de resíduos solidos domiciliares (continuidade Revisão Plano de Resíduos Sólidos São Bento do Sapucaí) | C40: 3.3 - Resíduos | D40: Prioritário | E40: Sim | F40: Sim | G40: 1 | H40: Município e Sociedade Civil | I40: Município | J40: Município São Bento do Sapucaí
A41: SM-40-2027 | B41: T.3.3.1 – Projeto ( básico ou executivo) de aterro sanitário para disposição de resíduos solidos domiciliares (continuidade Revisão Plano de Resíduos Sólidos - Santo Antonio do Pinhal) | C41: 3.3 - Resíduos | D41: Prioritário | E41: Sim | F41: Sim | G41: 1 | H41: Município e Sociedade Civil | I41: Município | J41: Município de Santo Antonio do Pinhal
A42: SM-41-2027 | B42: T.3.3.4 – Implantação de unidade de tratamento de residuos sólidos – Sao Bento do Sapucaí (compostagem, reciclagem ou incineração) associado ou não a undade de transbordo | C42: 3.3 - Resíduos | D42: Prioritário | E42: Sim | F42: Sim | G42: 1 | H42: Município | I42: Município | J42: Município São Bento do Sapucaí
A43: SM-42-2027 | B43: T.3.3.4 – Implantação de unidade de tratamento de residuos sólidos – Santo Antonio do Pinhal (compostagem, reciclagem ou incineração) associado ou não a undade de transbordo | C43: 3.3 - Resíduos | D43: Prioritário | E43: Sim | F43: Sim | G43: 1 | H43: Município | I43: Município | J43: Município de Santo Antonio do Pinhal
A44: SM-43-2026 | B44: T.4.1.5 Projeto ( Básico ou executivo) de desassoreamento de curso dágua - Sao Bento do Sapucaí | C44: 4.1 - Controle erosão | D44: Prioritário | E44: Sim | F44: Sim | G44: 1 | H44: Município | I44: Corpo hídrico
A45: SM-44-2026 | B45: T.4.1.5 Projeto ( Básico ou executivo) de desassoreamento de curso dágua - Santo Antonio do Pinhal | C45: 4.1 - Controle erosão | D45: Prioritário | E45: Sim | F45: Sim | G45: 1 | H45: Município | I45: Corpo hídrico | J45: Município de Santo Antonio do Pinhal
A46: SM-45-2025 | B46: T.4.2.11 Projeto Executivo de aumento de áreas permeáveis e/ou redução de escoamento superficial por meio de implantacao de estrutura verde - parque linear | C46: 4.2 - Soluções baseadas Natureza | D46: Prioritário | E46: Sim | F46: Sim | G46: 1 | H46: Município e Sociedade Civil | I46: Região Hidrográfica | J46: Município São Bento do Sapucaí
A47: SM-46-2025 | B47: T.8.3.1. Campanha educativa voltada para a conservação e gestão dos recursos hídricos - continuidade Plano Educação Ambiental | C47: 8.2 - Educação | D47: Não prioritário | E47: Sim | F47: Sim | G47: 1 | H47: Sociedade Civil | I47: UGRHi | J47: UGRHI-1
A48: SM-47-2024 | B48: T.1.2.2 . Diagnóstico qualitativo e/ou quantitativo de recursos hídricos superficiais e/ou subterrâneos nas sub bacias Perdizes,Bau,Serrano e Prata | C48: 1.2 - Planejamento | D48: PDC 1 e 2 | E48: Sim | F48: Sim | G48: 1 | H48: Sociedade Civil | I48: Sub-bacia | J48: Sub Bacia Sapucai Guacu

Sheet Acompanhamento das metas 24-27
A1: ID | B1: Descrição da ação | C1: Meta do quadriênio | D1: Meta 2024 | E1: % de execução física da meta (2024) | F1: Meta 2025 | G1: % de execução física da meta (2025) | H1: Meta 2026 | I1: % de execução física da meta (2026) | J1: Meta 2027 | K1: % de execução física da meta (2027) | L1: Observações
A2: =IF(INDEX(IdentAcoes[],,1)=0,"",(INDEX(IdentAcoes[],,1))) -> SM-01-2027 | B2: =IF(INDEX(IdentAcoes[],,4)=0,"",(INDEX(IdentAcoes[],,2))) -> T.1.1.1. Elaboração de mapa de uso e ocupação do solo com foco na conservação, proteção, recuperação ou uso dos recursos hídricos para os município de São Bento do Sapucaí. | C2: Atualização da legislação de zoneamento dos Município de São Bento do Sapucaí. | D2: Indicação do empreendimento FEHIDRO | E2: 25 | J2: Atualizar Legislação de Zoneamento do município de São Bento do Sapucaí
A3: SM-02-2027 | B3: T.1.1.1. Elaboração de mapa de uso e ocupação do solo com foco na conservação, proteção, recuperação ou uso dos recursos hídricos para os município de Santo Antônio do Pinhal. | C3: Atualização da legislação de zoneamento dos Município de Santo Antonio do Pinhal. | D3: Indicação do empreendimento FEHIDRO | E3: 25 | J3: Atualizar Legislação de Zoneamento do município de Santo Antonio do Pinhal
A4: SM-03-2027 | B4: T.1.1.1. Elaboração de mapa de uso e ocupação do solo com foco na conservação, proteção, recuperação ou uso dos recursos hídricos para os município de Campos Jordao | C4: Atualização da legislação de zoneamento dos Município Campos Jordao | D4: Indicação do empreendimento FEHIDRO | E4: 25 | J4: Atualizar Legislação de Zoneamento do município de Campos do Jordão
A5: SM-04-2027 | B5: T.1.2.2 . Diagnóstico qualitativo e/ou quantitativo de recursos hídricos superficiais e/ou subterrâneos na sub-bacia Sapucaí Guaçu. | C5: Obter a Análise da Situação dos recursos hídricos da Sub Bacia do Rio Sapucaí Guaçu para planejamento de futuras ações e investimentos na Sub Bacia. | D5: Planejada para 2027 | J5: Diagnóstico da Situação dos Recursos Hídricos das Sub Bacias dos Ridos Sapucaí Guaçu ,Rio da Prata e Rio Sapucaí Mirim e Plano de Ações para conservação dos mananciais.
A6: SM-05-2026 | B6: T.1.2.6 . Estudo, levantamento ou diagnóstico de saneamento básico e de abastecimento de água para os município de Campos de Jordao em comunidades afastado do centro urbano.(a definir: Matadouro,Melos,Campista,Descansópolis, Paque Ferradura ) | C6: Obter dianóstico / situação do saneamento básico e abastecimento de água em comunidades afastadas do centro urbano no município de Campos do Jordao | D6: Acão Cancelada - revisao PAPI dez 2024 | E6: 0 | H6: Plano de Saneamento Rural para o município de Campos do Jordão
A7: SM-06-2025 | B7: T.1.2.6 . Estudo, levantamento ou diagnóstico de saneamento básico e de abastecimento de água para os município de Santo Antônio do Pinhal com foco nas comunidades da área rural. | C7: Obter dianóstico / situação do saneamento básico e abastecimento de água na área rural de Santo Antonio do Pinhal para planejamento de ações e investimentos no município de Santo Antonio do Pinhal. | D7: Acão Cancelada - revisao PAPI dez 2024 | E7: 0 | F7: Plano de Saneamento Básico e abastecimento de Água para o município de Santo Antonio do Pinhal
A8: SM-07-2024 | B8: T.1.2.6 . Estudo, levantamento ou diagnóstico de saneamento básico e de abastecimento de água para os município de São Bento do Sapucaí com foco nas comunidades da área rural. | C8: Obter dianóstico / situação do saneamento básico e abastecimento de água na área rural de São Bento do Sapucaí para planejamento de ações e investimentos no município de São Bento do Sapucaí. | D8: Acão Cancelada - revisao PAPI dez 2024 | E8: 0
A9: SM-08-2025 | B9: T.1.2.19. Plano de drenagem para o município de Campos do Jordão | C9: Elaborar a revisão do Plano de Drenagem do muncípio de Campos do Jordão | D9: planejada para 2025 | E9: 0 | F9: Plano de Macro Drenagem do município de Campos do Jordão
A10: SM-09-2024 | B10: T.1.2.19. Plano de drenagem para o município de São Bento do Sapucaí | C10: Elaborar a revisão do Plano de Drenagem do muncípio de São Bento do Sapucaí | D10: Indicação do empreendimento FEHIDRO | E10: 25
A11: SM-10-2026 | B11: T.1.2.19. Plano de drenagem para o município de Santo Antonio do Pinhal | C11: Elaborar a revisão do Plano de Drenagem do muncípio de Santo Antonio do Pinhal | D11: Indicação do empreendimento FEHIDRO | E11: 25 | H11: Plano de Macro Drenagem do município de Santo Antnio do Pinhal
A12: SM-11-2026 | B12: T.1.2.14. Mapeamento de áreas suscetíveis a processos erosivos e deslizamentos | C12: Elaborar o mapeamento de áreas suscetíveis a processos erosivos e deslizamentos no município de Campos do Jordão | D12: planejada para 2026 | E12: 0 | H12: Relatório de Diagnóstico e mapeamento de áreas suscetíveis a processos erosivos e deslizamentos no muncípio de Campos do Jordão
A13: SM-12-2027 | B13: T.1.2.24. Plano diretor para a prevenção e contenção de processos erosivos | C13: Elaborar o Plano Diretor para prevenção e conteção de processos erosivos no município de Campos do Jordão | D13: planejada para 2027 | E13: 0 | J13: Plano Diretor para prevenção e contenção de processos erosivos para o município de Campos do Jordão
A14: SM-13-2026 | B14: T.2.2.1. Desenvolvimento, implantação, operação, manutenção e atualização de sistema de fiscalização de outorgas de direito de uso de recursos hídricos. | C14: Atualização e melhorias do atual sistema de fiscalização de outorgas de direito de uso de recursos hídricos na UGRHI-1 | D14: planejada para 2026 | E14: 0 | H14: Melhoria no processo de fiscalização de outorgas de direito de uso de recursos hídricos na UGRHi-1 visando reduzir o número de usuários não outorgados.
A15: SM-14-2024 | B15: T.2.3.3. Desenvolvimento ou atualização de cadastro específico para cobrança pelo uso dos recursos hídricos | C15: Atualização do cadastro de cobrança de água para os Usuários da UGRHI-1 e identificação de captações não outorgadas. | D15: replanejada para 2025 | E15: 0
A16: SM-15-2025 | B16: T.3.1.3. Projeto (básico e/ou executivos) de reformas, melhorias ou obras localizadas (EEE-Estação Elevatória de Esgoto e/ou ETE-Estação de tratamento de Esgoto) em Santo Antonio do Pinhal. | C16: Elaborar projeto de 1 ETE em bairro rural de Santo Antonio do Pinhal | D16: Acão Cancelada - revisao PAPI dez 2024 | E16: 0 | F16: Projeto básico de 1 ETE em bairro rural do município de Santo Antonio do Pinhal
A17: SM-16-2025 | B17: T.3.1.3. Projeto (básico e/ou executivos) de reformas, melhorias ou obras localizadas (EEE-Estação Elevatória de Esgoto e/ou ETE-Estação de tratamento de Esgoto) em Sao Bento do Sapucaí. | C17: Elaborar projeto de 1 ETE em bairro rural de São Bento do Sapucaí | D17: Acão Cancelada - revisao PAPI dez 2024 | E17: 0 | F17: Projeto básico de 1 ETE em bairro rural do município de São Bento do Sapucaí
A18: SM-17-2026 | B18: T.3.1.4. Execução de reformas, melhorias ou obras de EEE e/ou ETE em Santo Antonio do Pinhal. | C18: Implantar 1 ETE em bairro rural de Santo Antonio do Pinhal | D18: Acão Cancelada - revisao PAPI dez 2024 | E18: 0 | H18: Implantar 1 ETE em bairro rural do município de Santo Antonio do Pinhal
A19: SM-18-2026 | B19: T.3.1.4. Execução de reformas, melhorias ou obras de EEE e/ou ETE em São Bento do Sapucaí | C19: Implantar 1 ETE em bairro rural de São Bento do Sapucaí | D19: Acão Cancelada - revisao PAPI dez 2024 | E19: 0 | H19: Implantar 1 ETE em bairro rural do município de São Bento do Sapucaí
A20: SM-19-2025 | B20: T.4.1.3. Projetos (básicos e/ou executivos) para proteção e/ou contenção de margens de curso d´água no município de Campos do Jordão | C20: Elaborar projeto de proteção e/ou contenção de curso 'dagua no município de Campos do Jordão | D20: planejada para 2025 | E20: 0 | F20: Elaborar projeto de proteção e/ou contenção de curso 'dagua no município de Campos do Jordão
A21: SM-20-2027 | B21: T.4.1.4. Obras/serviços de proteção e/ou contenção de margens de curso d´água no município de Campos do Jordão | C21: Realizar uma obra / serviço de proteção e/ou contenção de margens de curso dágua no município de Campos do Jordão | D21: planejada para 2027 | E21: 0 | J21: Realizar uma obra / serviço de proteção e/ou contenção de margens de curso dágua no município de Campos do Jordão
A22: SM-21-2025 | B22: T.4.1.4. Obras/serviços de proteção e/ou contenção de margens de curso d´água no município de São Bento do Sapucaí | C22: Realizar uma obra / serviço de proteção e/ou contenção de margens de curso dágua no município de São Bento do Sapucaí | D22: planejada para 2025 | E22: 0 | F22: Realizar uma obra / serviço de proteção e/ou contenção de margens de curso dágua no município de São Bento do Sapucaí
A23: SM-22-2024 | B23: T.4.1.4. Obras/serviços de proteção e/ou contenção de margens de curso d´água no município de Santo Antonio do Pinhal | C23: Realizar uma obra / serviço de proteção e/ou contenção de margens de curso dágua no município de Santo Antonio do Pinhal | D23: Indicação do empreendimento FEHIDRO | E23: 25
A24: SM-23-2025 | B24: T.4.2.13. Projeto executivo de Pagamento por Serviços Ambientais relacionados à água - município de São Bento do Sapucaí. | C24: Elaborar um projeto executivo PSA no município de São Bento do Sapucaí | D24: planejada para 2025 | E24: 0
A25: SM-24-2027 | B25: T.4.2.13. Projeto executivo de Pagamento por Serviços Ambientais relacionados à água - município de Santo Antonio do Pinhal. | C25: Elaborar um projeto executivo PSA no município de Santo Antonio do Pinhal | D25: planejada para 2027 | E25: 0 | J25: Elaborar um projeto executivo PSA no município de Santo Antonio do Pinhal
A26: SM-25-2027 | B26: T.7.1.1. Projetos (básicos e/ou executivos) de microdrenagem (sarjetas, guias, bocas de lobo, poços de visita, galerias, pavimentação com material drenante entre outros) no município de Campos do Jordão. | C26: Elaborar 1 Projeto básico ou executivo de microdrenagem no Município de São Bento do Sapucaí | D26: planejada para 2027 | E26: 0 | J26: Elaborar 1 Projeto básico ou executivo de microdrenagem no Município de São Bento do Sapucaí
A27: SM-26-2024 | B27: T.7.1.3. Projetos (básicos e/ou executivos) de macrodrenagem (canalizações, retificações, travessias entre outros) no município de Campos do Jordão. | C27: Elaborar 1 Projeto básico ou executivo de macrodrenagem no Município de Campos do Jordão. | D27: Indicação do empreendimento FEHIDRO | E27: 0
A28: SM-27-2026 | B28: T.7.1.4. Obras/serviços de macrodrenagem (canalizações, retificações, travessias entre outros) no município de Campos do Jordão | C28: Elaborar 1 obra ou serviço de macrodrenagem no município de Campos do Jordão | D28: planejada para 2026 | E28: 0 | H28: Elaborar 1 obra ou serviço de macrodrenagem no município de Campos do Jordão
A29: SM-28-2027 | B29: T.7.1.2. Obras/serviços de microdrenagem (sarjetas, guias, bocas de lobo, poços de visita, galerias, pavimentação com material drenante entre outros) no município de São Bento do Sapucaí. | C29: Elaborar 1 obra ou serviço de microdrenagem no município de São Bento do Sapucaí. | D29: planejada para 2027 | E29: 0 | J29: Elaborar 1 obra ou serviço de microdrenagem no município de São Bento do Sapucaí.
A30: SM-29-2027 | B30: T.7.1.2. Obras/serviços de microdrenagem (sarjetas, guias, bocas de lobo, poços de visita, galerias, pavimentação com material drenante entre outros) no município de Santo Antonio do Pinhal. | C30: Elaborar 1 obra ou serviço de microdrenagem no município de Santo Antonio do Pinhal | D30: planejada para 2027 | E30: 0 | J30: Elaborar 1 obra ou serviço de microdrenagem no município de Santo Antonio do Pinhal
A31: SM-30-2024 | B31: T.8.3.1. Campanha educativa voltada para a conservação e gestão dos recursos hídricos | C31: Elaborar campanha educativa voltada a tratamento de resíduos sólidos nos municípios de Santo Antonio do Pinhal e Sao Bento do Sapucaí | D31: Indicação do empreendimento FEHIDRO | E31: 25
A32: SM-31-2024 | B32: T.8.3.2. Serviços afetos à elaboração e divulgação de instrumentos de comunicação social | C32: Implementar as atividades de comunicação social e educação ambiental do CBH-SM de forma contínua anualmente. | D32: Indicação do empreendimento FEHIDRO | E32: 25
A33: SM-32-2024 | B33: 1.2.19 Revisão do Plano de Gestão Integrada de Resíduos sólidos de Santo Antonio do Pinhal. | C33: Atualizar o Plano de Residos Sólidos no município de Santo Antonio do Pinhal. | D33: Indicação do empreendimento FEHIDRO | E33: 25
A34: SM-33-2024 | B34: 1.2.19 Revisão do Plano de Gestão Integrada de Resíduos sólidos de São Bento do Sapucaí | C34: Atualizar o Plano de Residos Sólidos no município de São Bento do Sapucai. | D34: Indicação do empreendimento FEHIDRO | E34: 25
A35: SM-34-2024 | B35: T.4.2.13. Projeto executivo de Pagamento por Serviços Ambientais relacionados à água | C35: Obter Diagnostico, Estudos, Recuperação e Proteção da Bacia do Ribeirão Serrano – São Bento do Sapucaí | D35: Indicação do empreendimento FEHIDRO | E35: 25
A36: SM-35-2025 | B36: T.1.2.11. Estudo, levantamento, diagnóstico para subsidiar projetos de PSA | C36: Subsidiar PSA – cadastramento das propriedades rurais interessadas em projetos melhorias ambientais. | D36: planejada para 2025 | E36: 0
A37: SM-36-2026 | B37: T.1.2.16 Planejamento territorial com foco na conservação, proteção, recuperação ou uso dos recur-sos hídricos -Sao Bento do Sapucai | C37: Planejamento territorial – (continuidade do mapa de uso e ocupação do solo) | D37: planejada para 2026 | E37: 0
A38: SM-37-2026 | B38: T.1.2.16 Planejamento territorial com foco na conservação, proteção, recuperação ou uso dos recur-sos hídricos -Santo Antonio do Pinhal | C38: Planejamento territorial – (continuidade do mapa de uso e ocupação do solo) | D38: planejada para 2026 | E38: 0
A39: SM-38-2025 | B39: T.3.2.1. Projetos (básicos e/ou executivos) de recuperação de áreas contaminadas | C39: áreas contaminadas – poluição difusa – cemitério São Bento do Sapucai – 2025 | D39: planejada para 2025 | E39: 0
A40: SM-39-2026 | B40: T.3.3.1 – Projeto ( básico ou executivo) de aterro sanitário para disposição de resíduos solidos domiciliares (continuidade Revisão Plano de Resíduos Sólidos São Bento do Sapucaí) | C40: Projeto inicial de aterro sanitário para disposição de resíduos solidos domiciliares (continuidade Revisão Plano de Resíduos Sólidos) - São Bento do Sapucaí | D40: planejada para 2026 | E40: 0
A41: SM-40-2027 | B41: T.3.3.1 – Projeto ( básico ou executivo) de aterro sanitário para disposição de resíduos solidos domiciliares (continuidade Revisão Plano de Resíduos Sólidos - Santo Antonio do Pinhal) | C41: Projeto inicial de aterro sanitário para disposição de resíduos solidos domiciliares (continuidade Revisão Plano de Resíduos Sólidos)-Santo Antonio do Pinhal | D41: planejada para 2027 | E41: 0
A42: SM-41-2027 | B42: T.3.3.4 – Implantação de unidade de tratamento de residuos sólidos – Sao Bento do Sapucaí (compostagem, reciclagem ou incineração) associado ou não a undade de transbordo | C42: Implantação de aterro sanitário, ecoponto e PEV – Ponto de Entrega Voluntária – (continuidade Revisão Plano de Resíduos Sólidos) - São Bento do Sapucaí | D42: planejada para 2027 | E42: 0
A43: SM-42-2027 | B43: T.3.3.4 – Implantação de unidade de tratamento de residuos sólidos – Santo Antonio do Pinhal (compostagem, reciclagem ou incineração) associado ou não a undade de transbordo | C43: Implantação de aterro sanitário, ecoponto e PEV – Ponto de Entrega Voluntária – (continuidade Revisão Plano de Resíduos Sólidos) - Santo Antonio do Pinhal | D43: planejada para 2027 | E43: 0
A44: SM-43-2026 | B44: T.4.1.5 Projeto ( Básico ou executivo) de desassoreamento de curso dágua - Sao Bento do Sapucaí | C44: Controle de processos erosivos - Proteção margens – (continuidade do macrodrenagem) - São Bento do Sapucaí | D44: planejada para 2026 | E44: 0
A45: SM-44-2026 | B45: T.4.1.5 Projeto ( Básico ou executivo) de desassoreamento de curso dágua - Santo Antonio do Pinhal | C45: Controle de processos erosivos - Proteção margens – (continuidade do macrodrenagem) - Santo Antonio do Pinhal | D45: planejada para 2026 | E45: 0
A46: SM-45-2025 | B46: T.4.2.11 Projeto Executivo de aumento de áreas permeáveis e/ou redução de escoamento superficial por meio de implantacao de estrutura verde - parque linear | C46: Implantação de parque linear , bosque urbano em São Bento do Sapucaí | D46: planejada para 2025 | E46: 0
A47: SM-46-2025 | B47: T.8.3.1. Campanha educativa voltada para a conservação e gestão dos recursos hídricos - continuidade Plano Educação Ambiental | C47: Realizar campanha educativa na gestão de recursos hídricos - continuidade e ações do Projeto Plano de Educação Ambiental - Caminho das Águas | D47: planejada para 2025 | E47: 0
A48: SM-47-2024 | B48: T.1.2.2 . Diagnóstico qualitativo e/ou quantitativo de recursos hídricos superficiais e/ou subterrâneos nas sub bacias Perdizes,Bau,Serrano e Prata | C48: Caracterização da Vulnerabilidade Ambiental das Nascentes, e Diagnóstico dos Recursos Hidricos das Sub-Bacias de Perdizes, Baú, Serrano e Prata da Bacia Hidrográfica da Serra da Mantiqueira – UGRHI 1 | D48: Indicação do empreendimento FEHIDRO | E48: 25

Sheet Acomp. financeiro 24-27
A1: id_ação_Fonte_oculta | B1: ID Ação | C1: Descrição da ação | D1: Fonte | E1: R$ Planejado (2024) | F1: R$ Disponibilizado (2024) | G1: R$ Executado (2024) | H1: R$ Planejado (2025) | I1: R$ Disponibilizado (2025) | J1: R$ Executado (2025) | K1: R$ Planejado (2026) | L1: R$ Disponibilizado (2026) | M1: R$ Executado (2026) | N1: R$ Planejado (2027) | O1: R$ Disponibilizado (2027) | P1: R$ Executado (2027) | Q1: Observações sobre execução financeira da meta
A2: =Financeiro[[#This Row],[ID Ação]]&Financeiro[[#This Row],[Fonte]] -> SM-01-2027FEHIDRO - CFURH | B2: =IFERROR(INDEX(IdentAcoes[ID Ação],MATCH(0,INDEX(--(COUNTIF(B$1:B1,IdentAcoes[ID Ação])=IdentAcoes[[Quantidade de fontes de recursos ]]),0),0)),"") -> SM-01-2027 | C2: =IFERROR(INDEX(IdentAcoes[Descrição da ação],MATCH(0,INDEX(--(COUNTIF(C$1:C1,IdentAcoes[Descrição da ação])=IdentAcoes[[Quantidade de fontes de recursos ]]),0),0)),"") -> T.1.1.1. Elaboração de mapa de uso e ocupação do solo com foco na conservação, proteção, recuperação ou uso dos recursos hídricos para os município de São Bento do Sapucaí. | D2: FEHIDRO - CFURH | E2: 160000 | F2: 159816.28 | G2: 0 | H2: 0 | I2: 0 | J2: 0 | K2: 0 | L2: 0 | M2: 0 | N2: 0 | O2: 0 | P2: 0
A3: =Financeiro[[#This Row],[ID Ação]]&Financeiro[[#This Row],[Fonte]] -> SM-02-2027FEHIDRO - CFURH | B3: =IFERROR(INDEX(IdentAcoes[ID Ação],MATCH(0,INDEX(--(COUNTIF(B$1:B2,IdentAcoes[ID Ação])=IdentAcoes[[Quantidade de fontes de recursos ]]),0),0)),"") -> SM-02-2027 | C3: =IFERROR(INDEX(IdentAcoes[Descrição da ação],MATCH(0,INDEX(--(COUNTIF(C$1:C2,IdentAcoes[Descrição da ação])=IdentAcoes[[Quantidade de fontes de recursos ]]),0),0)),"") -> T.1.1.1. Elaboração de mapa de uso e ocupação do solo com foco na conservação, proteção, recuperação ou uso dos recursos hídricos para os município de Santo Antônio do Pinhal. | D3: FEHIDRO - CFURH | E3: 160000 | F3: 159816.28 | G3: 0 | H3: 0 | I3: 0 | J3: 0 | K3: 0 | L3: 0 | M3: 0 | N3: 0 | O3: 0 | P3: 0 | Q3: 0
A4: =Financeiro[[#This Row],[ID Ação]]&Financeiro[[#This Row],[Fonte]] -> SM-03-2027FEHIDRO - CFURH | B4: =IFERROR(INDEX(IdentAcoes[ID Ação],MATCH(0,INDEX(--(COUNTIF(B$1:B3,IdentAcoes[ID Ação])=IdentAcoes[[Quantidade de fontes de recursos ]]),0),0)),"") -> SM-03-2027 | C4: =IFERROR(INDEX(IdentAcoes[Descrição da ação],MATCH(0,INDEX(--(COUNTIF(C$1:C3,IdentAcoes[Descrição da ação])=IdentAcoes[[Quantidade de fontes de recursos ]]),0),0)),"") -> T.1.1.1. Elaboração de mapa de uso e ocupação do solo com foco na conservação, proteção, recuperação ou uso dos recursos hídricos para os município de Campos Jordao | D4: FEHIDRO - CFURH | E4: 160000 | F4: 159816.28 | G4: 0 | H4: 0 | I4: 0 | J4: 0 | K4: 0 | L4: 0 | M4: 0 | N4: 0 | O4: 0 | P4: 0 | Q4: 0
A5: =Financeiro[[#This Row],[ID Ação]]&Financeiro[[#This Row],[Fonte]] -> SM-04-2027FEHIDRO - CFURH | B5: =IFERROR(INDEX(IdentAcoes[ID Ação],MATCH(0,INDEX(--(COUNTIF(B$1:B4,IdentAcoes[ID Ação])=IdentAcoes[[Quantidade de fontes de recursos ]]),0),0)),"") -> SM-04-2027 | C5: =IFERROR(INDEX(IdentAcoes[Descrição da ação],MATCH(0,INDEX(--(COUNTIF(C$1:C4,IdentAcoes[Descrição da ação])=IdentAcoes[[Quantidade de fontes de recursos ]]),0),0)),"") -> T.1.2.2 . Diagnóstico qualitativo e/ou quantitativo de recursos hídricos superficiais e/ou subterrâneos na sub-bacia Sapucaí Guaçu. | D5: FEHIDRO - CFURH | E5: 0 | F5: 0 | G5: 0 | H5: 0 | I5: 0 | J5: 0 | K5: 0 | L5: 0 | M5: 0 | N5: 200000 | O5: 0 | P5: 0
A6: =Financeiro[[#This Row],[ID Ação]]&Financeiro[[#This Row],[Fonte]] -> SM-05-2026FEHIDRO - Cobrança estadual | B6: =IFERROR(INDEX(IdentAcoes[ID Ação],MATCH(0,INDEX(--(COUNTIF(B$1:B5,IdentAcoes[ID Ação])=IdentAcoes[[Quantidade de fontes de recursos ]]),0),0)),"") -> SM-05-2026 | C6: =IFERROR(INDEX(IdentAcoes[Descrição da ação],MATCH(0,INDEX(--(COUNTIF(C$1:C5,IdentAcoes[Descrição da ação])=IdentAcoes[[Quantidade de fontes de recursos ]]),0),0)),"") -> T.1.2.6 . Estudo, levantamento ou diagnóstico de saneamento básico e de abastecimento de água para os município de Campos de Jordao em comunidades afastado do centro urbano.(a definir: Matadouro,Melos,Campista,Descansópolis, Paque Ferradura ) | D6: FEHIDRO - Cobrança estadual | E6: 0 | F6: 0 | H6: 0 | K6: 0 | L6: 0 | M6: 0 | N6: 0
A7: =Financeiro[[#This Row],[ID Ação]]&Financeiro[[#This Row],[Fonte]] -> SM-06-2025FEHIDRO - CFURH | B7: =IFERROR(INDEX(IdentAcoes[ID Ação],MATCH(0,INDEX(--(COUNTIF(B$1:B6,IdentAcoes[ID Ação])=IdentAcoes[[Quantidade de fontes de recursos ]]),0),0)),"") -> SM-06-2025 | C7: =IFERROR(INDEX(IdentAcoes[Descrição da ação],MATCH(0,INDEX(--(COUNTIF(C$1:C6,IdentAcoes[Descrição da ação])=IdentAcoes[[Quantidade de fontes de recursos ]]),0),0)),"") -> T.1.2.6 . Estudo, levantamento ou diagnóstico de saneamento básico e de abastecimento de água para os município de Santo Antônio do Pinhal com foco nas comunidades da área rural. | D7: FEHIDRO - CFURH | E7: 0 | F7: 0 | H7: 0 | K7: 0 | N7: 0
A8: =Financeiro[[#This Row],[ID Ação]]&Financeiro[[#This Row],[Fonte]] -> SM-07-2024FEHIDRO - CFURH | B8: =IFERROR(INDEX(IdentAcoes[ID Ação],MATCH(0,INDEX(--(COUNTIF(B$1:B7,IdentAcoes[ID Ação])=IdentAcoes[[Quantidade de fontes de recursos ]]),0),0)),"") -> SM-07-2024 | C8: =IFERROR(INDEX(IdentAcoes[Descrição da ação],MATCH(0,INDEX(--(COUNTIF(C$1:C7,IdentAcoes[Descrição da ação])=IdentAcoes[[Quantidade de fontes de recursos ]]),0),0)),"") -> T.1.2.6 . Estudo, levantamento ou diagnóstico de saneamento básico e de abastecimento de água para os município de São Bento do Sapucaí com foco nas comunidades da área rural. | D8: FEHIDRO - CFURH | E8: 0 | F8: 0 | H8: 0 | K8: 0 | N8: 0
A9: =Financeiro[[#This Row],[ID Ação]]&Financeiro[[#This Row],[Fonte]] -> SM-08-2025FEHIDRO - Cobrança estadual | B9: =IFERROR(INDEX(IdentAcoes[ID Ação],MATCH(0,INDEX(--(COUNTIF(B$1:B8,IdentAcoes[ID Ação])=IdentAcoes[[Quantidade de fontes de recursos ]]),0),0)),"") -> SM-08-2025 | C9: =IFERROR(INDEX(IdentAcoes[Descrição da ação],MATCH(0,INDEX(--(COUNTIF(C$1:C8,IdentAcoes[Descrição da ação])=IdentAcoes[[Quantidade de fontes de recursos ]]),0),0)),"") -> T.1.2.19. Plano de drenagem para o município de Campos do Jordão | D9: FEHIDRO - Cobrança estadual | E9: 0 | F9: 0 | H9: 250000 | K9: 0 | N9: 0
A10: =Financeiro[[#This Row],[ID Ação]]&Financeiro[[#This Row],[Fonte]] -> SM-09-2024FEHIDRO - CFURH | B10: =IFERROR(INDEX(IdentAcoes[ID Ação],MATCH(0,INDEX(--(COUNTIF(B$1:B9,IdentAcoes[ID Ação])=IdentAcoes[[Quantidade de fontes de recursos ]]),0),0)),"") -> SM-09-2024 | C10: =IFERROR(INDEX(IdentAcoes[Descrição da ação],MATCH(0,INDEX(--(COUNTIF(C$1:C9,IdentAcoes[Descrição da ação])=IdentAcoes[[Quantidade de fontes de recursos ]]),0),0)),"") -> T.1.2.19. Plano de drenagem para o município de São Bento do Sapucaí | D10: FEHIDRO - CFURH | E10: 160000 | F10: 151999.12 | H10: 0 | K10: 0 | N10: 0
A11: =Financeiro[[#This Row],[ID Ação]]&Financeiro[[#This Row],[Fonte]] -> SM-10-2026FEHIDRO - CFURH | B11: =IFERROR(INDEX(IdentAcoes[ID Ação],MATCH(0,INDEX(--(COUNTIF(B$1:B10,IdentAcoes[ID Ação])=IdentAcoes[[Quantidade de fontes de recursos ]]),0),0)),"") -> SM-10-2026 | C11: =IFERROR(INDEX(IdentAcoes[Descrição da ação],MATCH(0,INDEX(--(COUNTIF(C$1:C10,IdentAcoes[Descrição da ação])=IdentAcoes[[Quantidade de fontes de recursos ]]),0),0)),"") -> T.1.2.19. Plano de drenagem para o município de Santo Antonio do Pinhal | D11: FEHIDRO - CFURH | E11: 160000 | F11: 197313.1 | H11: 0 | K11: 0 | N11: 0
A12: =Financeiro[[#This Row],[ID Ação]]&Financeiro[[#This Row],[Fonte]] -> SM-11-2026FEHIDRO - CFURH | B12: =IFERROR(INDEX(IdentAcoes[ID Ação],MATCH(0,INDEX(--(COUNTIF(B$1:B11,IdentAcoes[ID Ação])=IdentAcoes[[Quantidade de fontes de recursos ]]),0),0)),"") -> SM-11-2026 | C12: =IFERROR(INDEX(IdentAcoes[Descrição da ação],MATCH(0,INDEX(--(COUNTIF(C$1:C11,IdentAcoes[Descrição da ação])=IdentAcoes[[Quantidade de fontes de recursos ]]),0),0)),"") -> T.1.2.14. Mapeamento de áreas suscetíveis a processos erosivos e deslizamentos | D12: FEHIDRO - CFURH | E12: 0 | F12: 0 | H12: 160000 | K12: 0 | N12: 0
A13: =Financeiro[[#This Row],[ID Ação]]&Financeiro[[#This Row],[Fonte]] -> SM-12-2027FEHIDRO - CFURH | B13: =IFERROR(INDEX(IdentAcoes[ID Ação],MATCH(0,INDEX(--(COUNTIF(B$1:B12,IdentAcoes[ID Ação])=IdentAcoes[[Quantidade de fontes de recursos ]]),0),0)),"") -> SM-12-2027 | C13: =IFERROR(INDEX(IdentAcoes[Descrição da ação],MATCH(0,INDEX(--(COUNTIF(C$1:C12,IdentAcoes[Descrição da ação])=IdentAcoes[[Quantidade de fontes de recursos ]]),0),0)),"") -> T.1.2.24. Plano diretor para a prevenção e contenção de processos erosivos | D13: FEHIDRO - CFURH | E13: 0 | F13: 0 | H13: 0 | K13: 0 | N13: 200000
A14: =Financeiro[[#This Row],[ID Ação]]&Financeiro[[#This Row],[Fonte]] -> SM-13-2026FEHIDRO - CFURH | B14: =IFERROR(INDEX(IdentAcoes[ID Ação],MATCH(0,INDEX(--(COUNTIF(B$1:B13,IdentAcoes[ID Ação])=IdentAcoes[[Quantidade de fontes de recursos ]]),0),0)),"") -> SM-13-2026 | C14: =IFERROR(INDEX(IdentAcoes[Descrição da ação],MATCH(0,INDEX(--(COUNTIF(C$1:C13,IdentAcoes[Descrição da ação])=IdentAcoes[[Quantidade de fontes de recursos ]]),0),0)),"") -> T.2.2.1. Desenvolvimento, implantação, operação, manutenção e atualização de sistema de fiscalização de outorgas de direito de uso de recursos hídricos. | D14: FEHIDRO - CFURH | E14: 0 | F14: 0 | H14: 0 | K14: 250000 | N14: 0
A15: =Financeiro[[#This Row],[ID Ação]]&Financeiro[[#This Row],[Fonte]] -> SM-14-2024FEHIDRO - Cobrança estadual | B15: =IFERROR(INDEX(IdentAcoes[ID Ação],MATCH(0,INDEX(--(COUNTIF(B$1:B14,IdentAcoes[ID Ação])=IdentAcoes[[Quantidade de fontes de recursos ]]),0),0)),"") -> SM-14-2024 | C15: =IFERROR(INDEX(IdentAcoes[Descrição da ação],MATCH(0,INDEX(--(COUNTIF(C$1:C14,IdentAcoes[Descrição da ação])=IdentAcoes[[Quantidade de fontes de recursos ]]),0),0)),"") -> T.2.3.3. Desenvolvimento ou atualização de cadastro específico para cobrança pelo uso dos recursos hídricos | D15: FEHIDRO - Cobrança estadual | E15: 0 | F15: 0 | H15: 220000 | K15: 0 | N15: 0
A16: =Financeiro[[#This Row],[ID Ação]]&Financeiro[[#This Row],[Fonte]] -> SM-15-2025FEHIDRO - CFURH | B16: =IFERROR(INDEX(IdentAcoes[ID Ação],MATCH(0,INDEX(--(COUNTIF(B$1:B15,IdentAcoes[ID Ação])=IdentAcoes[[Quantidade de fontes de recursos ]]),0),0)),"") -> SM-15-2025 | C16: =IFERROR(INDEX(IdentAcoes[Descrição da ação],MATCH(0,INDEX(--(COUNTIF(C$1:C15,IdentAcoes[Descrição da ação])=IdentAcoes[[Quantidade de fontes de recursos ]]),0),0)),"") -> T.3.1.3. Projeto (básico e/ou executivos) de reformas, melhorias ou obras localizadas (EEE-Estação Elevatória de Esgoto e/ou ETE-Estação de tratamento de Esgoto) em Santo Antonio do Pinhal. | D16: FEHIDRO - CFURH | E16: 0 | F16: 0 | H16: 0 | K16: 0 | N16: 0
A17: =Financeiro[[#This Row],[ID Ação]]&Financeiro[[#This Row],[Fonte]] -> SM-16-2025FEHIDRO - CFURH | B17: =IFERROR(INDEX(IdentAcoes[ID Ação],MATCH(0,INDEX(--(COUNTIF(B$1:B16,IdentAcoes[ID Ação])=IdentAcoes[[Quantidade de fontes de recursos ]]),0),0)),"") -> SM-16-2025 | C17: =IFERROR(INDEX(IdentAcoes[Descrição da ação],MATCH(0,INDEX(--(COUNTIF(C$1:C16,IdentAcoes[Descrição da ação])=IdentAcoes[[Quantidade de fontes de recursos ]]),0),0)),"") -> T.3.1.3. Projeto (básico e/ou executivos) de reformas, melhorias ou obras localizadas (EEE-Estação Elevatória de Esgoto e/ou ETE-Estação de tratamento de Esgoto) em Sao Bento do Sapucaí. | D17: FEHIDRO - CFURH | E17: 0 | F17: 0 | H17: 0 | K17: 0 | N17: 0
A18: =Financeiro[[#This Row],[ID Ação]]&Financeiro[[#This Row],[Fonte]] -> SM-17-2026FEHIDRO - CFURH | B18: =IFERROR(INDEX(IdentAcoes[ID Ação],MATCH(0,INDEX(--(COUNTIF(B$1:B17,IdentAcoes[ID Ação])=IdentAcoes[[Quantidade de fontes de recursos ]]),0),0)),"") -> SM-17-2026 | C18: =IFERROR(INDEX(IdentAcoes[Descrição da ação],MATCH(0,INDEX(--(COUNTIF(C$1:C17,IdentAcoes[Descrição da ação])=IdentAcoes[[Quantidade de fontes de recursos ]]),0),0)),"") -> T.3.1.4. Execução de reformas, melhorias ou obras de EEE e/ou ETE em Santo Antonio do Pinhal. | D18: FEHIDRO - CFURH | E18: 0 | F18: 0 | H18: 0 | K18: 0 | N18: 0
A19: =Financeiro[[#This Row],[ID Ação]]&Financeiro[[#This Row],[Fonte]] -> SM-18-2026FEHIDRO - CFURH | B19: =IFERROR(INDEX(IdentAcoes[ID Ação],MATCH(0,INDEX(--(COUNTIF(B$1:B18,IdentAcoes[ID Ação])=IdentAcoes[[Quantidade de fontes de recursos ]]),0),0)),"") -> SM-18-2026 | C19: =IFERROR(INDEX(IdentAcoes[Descrição da ação],MATCH(0,INDEX(--(COUNTIF(C$1:C18,IdentAcoes[Descrição da ação])=IdentAcoes[[Quantidade de fontes de recursos ]]),0),0)),"") -> T.3.1.4. Execução de reformas, melhorias ou obras de EEE e/ou ETE em São Bento do Sapucaí | D19: FEHIDRO - CFURH | E19: 0 | F19: 0 | H19: 0 | K19: 0 | N19: 0
A20: =Financeiro[[#This Row],[ID Ação]]&Financeiro[[#This Row],[Fonte]] -> SM-19-2025FEHIDRO - CFURH | B20: =IFERROR(INDEX(IdentAcoes[ID Ação],MATCH(0,INDEX(--(COUNTIF(B$1:B19,IdentAcoes[ID Ação])=IdentAcoes[[Quantidade de fontes de recursos ]]),0),0)),"") -> SM-19-2025 | C20: =IFERROR(INDEX(IdentAcoes[Descrição da ação],MATCH(0,INDEX(--(COUNTIF(C$1:C19,IdentAcoes[Descrição da ação])=IdentAcoes[[Quantidade de fontes de recursos ]]),0),0)),"") -> T.4.1.3. Projetos (básicos e/ou executivos) para proteção e/ou contenção de margens de curso d´água no município de Campos do Jordão | D20: FEHIDRO - CFURH | E20: 0 | F20: 0 | H20: 300000 | K20: 0 | N20: 0
A21: =Financeiro[[#This Row],[ID Ação]]&Financeiro[[#This Row],[Fonte]] -> SM-20-2027FEHIDRO - Cobrança estadual | B21: =IFERROR(INDEX(IdentAcoes[ID Ação],MATCH(0,INDEX(--(COUNTIF(B$1:B20,IdentAcoes[ID Ação])=IdentAcoes[[Quantidade de fontes de recursos ]]),0),0)),"") -> SM-20-2027 | C21: =IFERROR(INDEX(IdentAcoes[Descrição da ação],MATCH(0,INDEX(--(COUNTIF(C$1:C20,IdentAcoes[Descrição da ação])=IdentAcoes[[Quantidade de fontes de recursos ]]),0),0)),"") -> T.4.1.4. Obras/serviços de proteção e/ou contenção de margens de curso d´água no município de Campos do Jordão | D21: FEHIDRO - Cobrança estadual | E21: 0 | F21: 0 | H21: 0 | K21: 0 | N21: 450000
A22: =Financeiro[[#This Row],[ID Ação]]&Financeiro[[#This Row],[Fonte]] -> SM-21-2025FEHIDRO - CFURH | B22: =IFERROR(INDEX(IdentAcoes[ID Ação],MATCH(0,INDEX(--(COUNTIF(B$1:B21,IdentAcoes[ID Ação])=IdentAcoes[[Quantidade de fontes de recursos ]]),0),0)),"") -> SM-21-2025 | C22: =IFERROR(INDEX(IdentAcoes[Descrição da ação],MATCH(0,INDEX(--(COUNTIF(C$1:C21,IdentAcoes[Descrição da ação])=IdentAcoes[[Quantidade de fontes de recursos ]]),0),0)),"") -> T.4.1.4. Obras/serviços de proteção e/ou contenção de margens de curso d´água no município de São Bento do Sapucaí | D22: FEHIDRO - CFURH | E22: 0 | F22: 0 | H22: 0 | K22: 0 | N22: 500000
A23: =Financeiro[[#This Row],[ID Ação]]&Financeiro[[#This Row],[Fonte]] -> SM-22-2024FEHIDRO - CFURH | B23: =IFERROR(INDEX(IdentAcoes[ID Ação],MATCH(0,INDEX(--(COUNTIF(B$1:B22,IdentAcoes[ID Ação])=IdentAcoes[[Quantidade de fontes de recursos ]]),0),0)),"") -> SM-22-2024 | C23: =IFERROR(INDEX(IdentAcoes[Descrição da ação],MATCH(0,INDEX(--(COUNTIF(C$1:C22,IdentAcoes[Descrição da ação])=IdentAcoes[[Quantidade de fontes de recursos ]]),0),0)),"") -> T.4.1.4. Obras/serviços de proteção e/ou contenção de margens de curso d´água no município de Santo Antonio do Pinhal | D23: FEHIDRO - CFURH | E23: 350000 | F23: 278395 | H23: 0 | K23: 0 | N23: 0
A24: =Financeiro[[#This Row],[ID Ação]]&Financeiro[[#This Row],[Fonte]] -> SM-23-2025FEHIDRO - CFURH | B24: =IFERROR(INDEX(IdentAcoes[ID Ação],MATCH(0,INDEX(--(COUNTIF(B$1:B23,IdentAcoes[ID Ação])=IdentAcoes[[Quantidade de fontes de recursos ]]),0),0)),"") -> SM-23-2025 | C24: =IFERROR(INDEX(IdentAcoes[Descrição da ação],MATCH(0,INDEX(--(COUNTIF(C$1:C23,IdentAcoes[Descrição da ação])=IdentAcoes[[Quantidade de fontes de recursos ]]),0),0)),"") -> T.4.2.13. Projeto executivo de Pagamento por Serviços Ambientais relacionados à água - município de São Bento do Sapucaí. | D24: FEHIDRO - CFURH | E24: 0 | F24: 0 | H24: 200000 | K24: 0 | N24: 0
A25: =Financeiro[[#This Row],[ID Ação]]&Financeiro[[#This Row],[Fonte]] -> SM-24-2027FEHIDRO - CFURH | B25: =IFERROR(INDEX(IdentAcoes[ID Ação],MATCH(0,INDEX(--(COUNTIF(B$1:B24,IdentAcoes[ID Ação])=IdentAcoes[[Quantidade de fontes de recursos ]]),0),0)),"") -> SM-24-2027 | C25: =IFERROR(INDEX(IdentAcoes[Descrição da ação],MATCH(0,INDEX(--(COUNTIF(C$1:C24,IdentAcoes[Descrição da ação])=IdentAcoes[[Quantidade de fontes de recursos ]]),0),0)),"") -> T.4.2.13. Projeto executivo de Pagamento por Serviços Ambientais relacionados à água - município de Santo Antonio do Pinhal. | D25: FEHIDRO - CFURH | E25: 0 | F25: 0 | H25: 0 | K25: 200000 | N25: 0
A26: =Financeiro[[#This Row],[ID Ação]]&Financeiro[[#This Row],[Fonte]] -> SM-25-2027FEHIDRO - CFURH | B26: =IFERROR(INDEX(IdentAcoes[ID Ação],MATCH(0,INDEX(--(COUNTIF(B$1:B25,IdentAcoes[ID Ação])=IdentAcoes[[Quantidade de fontes de recursos ]]),0),0)),"") -> SM-25-2027 | C26: =IFERROR(INDEX(IdentAcoes[Descrição da ação],MATCH(0,INDEX(--(COUNTIF(C$1:C25,IdentAcoes[Descrição da ação])=IdentAcoes[[Quantidade de fontes de recursos ]]),0),0)),"") -> T.7.1.1. Projetos (básicos e/ou executivos) de microdrenagem (sarjetas, guias, bocas de lobo, poços de visita, galerias, pavimentação com material drenante entre outros) no município de Campos do Jordão. | D26: FEHIDRO - CFURH | E26: 0 | F26: 0 | H26: 0 | K26: 300000 | N26: 300000
A27: =Financeiro[[#This Row],[ID Ação]]&Financeiro[[#This Row],[Fonte]] -> SM-26-2024FEHIDRO - CFURH | B27: =IFERROR(INDEX(IdentAcoes[ID Ação],MATCH(0,INDEX(--(COUNTIF(B$1:B26,IdentAcoes[ID Ação])=IdentAcoes[[Quantidade de fontes de recursos ]]),0),0)),"") -> SM-26-2024 | C27: =IFERROR(INDEX(IdentAcoes[Descrição da ação],MATCH(0,INDEX(--(COUNTIF(C$1:C26,IdentAcoes[Descrição da ação])=IdentAcoes[[Quantidade de fontes de recursos ]]),0),0)),"") -> T.7.1.3. Projetos (básicos e/ou executivos) de macrodrenagem (canalizações, retificações, travessias entre outros) no município de Campos do Jordão. | D27: FEHIDRO - CFURH | E27: 450000 | F27: 531819.72 | H27: 0 | K27: 0 | N27: 0
A28: =Financeiro[[#This Row],[ID Ação]]&Financeiro[[#This Row],[Fonte]] -> SM-27-2026FEHIDRO - CFURH | B28: =IFERROR(INDEX(IdentAcoes[ID Ação],MATCH(0,INDEX(--(COUNTIF(B$1:B27,IdentAcoes[ID Ação])=IdentAcoes[[Quantidade de fontes de recursos ]]),0),0)),"") -> SM-27-2026 | C28: =IFERROR(INDEX(IdentAcoes[Descrição da ação],MATCH(0,INDEX(--(COUNTIF(C$1:C27,IdentAcoes[Descrição da ação])=IdentAcoes[[Quantidade de fontes de recursos ]]),0),0)),"") -> T.7.1.4. Obras/serviços de macrodrenagem (canalizações, retificações, travessias entre outros) no município de Campos do Jordão | D28: FEHIDRO - CFURH | E28: 0 | F28: 0 | H28: 400000 | K28: 0 | N28: 0
A29: =Financeiro[[#This Row],[ID Ação]]&Financeiro[[#This Row],[Fonte]] -> SM-28-2027FEHIDRO - CFURH | B29: =IFERROR(INDEX(IdentAcoes[ID Ação],MATCH(0,INDEX(--(COUNTIF(B$1:B28,IdentAcoes[ID Ação])=IdentAcoes[[Quantidade de fontes de recursos ]]),0),0)),"") -> SM-28-2027 | C29: =IFERROR(INDEX(IdentAcoes[Descrição da ação],MATCH(0,INDEX(--(COUNTIF(C$1:C28,IdentAcoes[Descrição da ação])=IdentAcoes[[Quantidade de fontes de recursos ]]),0),0)),"") -> T.7.1.2. Obras/serviços de microdrenagem (sarjetas, guias, bocas de lobo, poços de visita, galerias, pavimentação com material drenante entre outros) no município de São Bento do Sapucaí. | D29: FEHIDRO - CFURH | E29: 0 | F29: 0 | H29: 0 | K29: 300000 | N29: 0
A30: =Financeiro[[#This Row],[ID Ação]]&Financeiro[[#This Row],[Fonte]] -> SM-29-2027FEHIDRO - CFURH | B30: =IFERROR(INDEX(IdentAcoes[ID Ação],MATCH(0,INDEX(--(COUNTIF(B$1:B29,IdentAcoes[ID Ação])=IdentAcoes[[Quantidade de fontes de recursos ]]),0),0)),"") -> SM-29-2027 | C30: =IFERROR(INDEX(IdentAcoes[Descrição da ação],MATCH(0,INDEX(--(COUNTIF(C$1:C29,IdentAcoes[Descrição da ação])=IdentAcoes[[Quantidade de fontes de recursos ]]),0),0)),"") -> T.7.1.2. Obras/serviços de microdrenagem (sarjetas, guias, bocas de lobo, poços de visita, galerias, pavimentação com material drenante entre outros) no município de Santo Antonio do Pinhal. | D30: FEHIDRO - CFURH | E30: 0 | F30: 0 | H30: 0 | K30: 300000 | N30: 0
A31: =Financeiro[[#This Row],[ID Ação]]&Financeiro[[#This Row],[Fonte]] -> SM-30-2024FEHIDRO - CFURH | B31: =IFERROR(INDEX(IdentAcoes[ID Ação],MATCH(0,INDEX(--(COUNTIF(B$1:B30,IdentAcoes[ID Ação])=IdentAcoes[[Quantidade de fontes de recursos ]]),0),0)),"") -> SM-30-2024 | C31: =IFERROR(INDEX(IdentAcoes[Descrição da ação],MATCH(0,INDEX(--(COUNTIF(C$1:C30,IdentAcoes[Descrição da ação])=IdentAcoes[[Quantidade de fontes de recursos ]]),0),0)),"") -> T.8.3.1. Campanha educativa voltada para a conservação e gestão dos recursos hídricos | D31: FEHIDRO - CFURH | E31: 180000 | F31: 371999.96 | H31: 0 | K31: 0 | N31: 0
A32: =Financeiro[[#This Row],[ID Ação]]&Financeiro[[#This Row],[Fonte]] -> SM-31-2024FEHIDRO - CFURH | B32: =IFERROR(INDEX(IdentAcoes[ID Ação],MATCH(0,INDEX(--(COUNTIF(B$1:B31,IdentAcoes[ID Ação])=IdentAcoes[[Quantidade de fontes de recursos ]]),0),0)),"") -> SM-31-2024 | C32: =IFERROR(INDEX(IdentAcoes[Descrição da ação],MATCH(0,INDEX(--(COUNTIF(C$1:C31,IdentAcoes[Descrição da ação])=IdentAcoes[[Quantidade de fontes de recursos ]]),0),0)),"") -> T.8.3.2. Serviços afetos à elaboração e divulgação de instrumentos de comunicação social | D32: FEHIDRO - CFURH | E32: 180000 | F32: 324790 | H32: 0 | K32: 0 | N32: 350000
A33: =Financeiro[[#This Row],[ID Ação]]&Financeiro[[#This Row],[Fonte]] -> SM-32-2024FEHIDRO - CFURH | B33: =IFERROR(INDEX(IdentAcoes[ID Ação],MATCH(0,INDEX(--(COUNTIF(B$1:B32,IdentAcoes[ID Ação])=IdentAcoes[[Quantidade de fontes de recursos ]]),0),0)),"") -> SM-32-2024 | C33: =IFERROR(INDEX(IdentAcoes[Descrição da ação],MATCH(0,INDEX(--(COUNTIF(C$1:C32,IdentAcoes[Descrição da ação])=IdentAcoes[[Quantidade de fontes de recursos ]]),0),0)),"") -> 1.2.19 Revisão do Plano de Gestão Integrada de Resíduos sólidos de Santo Antonio do Pinhal. | D33: FEHIDRO - CFURH | E33: 0 | F33: 199865.56 | H33: 0 | K33: 0 | N33: 0
A34: =Financeiro[[#This Row],[ID Ação]]&Financeiro[[#This Row],[Fonte]] -> SM-33-2024FEHIDRO - CFURH | B34: =IFERROR(INDEX(IdentAcoes[ID Ação],MATCH(0,INDEX(--(COUNTIF(B$1:B33,IdentAcoes[ID Ação])=IdentAcoes[[Quantidade de fontes de recursos ]]),0),0)),"") -> SM-33-2024 | C34: =IFERROR(INDEX(IdentAcoes[Descrição da ação],MATCH(0,INDEX(--(COUNTIF(C$1:C33,IdentAcoes[Descrição da ação])=IdentAcoes[[Quantidade de fontes de recursos ]]),0),0)),"") -> 1.2.19 Revisão do Plano de Gestão Integrada de Resíduos sólidos de São Bento do Sapucaí | D34: FEHIDRO - CFURH | E34: 0 | F34: 199865.56 | H34: 0 | K34: 0 | N34: 0
A35: =Financeiro[[#This Row],[ID Ação]]&Financeiro[[#This Row],[Fonte]] -> SM-34-2024FEHIDRO - CFURH | B35: =IFERROR(INDEX(IdentAcoes[ID Ação],MATCH(0,INDEX(--(COUNTIF(B$1:B34,IdentAcoes[ID Ação])=IdentAcoes[[Quantidade de fontes de recursos ]]),0),0)),"") -> SM-34-2024 | C35: =IFERROR(INDEX(IdentAcoes[Descrição da ação],MATCH(0,INDEX(--(COUNTIF(C$1:C34,IdentAcoes[Descrição da ação])=IdentAcoes[[Quantidade de fontes de recursos ]]),0),0)),"") -> T.4.2.13. Projeto executivo de Pagamento por Serviços Ambientais relacionados à água | D35: FEHIDRO - CFURH | E35: 0 | F35: 195807.08 | H35: 0 | K35: 0 | N35: 0
A36: =Financeiro[[#This Row],[ID Ação]]&Financeiro[[#This Row],[Fonte]] -> SM-35-2025FEHIDRO - CFURH | B36: =IFERROR(INDEX(IdentAcoes[ID Ação],MATCH(0,INDEX(--(COUNTIF(B$1:B35,IdentAcoes[ID Ação])=IdentAcoes[[Quantidade de fontes de recursos ]]),0),0)),"") -> SM-35-2025 | C36: =IFERROR(INDEX(IdentAcoes[Descrição da ação],MATCH(0,INDEX(--(COUNTIF(C$1:C35,IdentAcoes[Descrição da ação])=IdentAcoes[[Quantidade de fontes de recursos ]]),0),0)),"") -> T.1.2.11. Estudo, levantamento, diagnóstico para subsidiar projetos de PSA | D36: FEHIDRO - CFURH | E36: 0 | F36: 0 | H36: 200000 | K36: 0 | N36: 0
A37: =Financeiro[[#This Row],[ID Ação]]&Financeiro[[#This Row],[Fonte]] -> SM-36-2026FEHIDRO - CFURH | B37: =IFERROR(INDEX(IdentAcoes[ID Ação],MATCH(0,INDEX(--(COUNTIF(B$1:B36,IdentAcoes[ID Ação])=IdentAcoes[[Quantidade de fontes de recursos ]]),0),0)),"") -> SM-36-2026 | C37: =IFERROR(INDEX(IdentAcoes[Descrição da ação],MATCH(0,INDEX(--(COUNTIF(C$1:C36,IdentAcoes[Descrição da ação])=IdentAcoes[[Quantidade de fontes de recursos ]]),0),0)),"") -> T.1.2.16 Planejamento territorial com foco na conservação, proteção, recuperação ou uso dos recur-sos hídricos -Sao Bento do Sapucai | D37: FEHIDRO - CFURH | E37: 0 | F37: 0 | H37: 0 | K37: 300000 | N37: 0
A38: =Financeiro[[#This Row],[ID Ação]]&Financeiro[[#This Row],[Fonte]] -> SM-37-2026FEHIDRO - CFURH | B38: =IFERROR(INDEX(IdentAcoes[ID Ação],MATCH(0,INDEX(--(COUNTIF(B$1:B37,IdentAcoes[ID Ação])=IdentAcoes[[Quantidade de fontes de recursos ]]),0),0)),"") -> SM-37-2026 | C38: =IFERROR(INDEX(IdentAcoes[Descrição da ação],MATCH(0,INDEX(--(COUNTIF(C$1:C37,IdentAcoes[Descrição da ação])=IdentAcoes[[Quantidade de fontes de recursos ]]),0),0)),"") -> T.1.2.16 Planejamento territorial com foco na conservação, proteção, recuperação ou uso dos recur-sos hídricos -Santo Antonio do Pinhal | D38: FEHIDRO - CFURH | E38: 0 | F38: 0 | H38: 0 | K38: 300000 | N38: 0
A39: =Financeiro[[#This Row],[ID Ação]]&Financeiro[[#This Row],[Fonte]] -> SM-38-2025FEHIDRO - CFURH | B39: =IFERROR(INDEX(IdentAcoes[ID Ação],MATCH(0,INDEX(--(COUNTIF(B$1:B38,IdentAcoes[ID Ação])=IdentAcoes[[Quantidade de fontes de recursos ]]),0),0)),"") -> SM-38-2025 | C39: =IFERROR(INDEX(IdentAcoes[Descrição da ação],MATCH(0,INDEX(--(COUNTIF(C$1:C38,IdentAcoes[Descrição da ação])=IdentAcoes[[Quantidade de fontes de recursos ]]),0),0)),"") -> T.3.2.1. Projetos (básicos e/ou executivos) de recuperação de áreas contaminadas | D39: FEHIDRO - CFURH | E39: 0 | F39: 0 | H39: 150000 | K39: 0 | N39: 0
A40: =Financeiro[[#This Row],[ID Ação]]&Financeiro[[#This Row],[Fonte]] -> SM-39-2026FEHIDRO - CFURH | B40: =IFERROR(INDEX(IdentAcoes[ID Ação],MATCH(0,INDEX(--(COUNTIF(B$1:B39,IdentAcoes[ID Ação])=IdentAcoes[[Quantidade de fontes de recursos ]]),0),0)),"") -> SM-39-2026 | C40: =IFERROR(INDEX(IdentAcoes[Descrição da ação],MATCH(0,INDEX(--(COUNTIF(C$1:C39,IdentAcoes[Descrição da ação])=IdentAcoes[[Quantidade de fontes de recursos ]]),0),0)),"") -> T.3.3.1 – Projeto ( básico ou executivo) de aterro sanitário para disposição de resíduos solidos domiciliares (continuidade Revisão Plano de Resíduos Sólidos São Bento do Sapucaí) | D40: FEHIDRO - CFURH | E40: 0 | F40: 0 | H40: 0 | K40: 100000 | N40: 0
A41: =Financeiro[[#This Row],[ID Ação]]&Financeiro[[#This Row],[Fonte]] -> SM-40-2027FEHIDRO - CFURH | B41: =IFERROR(INDEX(IdentAcoes[ID Ação],MATCH(0,INDEX(--(COUNTIF(B$1:B40,IdentAcoes[ID Ação])=IdentAcoes[[Quantidade de fontes de recursos ]]),0),0)),"") -> SM-40-2027 | C41: =IFERROR(INDEX(IdentAcoes[Descrição da ação],MATCH(0,INDEX(--(COUNTIF(C$1:C40,IdentAcoes[Descrição da ação])=IdentAcoes[[Quantidade de fontes de recursos ]]),0),0)),"") -> T.3.3.1 – Projeto ( básico ou executivo) de aterro sanitário para disposição de resíduos solidos domiciliares (continuidade Revisão Plano de Resíduos Sólidos - Santo Antonio do Pinhal) | D41: FEHIDRO - CFURH | E41: 0 | F41: 0 | H41: 0 | K41: 0 | N41: 100000
A42: =Financeiro[[#This Row],[ID Ação]]&Financeiro[[#This Row],[Fonte]] -> SM-41-2027FEHIDRO - CFURH | B42: =IFERROR(INDEX(IdentAcoes[ID Ação],MATCH(0,INDEX(--(COUNTIF(B$1:B41,IdentAcoes[ID Ação])=IdentAcoes[[Quantidade de fontes de recursos ]]),0),0)),"") -> SM-41-2027 | C42: =IFERROR(INDEX(IdentAcoes[Descrição da ação],MATCH(0,INDEX(--(COUNTIF(C$1:C41,IdentAcoes[Descrição da ação])=IdentAcoes[[Quantidade de fontes de recursos ]]),0),0)),"") -> T.3.3.4 – Implantação de unidade de tratamento de residuos sólidos – Sao Bento do Sapucaí (compostagem, reciclagem ou incineração) associado ou não a undade de transbordo | D42: FEHIDRO - CFURH | E42: 0 | F42: 0 | H42: 0 | K42: 0 | N42: 200000
A43: =Financeiro[[#This Row],[ID Ação]]&Financeiro[[#This Row],[Fonte]] -> SM-42-2027FEHIDRO - CFURH | B43: =IFERROR(INDEX(IdentAcoes[ID Ação],MATCH(0,INDEX(--(COUNTIF(B$1:B42,IdentAcoes[ID Ação])=IdentAcoes[[Quantidade de fontes de recursos ]]),0),0)),"") -> SM-42-2027 | C43: =IFERROR(INDEX(IdentAcoes[Descrição da ação],MATCH(0,INDEX(--(COUNTIF(C$1:C42,IdentAcoes[Descrição da ação])=IdentAcoes[[Quantidade de fontes de recursos ]]),0),0)),"") -> T.3.3.4 – Implantação de unidade de tratamento de residuos sólidos – Santo Antonio do Pinhal (compostagem, reciclagem ou incineração) associado ou não a undade de transbordo | D43: FEHIDRO - CFURH | E43: 0 | F43: 0 | H43: 0 | K43: 0 | N43: 200000
A44: =Financeiro[[#This Row],[ID Ação]]&Financeiro[[#This Row],[Fonte]] -> SM-43-2026FEHIDRO - CFURH | B44: =IFERROR(INDEX(IdentAcoes[ID Ação],MATCH(0,INDEX(--(COUNTIF(B$1:B43,IdentAcoes[ID Ação])=IdentAcoes[[Quantidade de fontes de recursos ]]),0),0)),"") -> SM-43-2026 | C44: =IFERROR(INDEX(IdentAcoes[Descrição da ação],MATCH(0,INDEX(--(COUNTIF(C$1:C43,IdentAcoes[Descrição da ação])=IdentAcoes[[Quantidade de fontes de recursos ]]),0),0)),"") -> T.4.1.5 Projeto ( Básico ou executivo) de desassoreamento de curso dágua - Sao Bento do Sapucaí | D44: FEHIDRO - CFURH | E44: 0 | F44: 0 | H44: 0 | K44: 150000 | N44: 0
A45: =Financeiro[[#This Row],[ID Ação]]&Financeiro[[#This Row],[Fonte]] -> SM-44-2026FEHIDRO - CFURH | B45: =IFERROR(INDEX(IdentAcoes[ID Ação],MATCH(0,INDEX(--(COUNTIF(B$1:B44,IdentAcoes[ID Ação])=IdentAcoes[[Quantidade de fontes de recursos ]]),0),0)),"") -> SM-44-2026 | C45: =IFERROR(INDEX(IdentAcoes[Descrição da ação],MATCH(0,INDEX(--(COUNTIF(C$1:C44,IdentAcoes[Descrição da ação])=IdentAcoes[[Quantidade de fontes de recursos ]]),0),0)),"") -> T.4.1.5 Projeto ( Básico ou executivo) de desassoreamento de curso dágua - Santo Antonio do Pinhal | D45: FEHIDRO - CFURH | E45: 0 | F45: 0 | H45: 0 | K45: 150000 | N45: 0
A46: =Financeiro[[#This Row],[ID Ação]]&Financeiro[[#This Row],[Fonte]] -> SM-45-2025FEHIDRO - CFURH | B46: =IFERROR(INDEX(IdentAcoes[ID Ação],MATCH(0,INDEX(--(COUNTIF(B$1:B45,IdentAcoes[ID Ação])=IdentAcoes[[Quantidade de fontes de recursos ]]),0),0)),"") -> SM-45-2025 | C46: =IFERROR(INDEX(IdentAcoes[Descrição da ação],MATCH(0,INDEX(--(COUNTIF(C$1:C45,IdentAcoes[Descrição da ação])=IdentAcoes[[Quantidade de fontes de recursos ]]),0),0)),"") -> T.4.2.11 Projeto Executivo de aumento de áreas permeáveis e/ou redução de escoamento superficial por meio de implantacao de estrutura verde - parque linear | D46: FEHIDRO - CFURH | E46: 0 | F46: 0 | H46: 150000 | K46: 0 | N46: 0
A47: =Financeiro[[#This Row],[ID Ação]]&Financeiro[[#This Row],[Fonte]] -> SM-46-2025FEHIDRO - CFURH | B47: =IFERROR(INDEX(IdentAcoes[ID Ação],MATCH(0,INDEX(--(COUNTIF(B$1:B46,IdentAcoes[ID Ação])=IdentAcoes[[Quantidade de fontes de recursos ]]),0),0)),"") -> SM-46-2025 | C47: =IFERROR(INDEX(IdentAcoes[Descrição da ação],MATCH(0,INDEX(--(COUNTIF(C$1:C46,IdentAcoes[Descrição da ação])=IdentAcoes[[Quantidade de fontes de recursos ]]),0),0)),"") -> T.8.3.1. Campanha educativa voltada para a conservação e gestão dos recursos hídricos - continuidade Plano Educação Ambiental | D47: FEHIDRO - CFURH | E47: 0 | F47: 0 | H47: 300000 | K47: 0 | N47: 0
A48: =Financeiro[[#This Row],[ID Ação]]&Financeiro[[#This Row],[Fonte]] -> SM-47-2024FEHIDRO - Cobrança estadual | B48: =IFERROR(INDEX(IdentAcoes[ID Ação],MATCH(0,INDEX(--(COUNTIF(B$1:B47,IdentAcoes[ID Ação])=IdentAcoes[[Quantidade de fontes de recursos ]]),0),0)),"") -> SM-47-2024 | C48: =IFERROR(INDEX(IdentAcoes[Descrição da ação],MATCH(0,INDEX(--(COUNTIF(C$1:C47,IdentAcoes[Descrição da ação])=IdentAcoes[[Quantidade de fontes de recursos ]]),0),0)),"") -> T.1.2.2 . Diagnóstico qualitativo e/ou quantitativo de recursos hídricos superficiais e/ou subterrâneos nas sub bacias Perdizes,Bau,Serrano e Prata | D48: FEHIDRO - Cobrança estadual | E48: 0 | F48: 321500 | H48: 0 | K48: 0 | N48: 0
A49: =Financeiro[[#This Row],[ID Ação]]&Financeiro[[#This Row],[Fonte]] ->  | B49: =IFERROR(INDEX(IdentAcoes[ID Ação],MATCH(0,INDEX(--(COUNTIF(B$1:B48,IdentAcoes[ID Ação])=IdentAcoes[[Quantidade de fontes de recursos ]]),0),0)),"") ->  | C49: =IFERROR(INDEX(IdentAcoes[Descrição da ação],MATCH(0,INDEX(--(COUNTIF(C$1:C48,IdentAcoes[Descrição da ação])=IdentAcoes[[Quantidade de fontes de recursos ]]),0),0)),"") -> 
A50: =Financeiro[[#This Row],[ID Ação]]&Financeiro[[#This Row],[Fonte]] ->  | B50: =IFERROR(INDEX(IdentAcoes[ID Ação],MATCH(0,INDEX(--(COUNTIF(B$1:B49,IdentAcoes[ID Ação])=IdentAcoes[[Quantidade de fontes de recursos ]]),0),0)),"") ->  | C50: =IFERROR(INDEX(IdentAcoes[Descrição da ação],MATCH(0,INDEX(--(COUNTIF(C$1:C49,IdentAcoes[Descrição da ação])=IdentAcoes[[Quantidade de fontes de recursos ]]),0),0)),"") -> 

Sheet PAPI 2024-2027
G1: R$ Planejado
A2: id_ação_Fonte_oculta | B2: ID Ação | C2: Descrição da ação | D2: Meta | E2: Fonte | F2: SubPDC | G2: 2024 | H2: 2025 | I2: 2026 | J2: 2027 | K2: Total | L2: Prioridade do PDC | M2: Segmento do executor | N2: Área de abrangência | O2: Nome da área de abrangência
A3: =IF(INDEX(Financeiro[],,1)=0,"",(INDEX(Financeiro[],,1))) -> SM-01-2027FEHIDRO - CFURH | B3: =IF(INDEX(Financeiro[],,2)=0,"",(INDEX(Financeiro[],,2))) -> SM-01-2027 | C3: =INDEX(Financeiro[Descrição da ação],MATCH(B3,Financeiro[ID Ação], 0)) -> T.1.1.1. Elaboração de mapa de uso e ocupação do solo com foco na conservação, proteção, recuperação ou uso dos recursos hídricos para os município de São Bento do Sapucaí. | D3: =IF(INDEX('Acompanhamento das metas 24-27'!$C$2:$C$50,MATCH(B3,'Acompanhamento das metas 24-27'!$A$2:$A$50,0))<>0,INDEX('Acompanhamento das metas 24-27'!$C$2:$C$50,MATCH(B3,'Acompanhamento das metas 24-27'!$A$2:$A$50,0)),"") -> Atualização da legislação de zoneamento dos Município de São Bento do Sapucaí. | E3: =IF(VLOOKUP(A3,Financeiro[[id_ação_Fonte_oculta]:[R$ Executado (2027)]],4,FALSE)=0,"",VLOOKUP(A3,Financeiro[[id_ação_Fonte_oculta]:[R$ Executado (2027)]],4,FALSE)) -> FEHIDRO - CFURH | F3: =IFERROR(INDEX(IdentAcoes[SubPDC],MATCH(B3,IdentAcoes[ID Ação],0)),"") -> 1.1 - Legislação | G3: =IF(VLOOKUP(A3,Financeiro[[id_ação_Fonte_oculta]:[R$ Executado (2027)]],4,FALSE)=0,"",VLOOKUP(A3,Financeiro[[id_ação_Fonte_oculta]:[R$ Executado (2027)]],5,FALSE)) -> 160000 | H3: =IF(VLOOKUP(A3,Financeiro[[id_ação_Fonte_oculta]:[R$ Executado (2027)]],4,FALSE)=0,"",VLOOKUP(A3,Financeiro[[id_ação_Fonte_oculta]:[R$ Executado (2027)]],8,FALSE)) -> 0 | I3: =IF(VLOOKUP(A3,Financeiro[[id_ação_Fonte_oculta]:[R$ Executado (2027)]],4,FALSE)=0,"",VLOOKUP(A3,Financeiro[[id_ação_Fonte_oculta]:[R$ Executado (2027)]],11,FALSE)) -> 0 | J3: =IF(VLOOKUP(A3,Financeiro[[id_ação_Fonte_oculta]:[R$ Executado (2027)]],4,FALSE)=0,"",VLOOKUP(A3,Financeiro[[id_ação_Fonte_oculta]:[R$ Executado (2027)]],14,FALSE)) -> 0 | K3: =SUM(G3:J3) -> 160000 | L3: =IFERROR(INDEX(IdentAcoes[Prioridade do PDC],MATCH($B3,IdentAcoes[ID Ação],0)),"") -> PDC 1 e 2 | M3: =IFERROR(INDEX(IdentAcoes[Segmento do executor],MATCH($B3,IdentAcoes[ID Ação],0)),"") -> Sociedade Civil | N3: =IFERROR(INDEX(IdentAcoes[Área de abrangência],MATCH($B3,IdentAcoes[ID Ação],0)),"") -> Município | O3: =IFERROR(INDEX(IdentAcoes[Detalhamento da área de abrangência],MATCH($B3,IdentAcoes[ID Ação],0)),"") -> Município São Bento do Sapucaí
A4: SM-02-2027FEHIDRO - CFURH | B4: SM-02-2027 | C4: =INDEX(Financeiro[Descrição da ação],MATCH(B4,Financeiro[ID Ação], 0)) -> T.1.1.1. Elaboração de mapa de uso e ocupação do solo com foco na conservação, proteção, recuperação ou uso dos recursos hídricos para os município de Santo Antônio do Pinhal. | D4: =IF(INDEX('Acompanhamento das metas 24-27'!$C$2:$C$50,MATCH(B4,'Acompanhamento das metas 24-27'!$A$2:$A$50,0))<>0,INDEX('Acompanhamento das metas 24-27'!$C$2:$C$50,MATCH(B4,'Acompanhamento das metas 24-27'!$A$2:$A$50,0)),"") -> Atualização da legislação de zoneamento dos Município de Santo Antonio do Pinhal. | E4: =IF(VLOOKUP(A4,Financeiro[[id_ação_Fonte_oculta]:[R$ Executado (2027)]],4,FALSE)=0,"",VLOOKUP(A4,Financeiro[[id_ação_Fonte_oculta]:[R$ Executado (2027)]],4,FALSE)) -> FEHIDRO - CFURH | F4: =IFERROR(INDEX(IdentAcoes[SubPDC],MATCH(B4,IdentAcoes[ID Ação],0)),"") -> 1.1 - Legislação | G4: =IF(VLOOKUP(A4,Financeiro[[id_ação_Fonte_oculta]:[R$ Executado (2027)]],4,FALSE)=0,"",VLOOKUP(A4,Financeiro[[id_ação_Fonte_oculta]:[R$ Executado (2027)]],5,FALSE)) -> 160000 | H4: =IF(VLOOKUP(A4,Financeiro[[id_ação_Fonte_oculta]:[R$ Executado (2027)]],4,FALSE)=0,"",VLOOKUP(A4,Financeiro[[id_ação_Fonte_oculta]:[R$ Executado (2027)]],8,FALSE)) -> 0 | I4: =IF(VLOOKUP(A4,Financeiro[[id_ação_Fonte_oculta]:[R$ Executado (2027)]],4,FALSE)=0,"",VLOOKUP(A4,Financeiro[[id_ação_Fonte_oculta]:[R$ Executado (2027)]],11,FALSE)) -> 0 | J4: =IF(VLOOKUP(A4,Financeiro[[id_ação_Fonte_oculta]:[R$ Executado (2027)]],4,FALSE)=0,"",VLOOKUP(A4,Financeiro[[id_ação_Fonte_oculta]:[R$ Executado (2027)]],14,FALSE)) -> 0 | K4: =SUM(G4:J4) -> 160000 | L4: =IFERROR(INDEX(IdentAcoes[Prioridade do PDC],MATCH(B4,IdentAcoes[ID Ação],0)),"") -> PDC 1 e 2 | M4: =IFERROR(INDEX(IdentAcoes[Segmento do executor],MATCH($B4,IdentAcoes[ID Ação],0)),"") -> Sociedade Civil | N4: =IFERROR(INDEX(IdentAcoes[Área de abrangência],MATCH($B4,IdentAcoes[ID Ação],0)),"") -> Município | O4: =IFERROR(INDEX(IdentAcoes[Detalhamento da área de abrangência],MATCH($B4,IdentAcoes[ID Ação],0)),"") -> Município Santo Antonio do Pinhal
A5: SM-03-2027FEHIDRO - CFURH | B5: SM-03-2027 | C5: =INDEX(Financeiro[Descrição da ação],MATCH(B5,Financeiro[ID Ação], 0)) -> T.1.1.1. Elaboração de mapa de uso e ocupação do solo com foco na conservação, proteção, recuperação ou uso dos recursos hídricos para os município de Campos Jordao | D5: =IF(INDEX('Acompanhamento das metas 24-27'!$C$2:$C$50,MATCH(B5,'Acompanhamento das metas 24-27'!$A$2:$A$50,0))<>0,INDEX('Acompanhamento das metas 24-27'!$C$2:$C$50,MATCH(B5,'Acompanhamento das metas 24-27'!$A$2:$A$50,0)),"") -> Atualização da legislação de zoneamento dos Município Campos Jordao | E5: =IF(VLOOKUP(A5,Financeiro[[id_ação_Fonte_oculta]:[R$ Executado (2027)]],4,FALSE)=0,"",VLOOKUP(A5,Financeiro[[id_ação_Fonte_oculta]:[R$ Executado (2027)]],4,FALSE)) -> FEHIDRO - CFURH | F5: =IFERROR(INDEX(IdentAcoes[SubPDC],MATCH(B5,IdentAcoes[ID Ação],0)),"") -> 1.1 - Legislação | G5: =IF(VLOOKUP(A5,Financeiro[[id_ação_Fonte_oculta]:[R$ Executado (2027)]],4,FALSE)=0,"",VLOOKUP(A5,Financeiro[[id_ação_Fonte_oculta]:[R$ Executado (2027)]],5,FALSE)) -> 160000 | H5: =IF(VLOOKUP(A5,Financeiro[[id_ação_Fonte_oculta]:[R$ Executado (2027)]],4,FALSE)=0,"",VLOOKUP(A5,Financeiro[[id_ação_Fonte_oculta]:[R$ Executado (2027)]],8,FALSE)) -> 0 | I5: =IF(VLOOKUP(A5,Financeiro[[id_ação_Fonte_oculta]:[R$ Executado (2027)]],4,FALSE)=0,"",VLOOKUP(A5,Financeiro[[id_ação_Fonte_oculta]:[R$ Executado (2027)]],11,FALSE)) -> 0 | J5: =IF(VLOOKUP(A5,Financeiro[[id_ação_Fonte_oculta]:[R$ Executado (2027)]],4,FALSE)=0,"",VLOOKUP(A5,Financeiro[[id_ação_Fonte_oculta]:[R$ Executado (2027)]],14,FALSE)) -> 0 | K5: 160000 | L5: =IFERROR(INDEX(IdentAcoes[Prioridade do PDC],MATCH(B5,IdentAcoes[ID Ação],0)),"") -> PDC 1 e 2 | M5: =IFERROR(INDEX(IdentAcoes[Segmento do executor],MATCH($B5,IdentAcoes[ID Ação],0)),"") -> Sociedade Civil | N5: =IFERROR(INDEX(IdentAcoes[Área de abrangência],MATCH($B5,IdentAcoes[ID Ação],0)),"") -> Município | O5: =IFERROR(INDEX(IdentAcoes[Detalhamento da área de abrangência],MATCH($B5,IdentAcoes[ID Ação],0)),"") -> Município Santo Antonio do Pinhal
A6: SM-04-2027FEHIDRO - CFURH | B6: SM-04-2027 | C6: =INDEX(Financeiro[Descrição da ação],MATCH(B6,Financeiro[ID Ação], 0)) -> T.1.2.2 . Diagnóstico qualitativo e/ou quantitativo de recursos hídricos superficiais e/ou subterrâneos na sub-bacia Sapucaí Guaçu. | D6: =IF(INDEX('Acompanhamento das metas 24-27'!$C$2:$C$50,MATCH(B6,'Acompanhamento das metas 24-27'!$A$2:$A$50,0))<>0,INDEX('Acompanhamento das metas 24-27'!$C$2:$C$50,MATCH(B6,'Acompanhamento das metas 24-27'!$A$2:$A$50,0)),"") -> Obter a Análise da Situação dos recursos hídricos da Sub Bacia do Rio Sapucaí Guaçu para planejamento de futuras ações e investimentos na Sub Bacia. | E6: =IF(VLOOKUP(A6,Financeiro[[id_ação_Fonte_oculta]:[R$ Executado (2027)]],4,FALSE)=0,"",VLOOKUP(A6,Financeiro[[id_ação_Fonte_oculta]:[R$ Executado (2027)]],4,FALSE)) -> FEHIDRO - CFURH | F6: =IFERROR(INDEX(IdentAcoes[SubPDC],MATCH(B6,IdentAcoes[ID Ação],0)),"") -> 1.2 - Planejamento | G6: =IF(VLOOKUP(A6,Financeiro[[id_ação_Fonte_oculta]:[R$ Executado (2027)]],4,FALSE)=0,"",VLOOKUP(A6,Financeiro[[id_ação_Fonte_oculta]:[R$ Executado (2027)]],5,FALSE)) -> 0 | H6: =IF(VLOOKUP(A6,Financeiro[[id_ação_Fonte_oculta]:[R$ Executado (2027)]],4,FALSE)=0,"",VLOOKUP(A6,Financeiro[[id_ação_Fonte_oculta]:[R$ Executado (2027)]],8,FALSE)) -> 0 | I6: =IF(VLOOKUP(A6,Financeiro[[id_ação_Fonte_oculta]:[R$ Executado (2027)]],4,FALSE)=0,"",VLOOKUP(A6,Financeiro[[id_ação_Fonte_oculta]:[R$ Executado (2027)]],11,FALSE)) -> 0 | J6: =IF(VLOOKUP(A6,Financeiro[[id_ação_Fonte_oculta]:[R$ Executado (2027)]],4,FALSE)=0,"",VLOOKUP(A6,Financeiro[[id_ação_Fonte_oculta]:[R$ Executado (2027)]],14,FALSE)) -> 200000 | K6: 200000 | L6: =IFERROR(INDEX(IdentAcoes[Prioridade do PDC],MATCH(B6,IdentAcoes[ID Ação],0)),"") -> PDC 1 e 2 | M6: =IFERROR(INDEX(IdentAcoes[Segmento do executor],MATCH($B6,IdentAcoes[ID Ação],0)),"") -> Sociedade Civil | N6: =IFERROR(INDEX(IdentAcoes[Área de abrangência],MATCH($B6,IdentAcoes[ID Ação],0)),"") -> Sub-bacia | O6: =IFERROR(INDEX(IdentAcoes[Detalhamento da área de abrangência],MATCH($B6,IdentAcoes[ID Ação],0)),"") -> Sub-bacia do Rio Sapucaí Guaçu
A7: SM-05-2026FEHIDRO - Cobrança estadual | B7: SM-05-2026 | C7: =INDEX(Financeiro[Descrição da ação],MATCH(B7,Financeiro[ID Ação], 0)) -> T.1.2.6 . Estudo, levantamento ou diagnóstico de saneamento básico e de abastecimento de água para os município de Campos de Jordao em comunidades afastado do centro urbano.(a definir: Matadouro,Melos,Campista,Descansópolis, Paque Ferradura ) | D7: =IF(INDEX('Acompanhamento das metas 24-27'!$C$2:$C$50,MATCH(B7,'Acompanhamento das metas 24-27'!$A$2:$A$50,0))<>0,INDEX('Acompanhamento das metas 24-27'!$C$2:$C$50,MATCH(B7,'Acompanhamento das metas 24-27'!$A$2:$A$50,0)),"") -> Obter dianóstico / situação do saneamento básico e abastecimento de água em comunidades afastadas do centro urbano no município de Campos do Jordao | E7: =IF(VLOOKUP(A7,Financeiro[[id_ação_Fonte_oculta]:[R$ Executado (2027)]],4,FALSE)=0,"",VLOOKUP(A7,Financeiro[[id_ação_Fonte_oculta]:[R$ Executado (2027)]],4,FALSE)) -> FEHIDRO - Cobrança estadual | F7: =IFERROR(INDEX(IdentAcoes[SubPDC],MATCH(B7,IdentAcoes[ID Ação],0)),"") -> 1.2 - Planejamento | G7: =IF(VLOOKUP(A7,Financeiro[[id_ação_Fonte_oculta]:[R$ Executado (2027)]],4,FALSE)=0,"",VLOOKUP(A7,Financeiro[[id_ação_Fonte_oculta]:[R$ Executado (2027)]],5,FALSE)) -> 0 | H7: =IF(VLOOKUP(A7,Financeiro[[id_ação_Fonte_oculta]:[R$ Executado (2027)]],4,FALSE)=0,"",VLOOKUP(A7,Financeiro[[id_ação_Fonte_oculta]:[R$ Executado (2027)]],8,FALSE)) -> 0 | I7: =IF(VLOOKUP(A7,Financeiro[[id_ação_Fonte_oculta]:[R$ Executado (2027)]],4,FALSE)=0,"",VLOOKUP(A7,Financeiro[[id_ação_Fonte_oculta]:[R$ Executado (2027)]],11,FALSE)) -> 0 | J7: =IF(VLOOKUP(A7,Financeiro[[id_ação_Fonte_oculta]:[R$ Executado (2027)]],4,FALSE)=0,"",VLOOKUP(A7,Financeiro[[id_ação_Fonte_oculta]:[R$ Executado (2027)]],14,FALSE)) -> 0 | K7: 0 | L7: =IFERROR(INDEX(IdentAcoes[Prioridade do PDC],MATCH(B7,IdentAcoes[ID Ação],0)),"") -> PDC 1 e 2 | M7: =IFERROR(INDEX(IdentAcoes[Segmento do executor],MATCH($B7,IdentAcoes[ID Ação],0)),"") -> Sociedade Civil | N7: =IFERROR(INDEX(IdentAcoes[Área de abrangência],MATCH($B7,IdentAcoes[ID Ação],0)),"") -> Área rural | O7: =IFERROR(INDEX(IdentAcoes[Detalhamento da área de abrangência],MATCH($B7,IdentAcoes[ID Ação],0)),"") -> Município Santo Antonio do Pinhal
A8: SM-06-2025FEHIDRO - CFURH | B8: SM-06-2025 | C8: =INDEX(Financeiro[Descrição da ação],MATCH(B8,Financeiro[ID Ação], 0)) -> T.1.2.6 . Estudo, levantamento ou diagnóstico de saneamento básico e de abastecimento de água para os município de Santo Antônio do Pinhal com foco nas comunidades da área rural. | D8: =IF(INDEX('Acompanhamento das metas 24-27'!$C$2:$C$50,MATCH(B8,'Acompanhamento das metas 24-27'!$A$2:$A$50,0))<>0,INDEX('Acompanhamento das metas 24-27'!$C$2:$C$50,MATCH(B8,'Acompanhamento das metas 24-27'!$A$2:$A$50,0)),"") -> Obter dianóstico / situação do saneamento básico e abastecimento de água na área rural de Santo Antonio do Pinhal para planejamento de ações e investimentos no município de Santo Antonio do Pinhal. | E8: =IF(VLOOKUP(A8,Financeiro[[id_ação_Fonte_oculta]:[R$ Executado (2027)]],4,FALSE)=0,"",VLOOKUP(A8,Financeiro[[id_ação_Fonte_oculta]:[R$ Executado (2027)]],4,FALSE)) -> FEHIDRO - CFURH | F8: =IFERROR(INDEX(IdentAcoes[SubPDC],MATCH(B8,IdentAcoes[ID Ação],0)),"") -> 1.2 - Planejamento | G8: =IF(VLOOKUP(A8,Financeiro[[id_ação_Fonte_oculta]:[R$ Executado (2027)]],4,FALSE)=0,"",VLOOKUP(A8,Financeiro[[id_ação_Fonte_oculta]:[R$ Executado (2027)]],5,FALSE)) -> 0 | H8: =IF(VLOOKUP(A8,Financeiro[[id_ação_Fonte_oculta]:[R$ Executado (2027)]],4,FALSE)=0,"",VLOOKUP(A8,Financeiro[[id_ação_Fonte_oculta]:[R$ Executado (2027)]],8,FALSE)) -> 0 | I8: =IF(VLOOKUP(A8,Financeiro[[id_ação_Fonte_oculta]:[R$ Executado (2027)]],4,FALSE)=0,"",VLOOKUP(A8,Financeiro[[id_ação_Fonte_oculta]:[R$ Executado (2027)]],11,FALSE)) -> 0 | J8: =IF(VLOOKUP(A8,Financeiro[[id_ação_Fonte_oculta]:[R$ Executado (2027)]],4,FALSE)=0,"",VLOOKUP(A8,Financeiro[[id_ação_Fonte_oculta]:[R$ Executado (2027)]],14,FALSE)) -> 0 | K8: 0 | L8: =IFERROR(INDEX(IdentAcoes[Prioridade do PDC],MATCH(B8,IdentAcoes[ID Ação],0)),"") -> PDC 1 e 2 | M8: =IFERROR(INDEX(IdentAcoes[Segmento do executor],MATCH($B8,IdentAcoes[ID Ação],0)),"") -> Sociedade Civil | N8: =IFERROR(INDEX(IdentAcoes[Área de abrangência],MATCH($B8,IdentAcoes[ID Ação],0)),"") -> Área rural | O8: =IFERROR(INDEX(IdentAcoes[Detalhamento da área de abrangência],MATCH($B8,IdentAcoes[ID Ação],0)),"") -> Município Santo Antonio do Pinhal
A9: SM-07-2024FEHIDRO - CFURH | B9: SM-07-2024 | C9: =INDEX(Financeiro[Descrição da ação],MATCH(B9,Financeiro[ID Ação], 0)) -> T.1.2.6 . Estudo, levantamento ou diagnóstico de saneamento básico e de abastecimento de água para os município de São Bento do Sapucaí com foco nas comunidades da área rural. | D9: =IF(INDEX('Acompanhamento das metas 24-27'!$C$2:$C$50,MATCH(B9,'Acompanhamento das metas 24-27'!$A$2:$A$50,0))<>0,INDEX('Acompanhamento das metas 24-27'!$C$2:$C$50,MATCH(B9,'Acompanhamento das metas 24-27'!$A$2:$A$50,0)),"") -> Obter dianóstico / situação do saneamento básico e abastecimento de água na área rural de São Bento do Sapucaí para planejamento de ações e investimentos no município de São Bento do Sapucaí. | E9: =IF(VLOOKUP(A9,Financeiro[[id_ação_Fonte_oculta]:[R$ Executado (2027)]],4,FALSE)=0,"",VLOOKUP(A9,Financeiro[[id_ação_Fonte_oculta]:[R$ Executado (2027)]],4,FALSE)) -> FEHIDRO - CFURH | F9: =IFERROR(INDEX(IdentAcoes[SubPDC],MATCH(B9,IdentAcoes[ID Ação],0)),"") -> 1.2 - Planejamento | G9: =IF(VLOOKUP(A9,Financeiro[[id_ação_Fonte_oculta]:[R$ Executado (2027)]],4,FALSE)=0,"",VLOOKUP(A9,Financeiro[[id_ação_Fonte_oculta]:[R$ Executado (2027)]],5,FALSE)) -> 0 | H9: =IF(VLOOKUP(A9,Financeiro[[id_ação_Fonte_oculta]:[R$ Executado (2027)]],4,FALSE)=0,"",VLOOKUP(A9,Financeiro[[id_ação_Fonte_oculta]:[R$ Executado (2027)]],8,FALSE)) -> 0 | I9: =IF(VLOOKUP(A9,Financeiro[[id_ação_Fonte_oculta]:[R$ Executado (2027)]],4,FALSE)=0,"",VLOOKUP(A9,Financeiro[[id_ação_Fonte_oculta]:[R$ Executado (2027)]],11,FALSE)) -> 0 | J9: =IF(VLOOKUP(A9,Financeiro[[id_ação_Fonte_oculta]:[R$ Executado (2027)]],4,FALSE)=0,"",VLOOKUP(A9,Financeiro[[id_ação_Fonte_oculta]:[R$ Executado (2027)]],14,FALSE)) -> 0 | K9: 0 | L9: =IFERROR(INDEX(IdentAcoes[Prioridade do PDC],MATCH(B9,IdentAcoes[ID Ação],0)),"") -> PDC 1 e 2 | M9: =IFERROR(INDEX(IdentAcoes[Segmento do executor],MATCH($B9,IdentAcoes[ID Ação],0)),"") -> Sociedade Civil | N9: =IFERROR(INDEX(IdentAcoes[Área de abrangência],MATCH($B9,IdentAcoes[ID Ação],0)),"") -> Área rural | O9: =IFERROR(INDEX(IdentAcoes[Detalhamento da área de abrangência],MATCH($B9,IdentAcoes[ID Ação],0)),"") -> Município São Bento do Sapucaí
A10: SM-08-2025FEHIDRO - Cobrança estadual | B10: SM-08-2025 | C10: =INDEX(Financeiro[Descrição da ação],MATCH(B10,Financeiro[ID Ação], 0)) -> T.1.2.19. Plano de drenagem para o município de Campos do Jordão | D10: =IF(INDEX('Acompanhamento das metas 24-27'!$C$2:$C$50,MATCH(B10,'Acompanhamento das metas 24-27'!$A$2:$A$50,0))<>0,INDEX('Acompanhamento das metas 24-27'!$C$2:$C$50,MATCH(B10,'Acompanhamento das metas 24-27'!$A$2:$A$50,0)),"") -> Elaborar a revisão do Plano de Drenagem do muncípio de Campos do Jordão | E10: =IF(VLOOKUP(A10,Financeiro[[id_ação_Fonte_oculta]:[R$ Executado (2027)]],4,FALSE)=0,"",VLOOKUP(A10,Financeiro[[id_ação_Fonte_oculta]:[R$ Executado (2027)]],4,FALSE)) -> FEHIDRO - Cobrança estadual | F10: =IFERROR(INDEX(IdentAcoes[SubPDC],MATCH(B10,IdentAcoes[ID Ação],0)),"") -> 1.2 - Planejamento | G10: =IF(VLOOKUP(A10,Financeiro[[id_ação_Fonte_oculta]:[R$ Executado (2027)]],4,FALSE)=0,"",VLOOKUP(A10,Financeiro[[id_ação_Fonte_oculta]:[R$ Executado (2027)]],5,FALSE)) -> 0 | H10: =IF(VLOOKUP(A10,Financeiro[[id_ação_Fonte_oculta]:[R$ Executado (2027)]],4,FALSE)=0,"",VLOOKUP(A10,Financeiro[[id_ação_Fonte_oculta]:[R$ Executado (2027)]],8,FALSE)) -> 250000 | I10: =IF(VLOOKUP(A10,Financeiro[[id_ação_Fonte_oculta]:[R$ Executado (2027)]],4,FALSE)=0,"",VLOOKUP(A10,Financeiro[[id_ação_Fonte_oculta]:[R$ Executado (2027)]],11,FALSE)) -> 0 | J10: =IF(VLOOKUP(A10,Financeiro[[id_ação_Fonte_oculta]:[R$ Executado (2027)]],4,FALSE)=0,"",VLOOKUP(A10,Financeiro[[id_ação_Fonte_oculta]:[R$ Executado (2027)]],14,FALSE)) -> 0 | K10: 250000 | L10: =IFERROR(INDEX(IdentAcoes[Prioridade do PDC],MATCH(B10,IdentAcoes[ID Ação],0)),"") -> PDC 1 e 2 | M10: =IFERROR(INDEX(IdentAcoes[Segmento do executor],MATCH($B10,IdentAcoes[ID Ação],0)),"") -> Município e Sociedade Civil | N10: =IFERROR(INDEX(IdentAcoes[Área de abrangência],MATCH($B10,IdentAcoes[ID Ação],0)),"") -> Município | O10: =IFERROR(INDEX(IdentAcoes[Detalhamento da área de abrangência],MATCH($B10,IdentAcoes[ID Ação],0)),"") -> Muncípio de Campos do Jordão
A11: SM-09-2024FEHIDRO - CFURH | B11: SM-09-2024 | C11: =INDEX(Financeiro[Descrição da ação],MATCH(B11,Financeiro[ID Ação], 0)) -> T.1.2.19. Plano de drenagem para o município de São Bento do Sapucaí | D11: =IF(INDEX('Acompanhamento das metas 24-27'!$C$2:$C$50,MATCH(B11,'Acompanhamento das metas 24-27'!$A$2:$A$50,0))<>0,INDEX('Acompanhamento das metas 24-27'!$C$2:$C$50,MATCH(B11,'Acompanhamento das metas 24-27'!$A$2:$A$50,0)),"") -> Elaborar a revisão do Plano de Drenagem do muncípio de São Bento do Sapucaí | E11: =IF(VLOOKUP(A11,Financeiro[[id_ação_Fonte_oculta]:[R$ Executado (2027)]],4,FALSE)=0,"",VLOOKUP(A11,Financeiro[[id_ação_Fonte_oculta]:[R$ Executado (2027)]],4,FALSE)) -> FEHIDRO - CFURH | F11: =IFERROR(INDEX(IdentAcoes[SubPDC],MATCH(B11,IdentAcoes[ID Ação],0)),"") -> 1.2 - Planejamento | G11: =IF(VLOOKUP(A11,Financeiro[[id_ação_Fonte_oculta]:[R$ Executado (2027)]],4,FALSE)=0,"",VLOOKUP(A11,Financeiro[[id_ação_Fonte_oculta]:[R$ Executado (2027)]],5,FALSE)) -> 160000 | H11: =IF(VLOOKUP(A11,Financeiro[[id_ação_Fonte_oculta]:[R$ Executado (2027)]],4,FALSE)=0,"",VLOOKUP(A11,Financeiro[[id_ação_Fonte_oculta]:[R$ Executado (2027)]],8,FALSE)) -> 0 | I11: =IF(VLOOKUP(A11,Financeiro[[id_ação_Fonte_oculta]:[R$ Executado (2027)]],4,FALSE)=0,"",VLOOKUP(A11,Financeiro[[id_ação_Fonte_oculta]:[R$ Executado (2027)]],11,FALSE)) -> 0 | J11: =IF(VLOOKUP(A11,Financeiro[[id_ação_Fonte_oculta]:[R$ Executado (2027)]],4,FALSE)=0,"",VLOOKUP(A11,Financeiro[[id_ação_Fonte_oculta]:[R$ Executado (2027)]],14,FALSE)) -> 0 | K11: 160000 | L11: =IFERROR(INDEX(IdentAcoes[Prioridade do PDC],MATCH(B11,IdentAcoes[ID Ação],0)),"") -> PDC 1 e 2 | M11: =IFERROR(INDEX(IdentAcoes[Segmento do executor],MATCH($B11,IdentAcoes[ID Ação],0)),"") -> Município e Sociedade Civil | N11: =IFERROR(INDEX(IdentAcoes[Área de abrangência],MATCH($B11,IdentAcoes[ID Ação],0)),"") -> Município | O11: =IFERROR(INDEX(IdentAcoes[Detalhamento da área de abrangência],MATCH($B11,IdentAcoes[ID Ação],0)),"") -> Município de São Bento do Sapucaí
A12: SM-10-2026FEHIDRO - CFURH | B12: SM-10-2026 | C12: =INDEX(Financeiro[Descrição da ação],MATCH(B12,Financeiro[ID Ação], 0)) -> T.1.2.19. Plano de drenagem para o município de Santo Antonio do Pinhal | D12: =IF(INDEX('Acompanhamento das metas 24-27'!$C$2:$C$50,MATCH(B12,'Acompanhamento das metas 24-27'!$A$2:$A$50,0))<>0,INDEX('Acompanhamento das metas 24-27'!$C$2:$C$50,MATCH(B12,'Acompanhamento das metas 24-27'!$A$2:$A$50,0)),"") -> Elaborar a revisão do Plano de Drenagem do muncípio de Santo Antonio do Pinhal | E12: =IF(VLOOKUP(A12,Financeiro[[id_ação_Fonte_oculta]:[R$ Executado (2027)]],4,FALSE)=0,"",VLOOKUP(A12,Financeiro[[id_ação_Fonte_oculta]:[R$ Executado (2027)]],4,FALSE)) -> FEHIDRO - CFURH | F12: =IFERROR(INDEX(IdentAcoes[SubPDC],MATCH(B12,IdentAcoes[ID Ação],0)),"") -> 1.2 - Planejamento | G12: =IF(VLOOKUP(A12,Financeiro[[id_ação_Fonte_oculta]:[R$ Executado (2027)]],4,FALSE)=0,"",VLOOKUP(A12,Financeiro[[id_ação_Fonte_oculta]:[R$ Executado (2027)]],5,FALSE)) -> 160000 | H12: =IF(VLOOKUP(A12,Financeiro[[id_ação_Fonte_oculta]:[R$ Executado (2027)]],4,FALSE)=0,"",VLOOKUP(A12,Financeiro[[id_ação_Fonte_oculta]:[R$ Executado (2027)]],8,FALSE)) -> 0 | I12: =IF(VLOOKUP(A12,Financeiro[[id_ação_Fonte_oculta]:[R$ Executado (2027)]],4,FALSE)=0,"",VLOOKUP(A12,Financeiro[[id_ação_Fonte_oculta]:[R$ Executado (2027)]],11,FALSE)) -> 0 | J12: =IF(VLOOKUP(A12,Financeiro[[id_ação_Fonte_oculta]:[R$ Executado (2027)]],4,FALSE)=0,"",VLOOKUP(A12,Financeiro[[id_ação_Fonte_oculta]:[R$ Executado (2027)]],14,FALSE)) -> 0 | K12: 160000 | L12: =IFERROR(INDEX(IdentAcoes[Prioridade do PDC],MATCH(B12,IdentAcoes[ID Ação],0)),"") -> PDC 1 e 2 | M12: =IFERROR(INDEX(IdentAcoes[Segmento do executor],MATCH($B12,IdentAcoes[ID Ação],0)),"") -> Município e Sociedade Civil | N12: =IFERROR(INDEX(IdentAcoes[Área de abrangência],MATCH($B12,IdentAcoes[ID Ação],0)),"") -> Município | O12: =IFERROR(INDEX(IdentAcoes[Detalhamento da área de abrangência],MATCH($B12,IdentAcoes[ID Ação],0)),"") -> Município de Santo Antonio do Pinhal
A13: SM-11-2026FEHIDRO - CFURH | B13: SM-11-2026 | C13: =INDEX(Financeiro[Descrição da ação],MATCH(B13,Financeiro[ID Ação], 0)) -> T.1.2.14. Mapeamento de áreas suscetíveis a processos erosivos e deslizamentos | D13: =IF(INDEX('Acompanhamento das metas 24-27'!$C$2:$C$50,MATCH(B13,'Acompanhamento das metas 24-27'!$A$2:$A$50,0))<>0,INDEX('Acompanhamento das metas 24-27'!$C$2:$C$50,MATCH(B13,'Acompanhamento das metas 24-27'!$A$2:$A$50,0)),"") -> Elaborar o mapeamento de áreas suscetíveis a processos erosivos e deslizamentos no município de Campos do Jordão | E13: =IF(VLOOKUP(A13,Financeiro[[id_ação_Fonte_oculta]:[R$ Executado (2027)]],4,FALSE)=0,"",VLOOKUP(A13,Financeiro[[id_ação_Fonte_oculta]:[R$ Executado (2027)]],4,FALSE)) -> FEHIDRO - CFURH | F13: =IFERROR(INDEX(IdentAcoes[SubPDC],MATCH(B13,IdentAcoes[ID Ação],0)),"") -> 1.2 - Planejamento | G13: =IF(VLOOKUP(A13,Financeiro[[id_ação_Fonte_oculta]:[R$ Executado (2027)]],4,FALSE)=0,"",VLOOKUP(A13,Financeiro[[id_ação_Fonte_oculta]:[R$ Executado (2027)]],5,FALSE)) -> 0 | H13: =IF(VLOOKUP(A13,Financeiro[[id_ação_Fonte_oculta]:[R$ Executado (2027)]],4,FALSE)=0,"",VLOOKUP(A13,Financeiro[[id_ação_Fonte_oculta]:[R$ Executado (2027)]],8,FALSE)) -> 160000 | I13: =IF(VLOOKUP(A13,Financeiro[[id_ação_Fonte_oculta]:[R$ Executado (2027)]],4,FALSE)=0,"",VLOOKUP(A13,Financeiro[[id_ação_Fonte_oculta]:[R$ Executado (2027)]],11,FALSE)) -> 0 | J13: =IF(VLOOKUP(A13,Financeiro[[id_ação_Fonte_oculta]:[R$ Executado (2027)]],4,FALSE)=0,"",VLOOKUP(A13,Financeiro[[id_ação_Fonte_oculta]:[R$ Executado (2027)]],14,FALSE)) -> 0 | K13: 160000 | L13: =IFERROR(INDEX(IdentAcoes[Prioridade do PDC],MATCH(B13,IdentAcoes[ID Ação],0)),"") -> PDC 1 e 2 | M13: =IFERROR(INDEX(IdentAcoes[Segmento do executor],MATCH($B13,IdentAcoes[ID Ação],0)),"") -> Município e Sociedade Civil | N13: =IFERROR(INDEX(IdentAcoes[Área de abrangência],MATCH($B13,IdentAcoes[ID Ação],0)),"") -> Município | O13: =IFERROR(INDEX(IdentAcoes[Detalhamento da área de abrangência],MATCH($B13,IdentAcoes[ID Ação],0)),"") -> Muncípio de Campos do Jordão
A14: SM-12-2027FEHIDRO - CFURH | B14: SM-12-2027 | C14: =INDEX(Financeiro[Descrição da ação],MATCH(B14,Financeiro[ID Ação], 0)) -> T.1.2.24. Plano diretor para a prevenção e contenção de processos erosivos | D14: =IF(INDEX('Acompanhamento das metas 24-27'!$C$2:$C$50,MATCH(B14,'Acompanhamento das metas 24-27'!$A$2:$A$50,0))<>0,INDEX('Acompanhamento das metas 24-27'!$C$2:$C$50,MATCH(B14,'Acompanhamento das metas 24-27'!$A$2:$A$50,0)),"") -> Elaborar o Plano Diretor para prevenção e conteção de processos erosivos no município de Campos do Jordão | E14: =IF(VLOOKUP(A14,Financeiro[[id_ação_Fonte_oculta]:[R$ Executado (2027)]],4,FALSE)=0,"",VLOOKUP(A14,Financeiro[[id_ação_Fonte_oculta]:[R$ Executado (2027)]],4,FALSE)) -> FEHIDRO - CFURH | F14: =IFERROR(INDEX(IdentAcoes[SubPDC],MATCH(B14,IdentAcoes[ID Ação],0)),"") -> 1.2 - Planejamento | G14: =IF(VLOOKUP(A14,Financeiro[[id_ação_Fonte_oculta]:[R$ Executado (2027)]],4,FALSE)=0,"",VLOOKUP(A14,Financeiro[[id_ação_Fonte_oculta]:[R$ Executado (2027)]],5,FALSE)) -> 0 | H14: =IF(VLOOKUP(A14,Financeiro[[id_ação_Fonte_oculta]:[R$ Executado (2027)]],4,FALSE)=0,"",VLOOKUP(A14,Financeiro[[id_ação_Fonte_oculta]:[R$ Executado (2027)]],8,FALSE)) -> 0 | I14: =IF(VLOOKUP(A14,Financeiro[[id_ação_Fonte_oculta]:[R$ Executado (2027)]],4,FALSE)=0,"",VLOOKUP(A14,Financeiro[[id_ação_Fonte_oculta]:[R$ Executado (2027)]],11,FALSE)) -> 0 | J14: =IF(VLOOKUP(A14,Financeiro[[id_ação_Fonte_oculta]:[R$ Executado (2027)]],4,FALSE)=0,"",VLOOKUP(A14,Financeiro[[id_ação_Fonte_oculta]:[R$ Executado (2027)]],14,FALSE)) -> 200000 | K14: 200000 | L14: =IFERROR(INDEX(IdentAcoes[Prioridade do PDC],MATCH(B14,IdentAcoes[ID Ação],0)),"") -> PDC 1 e 2 | M14: =IFERROR(INDEX(IdentAcoes[Segmento do executor],MATCH($B14,IdentAcoes[ID Ação],0)),"") -> Município e Sociedade Civil | N14: =IFERROR(INDEX(IdentAcoes[Área de abrangência],MATCH($B14,IdentAcoes[ID Ação],0)),"") -> Município | O14: =IFERROR(INDEX(IdentAcoes[Detalhamento da área de abrangência],MATCH($B14,IdentAcoes[ID Ação],0)),"") -> Muncípio de Campos do Jordão
A15: SM-13-2026FEHIDRO - CFURH | B15: SM-13-2026 | C15: =INDEX(Financeiro[Descrição da ação],MATCH(B15,Financeiro[ID Ação], 0)) -> T.2.2.1. Desenvolvimento, implantação, operação, manutenção e atualização de sistema de fiscalização de outorgas de direito de uso de recursos hídricos. | D15: =IF(INDEX('Acompanhamento das metas 24-27'!$C$2:$C$50,MATCH(B15,'Acompanhamento das metas 24-27'!$A$2:$A$50,0))<>0,INDEX('Acompanhamento das metas 24-27'!$C$2:$C$50,MATCH(B15,'Acompanhamento das metas 24-27'!$A$2:$A$50,0)),"") -> Atualização e melhorias do atual sistema de fiscalização de outorgas de direito de uso de recursos hídricos na UGRHI-1 | E15: =IF(VLOOKUP(A15,Financeiro[[id_ação_Fonte_oculta]:[R$ Executado (2027)]],4,FALSE)=0,"",VLOOKUP(A15,Financeiro[[id_ação_Fonte_oculta]:[R$ Executado (2027)]],4,FALSE)) -> FEHIDRO - CFURH | F15: =IFERROR(INDEX(IdentAcoes[SubPDC],MATCH(B15,IdentAcoes[ID Ação],0)),"") -> 2.2 - Outorga | G15: =IF(VLOOKUP(A15,Financeiro[[id_ação_Fonte_oculta]:[R$ Executado (2027)]],4,FALSE)=0,"",VLOOKUP(A15,Financeiro[[id_ação_Fonte_oculta]:[R$ Executado (2027)]],5,FALSE)) -> 0 | H15: =IF(VLOOKUP(A15,Financeiro[[id_ação_Fonte_oculta]:[R$ Executado (2027)]],4,FALSE)=0,"",VLOOKUP(A15,Financeiro[[id_ação_Fonte_oculta]:[R$ Executado (2027)]],8,FALSE)) -> 0 | I15: =IF(VLOOKUP(A15,Financeiro[[id_ação_Fonte_oculta]:[R$ Executado (2027)]],4,FALSE)=0,"",VLOOKUP(A15,Financeiro[[id_ação_Fonte_oculta]:[R$ Executado (2027)]],11,FALSE)) -> 250000 | J15: =IF(VLOOKUP(A15,Financeiro[[id_ação_Fonte_oculta]:[R$ Executado (2027)]],4,FALSE)=0,"",VLOOKUP(A15,Financeiro[[id_ação_Fonte_oculta]:[R$ Executado (2027)]],14,FALSE)) -> 0 | K15: 250000 | L15: =IFERROR(INDEX(IdentAcoes[Prioridade do PDC],MATCH(B15,IdentAcoes[ID Ação],0)),"") -> PDC 1 e 2 | M15: =IFERROR(INDEX(IdentAcoes[Segmento do executor],MATCH($B15,IdentAcoes[ID Ação],0)),"") -> Sociedade Civil | N15: =IFERROR(INDEX(IdentAcoes[Área de abrangência],MATCH($B15,IdentAcoes[ID Ação],0)),"") -> UGRHi | O15: =IFERROR(INDEX(IdentAcoes[Detalhamento da área de abrangência],MATCH($B15,IdentAcoes[ID Ação],0)),"") -> UGRHI-1
A16: SM-14-2024FEHIDRO - Cobrança estadual | B16: SM-14-2024 | C16: =INDEX(Financeiro[Descrição da ação],MATCH(B16,Financeiro[ID Ação], 0)) -> T.2.3.3. Desenvolvimento ou atualização de cadastro específico para cobrança pelo uso dos recursos hídricos | D16: =IF(INDEX('Acompanhamento das metas 24-27'!$C$2:$C$50,MATCH(B16,'Acompanhamento das metas 24-27'!$A$2:$A$50,0))<>0,INDEX('Acompanhamento das metas 24-27'!$C$2:$C$50,MATCH(B16,'Acompanhamento das metas 24-27'!$A$2:$A$50,0)),"") -> Atualização do cadastro de cobrança de água para os Usuários da UGRHI-1 e identificação de captações não outorgadas. | E16: =IF(VLOOKUP(A16,Financeiro[[id_ação_Fonte_oculta]:[R$ Executado (2027)]],4,FALSE)=0,"",VLOOKUP(A16,Financeiro[[id_ação_Fonte_oculta]:[R$ Executado (2027)]],4,FALSE)) -> FEHIDRO - Cobrança estadual | F16: =IFERROR(INDEX(IdentAcoes[SubPDC],MATCH(B16,IdentAcoes[ID Ação],0)),"") -> 2.3 - Cobrança | G16: =IF(VLOOKUP(A16,Financeiro[[id_ação_Fonte_oculta]:[R$ Executado (2027)]],4,FALSE)=0,"",VLOOKUP(A16,Financeiro[[id_ação_Fonte_oculta]:[R$ Executado (2027)]],5,FALSE)) -> 0 | H16: =IF(VLOOKUP(A16,Financeiro[[id_ação_Fonte_oculta]:[R$ Executado (2027)]],4,FALSE)=0,"",VLOOKUP(A16,Financeiro[[id_ação_Fonte_oculta]:[R$ Executado (2027)]],8,FALSE)) -> 220000 | I16: =IF(VLOOKUP(A16,Financeiro[[id_ação_Fonte_oculta]:[R$ Executado (2027)]],4,FALSE)=0,"",VLOOKUP(A16,Financeiro[[id_ação_Fonte_oculta]:[R$ Executado (2027)]],11,FALSE)) -> 0 | J16: =IF(VLOOKUP(A16,Financeiro[[id_ação_Fonte_oculta]:[R$ Executado (2027)]],4,FALSE)=0,"",VLOOKUP(A16,Financeiro[[id_ação_Fonte_oculta]:[R$ Executado (2027)]],14,FALSE)) -> 0 | K16: 220000 | L16: =IFERROR(INDEX(IdentAcoes[Prioridade do PDC],MATCH(B16,IdentAcoes[ID Ação],0)),"") -> PDC 1 e 2 | M16: =IFERROR(INDEX(IdentAcoes[Segmento do executor],MATCH($B16,IdentAcoes[ID Ação],0)),"") -> Sociedade Civil | N16: =IFERROR(INDEX(IdentAcoes[Área de abrangência],MATCH($B16,IdentAcoes[ID Ação],0)),"") -> UGRHi | O16: =IFERROR(INDEX(IdentAcoes[Detalhamento da área de abrangência],MATCH($B16,IdentAcoes[ID Ação],0)),"") -> UGRHI-1
A17: SM-15-2025FEHIDRO - CFURH | B17: SM-15-2025 | C17: =INDEX(Financeiro[Descrição da ação],MATCH(B17,Financeiro[ID Ação], 0)) -> T.3.1.3. Projeto (básico e/ou executivos) de reformas, melhorias ou obras localizadas (EEE-Estação Elevatória de Esgoto e/ou ETE-Estação de tratamento de Esgoto) em Santo Antonio do Pinhal. | D17: =IF(INDEX('Acompanhamento das metas 24-27'!$C$2:$C$50,MATCH(B17,'Acompanhamento das metas 24-27'!$A$2:$A$50,0))<>0,INDEX('Acompanhamento das metas 24-27'!$C$2:$C$50,MATCH(B17,'Acompanhamento das metas 24-27'!$A$2:$A$50,0)),"") -> Elaborar projeto de 1 ETE em bairro rural de Santo Antonio do Pinhal | E17: =IF(VLOOKUP(A17,Financeiro[[id_ação_Fonte_oculta]:[R$ Executado (2027)]],4,FALSE)=0,"",VLOOKUP(A17,Financeiro[[id_ação_Fonte_oculta]:[R$ Executado (2027)]],4,FALSE)) -> FEHIDRO - CFURH | F17: =IFERROR(INDEX(IdentAcoes[SubPDC],MATCH(B17,IdentAcoes[ID Ação],0)),"") -> 3.1 - Efluentes | G17: =IF(VLOOKUP(A17,Financeiro[[id_ação_Fonte_oculta]:[R$ Executado (2027)]],4,FALSE)=0,"",VLOOKUP(A17,Financeiro[[id_ação_Fonte_oculta]:[R$ Executado (2027)]],5,FALSE)) -> 0 | H17: =IF(VLOOKUP(A17,Financeiro[[id_ação_Fonte_oculta]:[R$ Executado (2027)]],4,FALSE)=0,"",VLOOKUP(A17,Financeiro[[id_ação_Fonte_oculta]:[R$ Executado (2027)]],8,FALSE)) -> 0 | I17: =IF(VLOOKUP(A17,Financeiro[[id_ação_Fonte_oculta]:[R$ Executado (2027)]],4,FALSE)=0,"",VLOOKUP(A17,Financeiro[[id_ação_Fonte_oculta]:[R$ Executado (2027)]],11,FALSE)) -> 0 | J17: =IF(VLOOKUP(A17,Financeiro[[id_ação_Fonte_oculta]:[R$ Executado (2027)]],4,FALSE)=0,"",VLOOKUP(A17,Financeiro[[id_ação_Fonte_oculta]:[R$ Executado (2027)]],14,FALSE)) -> 0 | K17: 0 | L17: =IFERROR(INDEX(IdentAcoes[Prioridade do PDC],MATCH(B17,IdentAcoes[ID Ação],0)),"") -> Prioritário | M17: =IFERROR(INDEX(IdentAcoes[Segmento do executor],MATCH($B17,IdentAcoes[ID Ação],0)),"") -> Município | N17: =IFERROR(INDEX(IdentAcoes[Área de abrangência],MATCH($B17,IdentAcoes[ID Ação],0)),"") -> Área rural | O17: =IFERROR(INDEX(IdentAcoes[Detalhamento da área de abrangência],MATCH($B17,IdentAcoes[ID Ação],0)),"") -> Município de Santo Antonio do Pinhal / a definir
A18: SM-16-2025FEHIDRO - CFURH | B18: SM-16-2025 | C18: =INDEX(Financeiro[Descrição da ação],MATCH(B18,Financeiro[ID Ação], 0)) -> T.3.1.3. Projeto (básico e/ou executivos) de reformas, melhorias ou obras localizadas (EEE-Estação Elevatória de Esgoto e/ou ETE-Estação de tratamento de Esgoto) em Sao Bento do Sapucaí. | D18: =IF(INDEX('Acompanhamento das metas 24-27'!$C$2:$C$50,MATCH(B18,'Acompanhamento das metas 24-27'!$A$2:$A$50,0))<>0,INDEX('Acompanhamento das metas 24-27'!$C$2:$C$50,MATCH(B18,'Acompanhamento das metas 24-27'!$A$2:$A$50,0)),"") -> Elaborar projeto de 1 ETE em bairro rural de São Bento do Sapucaí | E18: =IF(VLOOKUP(A18,Financeiro[[id_ação_Fonte_oculta]:[R$ Executado (2027)]],4,FALSE)=0,"",VLOOKUP(A18,Financeiro[[id_ação_Fonte_oculta]:[R$ Executado (2027)]],4,FALSE)) -> FEHIDRO - CFURH | F18: =IFERROR(INDEX(IdentAcoes[SubPDC],MATCH(B18,IdentAcoes[ID Ação],0)),"") -> 3.1 - Efluentes | G18: =IF(VLOOKUP(A18,Financeiro[[id_ação_Fonte_oculta]:[R$ Executado (2027)]],4,FALSE)=0,"",VLOOKUP(A18,Financeiro[[id_ação_Fonte_oculta]:[R$ Executado (2027)]],5,FALSE)) -> 0 | H18: =IF(VLOOKUP(A18,Financeiro[[id_ação_Fonte_oculta]:[R$ Executado (2027)]],4,FALSE)=0,"",VLOOKUP(A18,Financeiro[[id_ação_Fonte_oculta]:[R$ Executado (2027)]],8,FALSE)) -> 0 | I18: =IF(VLOOKUP(A18,Financeiro[[id_ação_Fonte_oculta]:[R$ Executado (2027)]],4,FALSE)=0,"",VLOOKUP(A18,Financeiro[[id_ação_Fonte_oculta]:[R$ Executado (2027)]],11,FALSE)) -> 0 | J18: =IF(VLOOKUP(A18,Financeiro[[id_ação_Fonte_oculta]:[R$ Executado (2027)]],4,FALSE)=0,"",VLOOKUP(A18,Financeiro[[id_ação_Fonte_oculta]:[R$ Executado (2027)]],14,FALSE)) -> 0 | K18: 0 | L18: =IFERROR(INDEX(IdentAcoes[Prioridade do PDC],MATCH(B18,IdentAcoes[ID Ação],0)),"") -> Prioritário | M18: =IFERROR(INDEX(IdentAcoes[Segmento do executor],MATCH($B18,IdentAcoes[ID Ação],0)),"") -> Município | N18: =IFERROR(INDEX(IdentAcoes[Área de abrangência],MATCH($B18,IdentAcoes[ID Ação],0)),"") -> Área rural | O18: =IFERROR(INDEX(IdentAcoes[Detalhamento da área de abrangência],MATCH($B18,IdentAcoes[ID Ação],0)),"") -> Município de São Bento do Sapucaí / a definir
A19: SM-17-2026FEHIDRO - CFURH | B19: SM-17-2026 | C19: =INDEX(Financeiro[Descrição da ação],MATCH(B19,Financeiro[ID Ação], 0)) -> T.3.1.4. Execução de reformas, melhorias ou obras de EEE e/ou ETE em Santo Antonio do Pinhal. | D19: =IF(INDEX('Acompanhamento das metas 24-27'!$C$2:$C$50,MATCH(B19,'Acompanhamento das metas 24-27'!$A$2:$A$50,0))<>0,INDEX('Acompanhamento das metas 24-27'!$C$2:$C$50,MATCH(B19,'Acompanhamento das metas 24-27'!$A$2:$A$50,0)),"") -> Implantar 1 ETE em bairro rural de Santo Antonio do Pinhal | E19: =IF(VLOOKUP(A19,Financeiro[[id_ação_Fonte_oculta]:[R$ Executado (2027)]],4,FALSE)=0,"",VLOOKUP(A19,Financeiro[[id_ação_Fonte_oculta]:[R$ Executado (2027)]],4,FALSE)) -> FEHIDRO - CFURH | F19: =IFERROR(INDEX(IdentAcoes[SubPDC],MATCH(B19,IdentAcoes[ID Ação],0)),"") -> 3.1 - Efluentes | G19: =IF(VLOOKUP(A19,Financeiro[[id_ação_Fonte_oculta]:[R$ Executado (2027)]],4,FALSE)=0,"",VLOOKUP(A19,Financeiro[[id_ação_Fonte_oculta]:[R$ Executado (2027)]],5,FALSE)) -> 0 | H19: =IF(VLOOKUP(A19,Financeiro[[id_ação_Fonte_oculta]:[R$ Executado (2027)]],4,FALSE)=0,"",VLOOKUP(A19,Financeiro[[id_ação_Fonte_oculta]:[R$ Executado (2027)]],8,FALSE)) -> 0 | I19: =IF(VLOOKUP(A19,Financeiro[[id_ação_Fonte_oculta]:[R$ Executado (2027)]],4,FALSE)=0,"",VLOOKUP(A19,Financeiro[[id_ação_Fonte_oculta]:[R$ Executado (2027)]],11,FALSE)) -> 0 | J19: =IF(VLOOKUP(A19,Financeiro[[id_ação_Fonte_oculta]:[R$ Executado (2027)]],4,FALSE)=0,"",VLOOKUP(A19,Financeiro[[id_ação_Fonte_oculta]:[R$ Executado (2027)]],14,FALSE)) -> 0 | K19: 0 | L19: =IFERROR(INDEX(IdentAcoes[Prioridade do PDC],MATCH(B19,IdentAcoes[ID Ação],0)),"") -> Prioritário | M19: =IFERROR(INDEX(IdentAcoes[Segmento do executor],MATCH($B19,IdentAcoes[ID Ação],0)),"") -> Município | N19: =IFERROR(INDEX(IdentAcoes[Área de abrangência],MATCH($B19,IdentAcoes[ID Ação],0)),"") -> Área rural | O19: =IFERROR(INDEX(IdentAcoes[Detalhamento da área de abrangência],MATCH($B19,IdentAcoes[ID Ação],0)),"") -> Município de Santo Antonio do Pinhal / a definir
A20: SM-18-2026FEHIDRO - CFURH | B20: SM-18-2026 | C20: =INDEX(Financeiro[Descrição da ação],MATCH(B20,Financeiro[ID Ação], 0)) -> T.3.1.4. Execução de reformas, melhorias ou obras de EEE e/ou ETE em São Bento do Sapucaí | D20: =IF(INDEX('Acompanhamento das metas 24-27'!$C$2:$C$50,MATCH(B20,'Acompanhamento das metas 24-27'!$A$2:$A$50,0))<>0,INDEX('Acompanhamento das metas 24-27'!$C$2:$C$50,MATCH(B20,'Acompanhamento das metas 24-27'!$A$2:$A$50,0)),"") -> Implantar 1 ETE em bairro rural de São Bento do Sapucaí | E20: =IF(VLOOKUP(A20,Financeiro[[id_ação_Fonte_oculta]:[R$ Executado (2027)]],4,FALSE)=0,"",VLOOKUP(A20,Financeiro[[id_ação_Fonte_oculta]:[R$ Executado (2027)]],4,FALSE)) -> FEHIDRO - CFURH | F20: =IFERROR(INDEX(IdentAcoes[SubPDC],MATCH(B20,IdentAcoes[ID Ação],0)),"") -> 3.1 - Efluentes | G20: =IF(VLOOKUP(A20,Financeiro[[id_ação_Fonte_oculta]:[R$ Executado (2027)]],4,FALSE)=0,"",VLOOKUP(A20,Financeiro[[id_ação_Fonte_oculta]:[R$ Executado (2027)]],5,FALSE)) -> 0 | H20: =IF(VLOOKUP(A20,Financeiro[[id_ação_Fonte_oculta]:[R$ Executado (2027)]],4,FALSE)=0,"",VLOOKUP(A20,Financeiro[[id_ação_Fonte_oculta]:[R$ Executado (2027)]],8,FALSE)) -> 0 | I20: =IF(VLOOKUP(A20,Financeiro[[id_ação_Fonte_oculta]:[R$ Executado (2027)]],4,FALSE)=0,"",VLOOKUP(A20,Financeiro[[id_ação_Fonte_oculta]:[R$ Executado (2027)]],11,FALSE)) -> 0 | J20: =IF(VLOOKUP(A20,Financeiro[[id_ação_Fonte_oculta]:[R$ Executado (2027)]],4,FALSE)=0,"",VLOOKUP(A20,Financeiro[[id_ação_Fonte_oculta]:[R$ Executado (2027)]],14,FALSE)) -> 0 | K20: 0 | L20: =IFERROR(INDEX(IdentAcoes[Prioridade do PDC],MATCH(B20,IdentAcoes[ID Ação],0)),"") -> Prioritário | M20: =IFERROR(INDEX(IdentAcoes[Segmento do executor],MATCH($B20,IdentAcoes[ID Ação],0)),"") -> Município | N20: =IFERROR(INDEX(IdentAcoes[Área de abrangência],MATCH($B20,IdentAcoes[ID Ação],0)),"") -> Área rural | O20: =IFERROR(INDEX(IdentAcoes[Detalhamento da área de abrangência],MATCH($B20,IdentAcoes[ID Ação],0)),"") -> Município de São Bento do Sapucaí / a definir
A21: SM-19-2025FEHIDRO - CFURH | B21: SM-19-2025 | C21: =INDEX(Financeiro[Descrição da ação],MATCH(B21,Financeiro[ID Ação], 0)) -> T.4.1.3. Projetos (básicos e/ou executivos) para proteção e/ou contenção de margens de curso d´água no município de Campos do Jordão | D21: =IF(INDEX('Acompanhamento das metas 24-27'!$C$2:$C$50,MATCH(B21,'Acompanhamento das metas 24-27'!$A$2:$A$50,0))<>0,INDEX('Acompanhamento das metas 24-27'!$C$2:$C$50,MATCH(B21,'Acompanhamento das metas 24-27'!$A$2:$A$50,0)),"") -> Elaborar projeto de proteção e/ou contenção de curso 'dagua no município de Campos do Jordão | E21: =IF(VLOOKUP(A21,Financeiro[[id_ação_Fonte_oculta]:[R$ Executado (2027)]],4,FALSE)=0,"",VLOOKUP(A21,Financeiro[[id_ação_Fonte_oculta]:[R$ Executado (2027)]],4,FALSE)) -> FEHIDRO - CFURH | F21: =IFERROR(INDEX(IdentAcoes[SubPDC],MATCH(B21,IdentAcoes[ID Ação],0)),"") -> 4.1 - Controle erosão | G21: =IF(VLOOKUP(A21,Financeiro[[id_ação_Fonte_oculta]:[R$ Executado (2027)]],4,FALSE)=0,"",VLOOKUP(A21,Financeiro[[id_ação_Fonte_oculta]:[R$ Executado (2027)]],5,FALSE)) -> 0 | H21: =IF(VLOOKUP(A21,Financeiro[[id_ação_Fonte_oculta]:[R$ Executado (2027)]],4,FALSE)=0,"",VLOOKUP(A21,Financeiro[[id_ação_Fonte_oculta]:[R$ Executado (2027)]],8,FALSE)) -> 300000 | I21: =IF(VLOOKUP(A21,Financeiro[[id_ação_Fonte_oculta]:[R$ Executado (2027)]],4,FALSE)=0,"",VLOOKUP(A21,Financeiro[[id_ação_Fonte_oculta]:[R$ Executado (2027)]],11,FALSE)) -> 0 | J21: =IF(VLOOKUP(A21,Financeiro[[id_ação_Fonte_oculta]:[R$ Executado (2027)]],4,FALSE)=0,"",VLOOKUP(A21,Financeiro[[id_ação_Fonte_oculta]:[R$ Executado (2027)]],14,FALSE)) -> 0 | K21: 300000 | L21: =IFERROR(INDEX(IdentAcoes[Prioridade do PDC],MATCH(B21,IdentAcoes[ID Ação],0)),"") -> Prioritário | M21: =IFERROR(INDEX(IdentAcoes[Segmento do executor],MATCH($B21,IdentAcoes[ID Ação],0)),"") -> Município | N21: =IFERROR(INDEX(IdentAcoes[Área de abrangência],MATCH($B21,IdentAcoes[ID Ação],0)),"") -> Área rural | O21: =IFERROR(INDEX(IdentAcoes[Detalhamento da área de abrangência],MATCH($B21,IdentAcoes[ID Ação],0)),"") -> Município de Campos do Jordão / a definir
A22: SM-20-2027FEHIDRO - Cobrança estadual | B22: SM-20-2027 | C22: =INDEX(Financeiro[Descrição da ação],MATCH(B22,Financeiro[ID Ação], 0)) -> T.4.1.4. Obras/serviços de proteção e/ou contenção de margens de curso d´água no município de Campos do Jordão | D22: =IF(INDEX('Acompanhamento das metas 24-27'!$C$2:$C$50,MATCH(B22,'Acompanhamento das metas 24-27'!$A$2:$A$50,0))<>0,INDEX('Acompanhamento das metas 24-27'!$C$2:$C$50,MATCH(B22,'Acompanhamento das metas 24-27'!$A$2:$A$50,0)),"") -> Realizar uma obra / serviço de proteção e/ou contenção de margens de curso dágua no município de Campos do Jordão | E22: =IF(VLOOKUP(A22,Financeiro[[id_ação_Fonte_oculta]:[R$ Executado (2027)]],4,FALSE)=0,"",VLOOKUP(A22,Financeiro[[id_ação_Fonte_oculta]:[R$ Executado (2027)]],4,FALSE)) -> FEHIDRO - Cobrança estadual | F22: =IFERROR(INDEX(IdentAcoes[SubPDC],MATCH(B22,IdentAcoes[ID Ação],0)),"") -> 4.1 - Controle erosão | G22: =IF(VLOOKUP(A22,Financeiro[[id_ação_Fonte_oculta]:[R$ Executado (2027)]],4,FALSE)=0,"",VLOOKUP(A22,Financeiro[[id_ação_Fonte_oculta]:[R$ Executado (2027)]],5,FALSE)) -> 0 | H22: =IF(VLOOKUP(A22,Financeiro[[id_ação_Fonte_oculta]:[R$ Executado (2027)]],4,FALSE)=0,"",VLOOKUP(A22,Financeiro[[id_ação_Fonte_oculta]:[R$ Executado (2027)]],8,FALSE)) -> 0 | I22: =IF(VLOOKUP(A22,Financeiro[[id_ação_Fonte_oculta]:[R$ Executado (2027)]],4,FALSE)=0,"",VLOOKUP(A22,Financeiro[[id_ação_Fonte_oculta]:[R$ Executado (2027)]],11,FALSE)) -> 0 | J22: =IF(VLOOKUP(A22,Financeiro[[id_ação_Fonte_oculta]:[R$ Executado (2027)]],4,FALSE)=0,"",VLOOKUP(A22,Financeiro[[id_ação_Fonte_oculta]:[R$ Executado (2027)]],14,FALSE)) -> 450000 | K22: 450000 | L22: =IFERROR(INDEX(IdentAcoes[Prioridade do PDC],MATCH(B22,IdentAcoes[ID Ação],0)),"") -> Prioritário | M22: =IFERROR(INDEX(IdentAcoes[Segmento do executor],MATCH($B22,IdentAcoes[ID Ação],0)),"") -> Município | N22: =IFERROR(INDEX(IdentAcoes[Área de abrangência],MATCH($B22,IdentAcoes[ID Ação],0)),"") -> Área urbana | O22: =IFERROR(INDEX(IdentAcoes[Detalhamento da área de abrangência],MATCH($B22,IdentAcoes[ID Ação],0)),"") -> Município de Campos do Jordão / a definir
A23: SM-21-2025FEHIDRO - CFURH | B23: SM-21-2025 | C23: =INDEX(Financeiro[Descrição da ação],MATCH(B23,Financeiro[ID Ação], 0)) -> T.4.1.4. Obras/serviços de proteção e/ou contenção de margens de curso d´água no município de São Bento do Sapucaí | D23: =IF(INDEX('Acompanhamento das metas 24-27'!$C$2:$C$50,MATCH(B23,'Acompanhamento das metas 24-27'!$A$2:$A$50,0))<>0,INDEX('Acompanhamento das metas 24-27'!$C$2:$C$50,MATCH(B23,'Acompanhamento das metas 24-27'!$A$2:$A$50,0)),"") -> Realizar uma obra / serviço de proteção e/ou contenção de margens de curso dágua no município de São Bento do Sapucaí | E23: =IF(VLOOKUP(A23,Financeiro[[id_ação_Fonte_oculta]:[R$ Executado (2027)]],4,FALSE)=0,"",VLOOKUP(A23,Financeiro[[id_ação_Fonte_oculta]:[R$ Executado (2027)]],4,FALSE)) -> FEHIDRO - CFURH | F23: =IFERROR(INDEX(IdentAcoes[SubPDC],MATCH(B23,IdentAcoes[ID Ação],0)),"") -> 4.1 - Controle erosão | G23: =IF(VLOOKUP(A23,Financeiro[[id_ação_Fonte_oculta]:[R$ Executado (2027)]],4,FALSE)=0,"",VLOOKUP(A23,Financeiro[[id_ação_Fonte_oculta]:[R$ Executado (2027)]],5,FALSE)) -> 0 | H23: =IF(VLOOKUP(A23,Financeiro[[id_ação_Fonte_oculta]:[R$ Executado (2027)]],4,FALSE)=0,"",VLOOKUP(A23,Financeiro[[id_ação_Fonte_oculta]:[R$ Executado (2027)]],8,FALSE)) -> 0 | I23: =IF(VLOOKUP(A23,Financeiro[[id_ação_Fonte_oculta]:[R$ Executado (2027)]],4,FALSE)=0,"",VLOOKUP(A23,Financeiro[[id_ação_Fonte_oculta]:[R$ Executado (2027)]],11,FALSE)) -> 0 | J23: =IF(VLOOKUP(A23,Financeiro[[id_ação_Fonte_oculta]:[R$ Executado (2027)]],4,FALSE)=0,"",VLOOKUP(A23,Financeiro[[id_ação_Fonte_oculta]:[R$ Executado (2027)]],14,FALSE)) -> 500000 | K23: 500000 | L23: =IFERROR(INDEX(IdentAcoes[Prioridade do PDC],MATCH(B23,IdentAcoes[ID Ação],0)),"") -> Prioritário | M23: =IFERROR(INDEX(IdentAcoes[Segmento do executor],MATCH($B23,IdentAcoes[ID Ação],0)),"") -> Município | N23: =IFERROR(INDEX(IdentAcoes[Área de abrangência],MATCH($B23,IdentAcoes[ID Ação],0)),"") -> Área urbana | O23: =IFERROR(INDEX(IdentAcoes[Detalhamento da área de abrangência],MATCH($B23,IdentAcoes[ID Ação],0)),"") -> Município de São Bento do Sapucaí / a definir
A24: SM-22-2024FEHIDRO - CFURH | B24: SM-22-2024 | C24: =INDEX(Financeiro[Descrição da ação],MATCH(B24,Financeiro[ID Ação], 0)) -> T.4.1.4. Obras/serviços de proteção e/ou contenção de margens de curso d´água no município de Santo Antonio do Pinhal | D24: =IF(INDEX('Acompanhamento das metas 24-27'!$C$2:$C$50,MATCH(B24,'Acompanhamento das metas 24-27'!$A$2:$A$50,0))<>0,INDEX('Acompanhamento das metas 24-27'!$C$2:$C$50,MATCH(B24,'Acompanhamento das metas 24-27'!$A$2:$A$50,0)),"") -> Realizar uma obra / serviço de proteção e/ou contenção de margens de curso dágua no município de Santo Antonio do Pinhal | E24: =IF(VLOOKUP(A24,Financeiro[[id_ação_Fonte_oculta]:[R$ Executado (2027)]],4,FALSE)=0,"",VLOOKUP(A24,Financeiro[[id_ação_Fonte_oculta]:[R$ Executado (2027)]],4,FALSE)) -> FEHIDRO - CFURH | F24: =IFERROR(INDEX(IdentAcoes[SubPDC],MATCH(B24,IdentAcoes[ID Ação],0)),"") -> 4.1 - Controle erosão | G24: =IF(VLOOKUP(A24,Financeiro[[id_ação_Fonte_oculta]:[R$ Executado (2027)]],4,FALSE)=0,"",VLOOKUP(A24,Financeiro[[id_ação_Fonte_oculta]:[R$ Executado (2027)]],5,FALSE)) -> 350000 | H24: =IF(VLOOKUP(A24,Financeiro[[id_ação_Fonte_oculta]:[R$ Executado (2027)]],4,FALSE)=0,"",VLOOKUP(A24,Financeiro[[id_ação_Fonte_oculta]:[R$ Executado (2027)]],8,FALSE)) -> 0 | I24: =IF(VLOOKUP(A24,Financeiro[[id_ação_Fonte_oculta]:[R$ Executado (2027)]],4,FALSE)=0,"",VLOOKUP(A24,Financeiro[[id_ação_Fonte_oculta]:[R$ Executado (2027)]],11,FALSE)) -> 0 | J24: =IF(VLOOKUP(A24,Financeiro[[id_ação_Fonte_oculta]:[R$ Executado (2027)]],4,FALSE)=0,"",VLOOKUP(A24,Financeiro[[id_ação_Fonte_oculta]:[R$ Executado (2027)]],14,FALSE)) -> 0 | K24: 350000 | L24: =IFERROR(INDEX(IdentAcoes[Prioridade do PDC],MATCH(B24,IdentAcoes[ID Ação],0)),"") -> Prioritário | M24: =IFERROR(INDEX(IdentAcoes[Segmento do executor],MATCH($B24,IdentAcoes[ID Ação],0)),"") -> Município | N24: =IFERROR(INDEX(IdentAcoes[Área de abrangência],MATCH($B24,IdentAcoes[ID Ação],0)),"") -> Área urbana | O24: =IFERROR(INDEX(IdentAcoes[Detalhamento da área de abrangência],MATCH($B24,IdentAcoes[ID Ação],0)),"") -> Município de Santo Antonio do Pinhal / a definir
A25: SM-23-2025FEHIDRO - CFURH | B25: SM-23-2025 | C25: =INDEX(Financeiro[Descrição da ação],MATCH(B25,Financeiro[ID Ação], 0)) -> T.4.2.13. Projeto executivo de Pagamento por Serviços Ambientais relacionados à água - município de São Bento do Sapucaí. | D25: =IF(INDEX('Acompanhamento das metas 24-27'!$C$2:$C$50,MATCH(B25,'Acompanhamento das metas 24-27'!$A$2:$A$50,0))<>0,INDEX('Acompanhamento das metas 24-27'!$C$2:$C$50,MATCH(B25,'Acompanhamento das metas 24-27'!$A$2:$A$50,0)),"") -> Elaborar um projeto executivo PSA no município de São Bento do Sapucaí | E25: =IF(VLOOKUP(A25,Financeiro[[id_ação_Fonte_oculta]:[R$ Executado (2027)]],4,FALSE)=0,"",VLOOKUP(A25,Financeiro[[id_ação_Fonte_oculta]:[R$ Executado (2027)]],4,FALSE)) -> FEHIDRO - CFURH | F25: =IFERROR(INDEX(IdentAcoes[SubPDC],MATCH(B25,IdentAcoes[ID Ação],0)),"") -> 4.2 - Soluções baseadas Natureza | G25: =IF(VLOOKUP(A25,Financeiro[[id_ação_Fonte_oculta]:[R$ Executado (2027)]],4,FALSE)=0,"",VLOOKUP(A25,Financeiro[[id_ação_Fonte_oculta]:[R$ Executado (2027)]],5,FALSE)) -> 0 | H25: =IF(VLOOKUP(A25,Financeiro[[id_ação_Fonte_oculta]:[R$ Executado (2027)]],4,FALSE)=0,"",VLOOKUP(A25,Financeiro[[id_ação_Fonte_oculta]:[R$ Executado (2027)]],8,FALSE)) -> 200000 | I25: =IF(VLOOKUP(A25,Financeiro[[id_ação_Fonte_oculta]:[R$ Executado (2027)]],4,FALSE)=0,"",VLOOKUP(A25,Financeiro[[id_ação_Fonte_oculta]:[R$ Executado (2027)]],11,FALSE)) -> 0 | J25: =IF(VLOOKUP(A25,Financeiro[[id_ação_Fonte_oculta]:[R$ Executado (2027)]],4,FALSE)=0,"",VLOOKUP(A25,Financeiro[[id_ação_Fonte_oculta]:[R$ Executado (2027)]],14,FALSE)) -> 0 | K25: 200000 | L25: =IFERROR(INDEX(IdentAcoes[Prioridade do PDC],MATCH(B25,IdentAcoes[ID Ação],0)),"") -> Prioritário | M25: =IFERROR(INDEX(IdentAcoes[Segmento do executor],MATCH($B25,IdentAcoes[ID Ação],0)),"") -> Sociedade Civil | N25: =IFERROR(INDEX(IdentAcoes[Área de abrangência],MATCH($B25,IdentAcoes[ID Ação],0)),"") -> Área rural | O25: =IFERROR(INDEX(IdentAcoes[Detalhamento da área de abrangência],MATCH($B25,IdentAcoes[ID Ação],0)),"") -> Município de São Bento do Sapucaí
A26: SM-24-2027FEHIDRO - CFURH | B26: SM-24-2027 | C26: =INDEX(Financeiro[Descrição da ação],MATCH(B26,Financeiro[ID Ação], 0)) -> T.4.2.13. Projeto executivo de Pagamento por Serviços Ambientais relacionados à água - município de Santo Antonio do Pinhal. | D26: =IF(INDEX('Acompanhamento das metas 24-27'!$C$2:$C$50,MATCH(B26,'Acompanhamento das metas 24-27'!$A$2:$A$50,0))<>0,INDEX('Acompanhamento das metas 24-27'!$C$2:$C$50,MATCH(B26,'Acompanhamento das metas 24-27'!$A$2:$A$50,0)),"") -> Elaborar um projeto executivo PSA no município de Santo Antonio do Pinhal | E26: =IF(VLOOKUP(A26,Financeiro[[id_ação_Fonte_oculta]:[R$ Executado (2027)]],4,FALSE)=0,"",VLOOKUP(A26,Financeiro[[id_ação_Fonte_oculta]:[R$ Executado (2027)]],4,FALSE)) -> FEHIDRO - CFURH | F26: =IFERROR(INDEX(IdentAcoes[SubPDC],MATCH(B26,IdentAcoes[ID Ação],0)),"") -> 4.2 - Soluções baseadas Natureza | G26: =IF(VLOOKUP(A26,Financeiro[[id_ação_Fonte_oculta]:[R$ Executado (2027)]],4,FALSE)=0,"",VLOOKUP(A26,Financeiro[[id_ação_Fonte_oculta]:[R$ Executado (2027)]],5,FALSE)) -> 0 | H26: =IF(VLOOKUP(A26,Financeiro[[id_ação_Fonte_oculta]:[R$ Executado (2027)]],4,FALSE)=0,"",VLOOKUP(A26,Financeiro[[id_ação_Fonte_oculta]:[R$ Executado (2027)]],8,FALSE)) -> 0 | I26: =IF(VLOOKUP(A26,Financeiro[[id_ação_Fonte_oculta]:[R$ Executado (2027)]],4,FALSE)=0,"",VLOOKUP(A26,Financeiro[[id_ação_Fonte_oculta]:[R$ Executado (2027)]],11,FALSE)) -> 200000 | J26: =IF(VLOOKUP(A26,Financeiro[[id_ação_Fonte_oculta]:[R$ Executado (2027)]],4,FALSE)=0,"",VLOOKUP(A26,Financeiro[[id_ação_Fonte_oculta]:[R$ Executado (2027)]],14,FALSE)) -> 0 | K26: 200000 | L26: =IFERROR(INDEX(IdentAcoes[Prioridade do PDC],MATCH(B26,IdentAcoes[ID Ação],0)),"") -> Prioritário | M26: =IFERROR(INDEX(IdentAcoes[Segmento do executor],MATCH($B26,IdentAcoes[ID Ação],0)),"") -> Sociedade Civil | N26: =IFERROR(INDEX(IdentAcoes[Área de abrangência],MATCH($B26,IdentAcoes[ID Ação],0)),"") -> Área rural | O26: =IFERROR(INDEX(IdentAcoes[Detalhamento da área de abrangência],MATCH($B26,IdentAcoes[ID Ação],0)),"") -> Município de Santo Antonio do Pinhal
A27: SM-25-2027FEHIDRO - CFURH | B27: SM-25-2027 | C27: =INDEX(Financeiro[Descrição da ação],MATCH(B27,Financeiro[ID Ação], 0)) -> T.7.1.1. Projetos (básicos e/ou executivos) de microdrenagem (sarjetas, guias, bocas de lobo, poços de visita, galerias, pavimentação com material drenante entre outros) no município de Campos do Jordão. | D27: =IF(INDEX('Acompanhamento das metas 24-27'!$C$2:$C$50,MATCH(B27,'Acompanhamento das metas 24-27'!$A$2:$A$50,0))<>0,INDEX('Acompanhamento das metas 24-27'!$C$2:$C$50,MATCH(B27,'Acompanhamento das metas 24-27'!$A$2:$A$50,0)),"") -> Elaborar 1 Projeto básico ou executivo de microdrenagem no Município de São Bento do Sapucaí | E27: =IF(VLOOKUP(A27,Financeiro[[id_ação_Fonte_oculta]:[R$ Executado (2027)]],4,FALSE)=0,"",VLOOKUP(A27,Financeiro[[id_ação_Fonte_oculta]:[R$ Executado (2027)]],4,FALSE)) -> FEHIDRO - CFURH | F27: =IFERROR(INDEX(IdentAcoes[SubPDC],MATCH(B27,IdentAcoes[ID Ação],0)),"") -> 7.1 - Drenagem | G27: =IF(VLOOKUP(A27,Financeiro[[id_ação_Fonte_oculta]:[R$ Executado (2027)]],4,FALSE)=0,"",VLOOKUP(A27,Financeiro[[id_ação_Fonte_oculta]:[R$ Executado (2027)]],5,FALSE)) -> 0 | H27: =IF(VLOOKUP(A27,Financeiro[[id_ação_Fonte_oculta]:[R$ Executado (2027)]],4,FALSE)=0,"",VLOOKUP(A27,Financeiro[[id_ação_Fonte_oculta]:[R$ Executado (2027)]],8,FALSE)) -> 0 | I27: =IF(VLOOKUP(A27,Financeiro[[id_ação_Fonte_oculta]:[R$ Executado (2027)]],4,FALSE)=0,"",VLOOKUP(A27,Financeiro[[id_ação_Fonte_oculta]:[R$ Executado (2027)]],11,FALSE)) -> 300000 | J27: =IF(VLOOKUP(A27,Financeiro[[id_ação_Fonte_oculta]:[R$ Executado (2027)]],4,FALSE)=0,"",VLOOKUP(A27,Financeiro[[id_ação_Fonte_oculta]:[R$ Executado (2027)]],14,FALSE)) -> 300000 | K27: 600000 | L27: =IFERROR(INDEX(IdentAcoes[Prioridade do PDC],MATCH(B27,IdentAcoes[ID Ação],0)),"") -> Prioritário | M27: =IFERROR(INDEX(IdentAcoes[Segmento do executor],MATCH($B27,IdentAcoes[ID Ação],0)),"") -> Município | N27: =IFERROR(INDEX(IdentAcoes[Área de abrangência],MATCH($B27,IdentAcoes[ID Ação],0)),"") -> Área urbana | O27: =IFERROR(INDEX(IdentAcoes[Detalhamento da área de abrangência],MATCH($B27,IdentAcoes[ID Ação],0)),"") -> Município de Campos do Jordão / a definir
A28: SM-26-2024FEHIDRO - CFURH | B28: SM-26-2024 | C28: =INDEX(Financeiro[Descrição da ação],MATCH(B28,Financeiro[ID Ação], 0)) -> T.7.1.3. Projetos (básicos e/ou executivos) de macrodrenagem (canalizações, retificações, travessias entre outros) no município de Campos do Jordão. | D28: =IF(INDEX('Acompanhamento das metas 24-27'!$C$2:$C$50,MATCH(B28,'Acompanhamento das metas 24-27'!$A$2:$A$50,0))<>0,INDEX('Acompanhamento das metas 24-27'!$C$2:$C$50,MATCH(B28,'Acompanhamento das metas 24-27'!$A$2:$A$50,0)),"") -> Elaborar 1 Projeto básico ou executivo de macrodrenagem no Município de Campos do Jordão. | E28: =IF(VLOOKUP(A28,Financeiro[[id_ação_Fonte_oculta]:[R$ Executado (2027)]],4,FALSE)=0,"",VLOOKUP(A28,Financeiro[[id_ação_Fonte_oculta]:[R$ Executado (2027)]],4,FALSE)) -> FEHIDRO - CFURH | F28: =IFERROR(INDEX(IdentAcoes[SubPDC],MATCH(B28,IdentAcoes[ID Ação],0)),"") -> 7.1 - Drenagem | G28: =IF(VLOOKUP(A28,Financeiro[[id_ação_Fonte_oculta]:[R$ Executado (2027)]],4,FALSE)=0,"",VLOOKUP(A28,Financeiro[[id_ação_Fonte_oculta]:[R$ Executado (2027)]],5,FALSE)) -> 450000 | H28: =IF(VLOOKUP(A28,Financeiro[[id_ação_Fonte_oculta]:[R$ Executado (2027)]],4,FALSE)=0,"",VLOOKUP(A28,Financeiro[[id_ação_Fonte_oculta]:[R$ Executado (2027)]],8,FALSE)) -> 0 | I28: =IF(VLOOKUP(A28,Financeiro[[id_ação_Fonte_oculta]:[R$ Executado (2027)]],4,FALSE)=0,"",VLOOKUP(A28,Financeiro[[id_ação_Fonte_oculta]:[R$ Executado (2027)]],11,FALSE)) -> 0 | J28: =IF(VLOOKUP(A28,Financeiro[[id_ação_Fonte_oculta]:[R$ Executado (2027)]],4,FALSE)=0,"",VLOOKUP(A28,Financeiro[[id_ação_Fonte_oculta]:[R$ Executado (2027)]],14,FALSE)) -> 0 | K28: 450000 | L28: =IFERROR(INDEX(IdentAcoes[Prioridade do PDC],MATCH(B28,IdentAcoes[ID Ação],0)),"") -> Prioritário | M28: =IFERROR(INDEX(IdentAcoes[Segmento do executor],MATCH($B28,IdentAcoes[ID Ação],0)),"") -> Município | N28: =IFERROR(INDEX(IdentAcoes[Área de abrangência],MATCH($B28,IdentAcoes[ID Ação],0)),"") -> Área urbana | O28: =IFERROR(INDEX(IdentAcoes[Detalhamento da área de abrangência],MATCH($B28,IdentAcoes[ID Ação],0)),"") -> Município de Campos do Jordão / a definir
A29: SM-27-2026FEHIDRO - CFURH | B29: SM-27-2026 | C29: =INDEX(Financeiro[Descrição da ação],MATCH(B29,Financeiro[ID Ação], 0)) -> T.7.1.4. Obras/serviços de macrodrenagem (canalizações, retificações, travessias entre outros) no município de Campos do Jordão | D29: =IF(INDEX('Acompanhamento das metas 24-27'!$C$2:$C$50,MATCH(B29,'Acompanhamento das metas 24-27'!$A$2:$A$50,0))<>0,INDEX('Acompanhamento das metas 24-27'!$C$2:$C$50,MATCH(B29,'Acompanhamento das metas 24-27'!$A$2:$A$50,0)),"") -> Elaborar 1 obra ou serviço de macrodrenagem no município de Campos do Jordão | E29: =IF(VLOOKUP(A29,Financeiro[[id_ação_Fonte_oculta]:[R$ Executado (2027)]],4,FALSE)=0,"",VLOOKUP(A29,Financeiro[[id_ação_Fonte_oculta]:[R$ Executado (2027)]],4,FALSE)) -> FEHIDRO - CFURH | F29: =IFERROR(INDEX(IdentAcoes[SubPDC],MATCH(B29,IdentAcoes[ID Ação],0)),"") -> 7.1 - Drenagem | G29: =IF(VLOOKUP(A29,Financeiro[[id_ação_Fonte_oculta]:[R$ Executado (2027)]],4,FALSE)=0,"",VLOOKUP(A29,Financeiro[[id_ação_Fonte_oculta]:[R$ Executado (2027)]],5,FALSE)) -> 0 | H29: =IF(VLOOKUP(A29,Financeiro[[id_ação_Fonte_oculta]:[R$ Executado (2027)]],4,FALSE)=0,"",VLOOKUP(A29,Financeiro[[id_ação_Fonte_oculta]:[R$ Executado (2027)]],8,FALSE)) -> 400000 | I29: =IF(VLOOKUP(A29,Financeiro[[id_ação_Fonte_oculta]:[R$ Executado (2027)]],4,FALSE)=0,"",VLOOKUP(A29,Financeiro[[id_ação_Fonte_oculta]:[R$ Executado (2027)]],11,FALSE)) -> 0 | J29: =IF(VLOOKUP(A29,Financeiro[[id_ação_Fonte_oculta]:[R$ Executado (2027)]],4,FALSE)=0,"",VLOOKUP(A29,Financeiro[[id_ação_Fonte_oculta]:[R$ Executado (2027)]],14,FALSE)) -> 0 | K29: 400000 | L29: =IFERROR(INDEX(IdentAcoes[Prioridade do PDC],MATCH(B29,IdentAcoes[ID Ação],0)),"") -> Prioritário | M29: =IFERROR(INDEX(IdentAcoes[Segmento do executor],MATCH($B29,IdentAcoes[ID Ação],0)),"") -> Município | N29: =IFERROR(INDEX(IdentAcoes[Área de abrangência],MATCH($B29,IdentAcoes[ID Ação],0)),"") -> Área urbana | O29: =IFERROR(INDEX(IdentAcoes[Detalhamento da área de abrangência],MATCH($B29,IdentAcoes[ID Ação],0)),"") -> Município de Campos do Jordão / a definir
A30: SM-28-2027FEHIDRO - CFURH | B30: SM-28-2027 | C30: =INDEX(Financeiro[Descrição da ação],MATCH(B30,Financeiro[ID Ação], 0)) -> T.7.1.2. Obras/serviços de microdrenagem (sarjetas, guias, bocas de lobo, poços de visita, galerias, pavimentação com material drenante entre outros) no município de São Bento do Sapucaí. | D30: =IF(INDEX('Acompanhamento das metas 24-27'!$C$2:$C$50,MATCH(B30,'Acompanhamento das metas 24-27'!$A$2:$A$50,0))<>0,INDEX('Acompanhamento das metas 24-27'!$C$2:$C$50,MATCH(B30,'Acompanhamento das metas 24-27'!$A$2:$A$50,0)),"") -> Elaborar 1 obra ou serviço de microdrenagem no município de São Bento do Sapucaí. | E30: =IF(VLOOKUP(A30,Financeiro[[id_ação_Fonte_oculta]:[R$ Executado (2027)]],4,FALSE)=0,"",VLOOKUP(A30,Financeiro[[id_ação_Fonte_oculta]:[R$ Executado (2027)]],4,FALSE)) -> FEHIDRO - CFURH | F30: =IFERROR(INDEX(IdentAcoes[SubPDC],MATCH(B30,IdentAcoes[ID Ação],0)),"") -> 7.1 - Drenagem | G30: =IF(VLOOKUP(A30,Financeiro[[id_ação_Fonte_oculta]:[R$ Executado (2027)]],4,FALSE)=0,"",VLOOKUP(A30,Financeiro[[id_ação_Fonte_oculta]:[R$ Executado (2027)]],5,FALSE)) -> 0 | H30: =IF(VLOOKUP(A30,Financeiro[[id_ação_Fonte_oculta]:[R$ Executado (2027)]],4,FALSE)=0,"",VLOOKUP(A30,Financeiro[[id_ação_Fonte_oculta]:[R$ Executado (2027)]],8,FALSE)) -> 0 | I30: =IF(VLOOKUP(A30,Financeiro[[id_ação_Fonte_oculta]:[R$ Executado (2027)]],4,FALSE)=0,"",VLOOKUP(A30,Financeiro[[id_ação_Fonte_oculta]:[R$ Executado (2027)]],11,FALSE)) -> 300000 | J30: =IF(VLOOKUP(A30,Financeiro[[id_ação_Fonte_oculta]:[R$ Executado (2027)]],4,FALSE)=0,"",VLOOKUP(A30,Financeiro[[id_ação_Fonte_oculta]:[R$ Executado (2027)]],14,FALSE)) -> 0 | K30: 300000 | L30: =IFERROR(INDEX(IdentAcoes[Prioridade do PDC],MATCH(B30,IdentAcoes[ID Ação],0)),"") -> Prioritário | M30: =IFERROR(INDEX(IdentAcoes[Segmento do executor],MATCH($B30,IdentAcoes[ID Ação],0)),"") -> Município | N30: =IFERROR(INDEX(IdentAcoes[Área de abrangência],MATCH($B30,IdentAcoes[ID Ação],0)),"") -> Área urbana | O30: =IFERROR(INDEX(IdentAcoes[Detalhamento da área de abrangência],MATCH($B30,IdentAcoes[ID Ação],0)),"") -> Município de São Bento do Sapucaí / a definir
A31: SM-29-2027FEHIDRO - CFURH | B31: SM-29-2027 | C31: =INDEX(Financeiro[Descrição da ação],MATCH(B31,Financeiro[ID Ação], 0)) -> T.7.1.2. Obras/serviços de microdrenagem (sarjetas, guias, bocas de lobo, poços de visita, galerias, pavimentação com material drenante entre outros) no município de Santo Antonio do Pinhal. | D31: =IF(INDEX('Acompanhamento das metas 24-27'!$C$2:$C$50,MATCH(B31,'Acompanhamento das metas 24-27'!$A$2:$A$50,0))<>0,INDEX('Acompanhamento das metas 24-27'!$C$2:$C$50,MATCH(B31,'Acompanhamento das metas 24-27'!$A$2:$A$50,0)),"") -> Elaborar 1 obra ou serviço de microdrenagem no município de Santo Antonio do Pinhal | E31: =IF(VLOOKUP(A31,Financeiro[[id_ação_Fonte_oculta]:[R$ Executado (2027)]],4,FALSE)=0,"",VLOOKUP(A31,Financeiro[[id_ação_Fonte_oculta]:[R$ Executado (2027)]],4,FALSE)) -> FEHIDRO - CFURH | F31: =IFERROR(INDEX(IdentAcoes[SubPDC],MATCH(B31,IdentAcoes[ID Ação],0)),"") -> 7.1 - Drenagem | G31: =IF(VLOOKUP(A31,Financeiro[[id_ação_Fonte_oculta]:[R$ Executado (2027)]],4,FALSE)=0,"",VLOOKUP(A31,Financeiro[[id_ação_Fonte_oculta]:[R$ Executado (2027)]],5,FALSE)) -> 0 | H31: =IF(VLOOKUP(A31,Financeiro[[id_ação_Fonte_oculta]:[R$ Executado (2027)]],4,FALSE)=0,"",VLOOKUP(A31,Financeiro[[id_ação_Fonte_oculta]:[R$ Executado (2027)]],8,FALSE)) -> 0 | I31: =IF(VLOOKUP(A31,Financeiro[[id_ação_Fonte_oculta]:[R$ Executado (2027)]],4,FALSE)=0,"",VLOOKUP(A31,Financeiro[[id_ação_Fonte_oculta]:[R$ Executado (2027)]],11,FALSE)) -> 300000 | J31: =IF(VLOOKUP(A31,Financeiro[[id_ação_Fonte_oculta]:[R$ Executado (2027)]],4,FALSE)=0,"",VLOOKUP(A31,Financeiro[[id_ação_Fonte_oculta]:[R$ Executado (2027)]],14,FALSE)) -> 0 | K31: 300000 | L31: =IFERROR(INDEX(IdentAcoes[Prioridade do PDC],MATCH(B31,IdentAcoes[ID Ação],0)),"") -> Prioritário | M31: =IFERROR(INDEX(IdentAcoes[Segmento do executor],MATCH($B31,IdentAcoes[ID Ação],0)),"") -> Município | N31: =IFERROR(INDEX(IdentAcoes[Área de abrangência],MATCH($B31,IdentAcoes[ID Ação],0)),"") -> Área urbana | O31: =IFERROR(INDEX(IdentAcoes[Detalhamento da área de abrangência],MATCH($B31,IdentAcoes[ID Ação],0)),"") -> Município de Santo Antonio do Pinhal / a definir
A32: SM-30-2024FEHIDRO - CFURH | B32: SM-30-2024 | C32: =INDEX(Financeiro[Descrição da ação],MATCH(B32,Financeiro[ID Ação], 0)) -> T.8.3.1. Campanha educativa voltada para a conservação e gestão dos recursos hídricos | D32: =IF(INDEX('Acompanhamento das metas 24-27'!$C$2:$C$50,MATCH(B32,'Acompanhamento das metas 24-27'!$A$2:$A$50,0))<>0,INDEX('Acompanhamento das metas 24-27'!$C$2:$C$50,MATCH(B32,'Acompanhamento das metas 24-27'!$A$2:$A$50,0)),"") -> Elaborar campanha educativa voltada a tratamento de resíduos sólidos nos municípios de Santo Antonio do Pinhal e Sao Bento do Sapucaí | E32: =IF(VLOOKUP(A32,Financeiro[[id_ação_Fonte_oculta]:[R$ Executado (2027)]],4,FALSE)=0,"",VLOOKUP(A32,Financeiro[[id_ação_Fonte_oculta]:[R$ Executado (2027)]],4,FALSE)) -> FEHIDRO - CFURH | F32: =IFERROR(INDEX(IdentAcoes[SubPDC],MATCH(B32,IdentAcoes[ID Ação],0)),"") -> 8.3 - Comunicação | G32: =IF(VLOOKUP(A32,Financeiro[[id_ação_Fonte_oculta]:[R$ Executado (2027)]],4,FALSE)=0,"",VLOOKUP(A32,Financeiro[[id_ação_Fonte_oculta]:[R$ Executado (2027)]],5,FALSE)) -> 180000 | H32: =IF(VLOOKUP(A32,Financeiro[[id_ação_Fonte_oculta]:[R$ Executado (2027)]],4,FALSE)=0,"",VLOOKUP(A32,Financeiro[[id_ação_Fonte_oculta]:[R$ Executado (2027)]],8,FALSE)) -> 0 | I32: =IF(VLOOKUP(A32,Financeiro[[id_ação_Fonte_oculta]:[R$ Executado (2027)]],4,FALSE)=0,"",VLOOKUP(A32,Financeiro[[id_ação_Fonte_oculta]:[R$ Executado (2027)]],11,FALSE)) -> 0 | J32: =IF(VLOOKUP(A32,Financeiro[[id_ação_Fonte_oculta]:[R$ Executado (2027)]],4,FALSE)=0,"",VLOOKUP(A32,Financeiro[[id_ação_Fonte_oculta]:[R$ Executado (2027)]],14,FALSE)) -> 0 | K32: 180000 | L32: =IFERROR(INDEX(IdentAcoes[Prioridade do PDC],MATCH(B32,IdentAcoes[ID Ação],0)),"") -> Não prioritário | M32: =IFERROR(INDEX(IdentAcoes[Segmento do executor],MATCH($B32,IdentAcoes[ID Ação],0)),"") -> Sociedade Civil | N32: =IFERROR(INDEX(IdentAcoes[Área de abrangência],MATCH($B32,IdentAcoes[ID Ação],0)),"") -> Município | O32: =IFERROR(INDEX(IdentAcoes[Detalhamento da área de abrangência],MATCH($B32,IdentAcoes[ID Ação],0)),"") -> Municípios de Santo Antonio do Pinhal e Sào Bento do Sapucaí
A33: SM-31-2024FEHIDRO - CFURH | B33: SM-31-2024 | C33: =INDEX(Financeiro[Descrição da ação],MATCH(B33,Financeiro[ID Ação], 0)) -> T.8.3.2. Serviços afetos à elaboração e divulgação de instrumentos de comunicação social | D33: =IF(INDEX('Acompanhamento das metas 24-27'!$C$2:$C$50,MATCH(B33,'Acompanhamento das metas 24-27'!$A$2:$A$50,0))<>0,INDEX('Acompanhamento das metas 24-27'!$C$2:$C$50,MATCH(B33,'Acompanhamento das metas 24-27'!$A$2:$A$50,0)),"") -> Implementar as atividades de comunicação social e educação ambiental do CBH-SM de forma contínua anualmente. | E33: =IF(VLOOKUP(A33,Financeiro[[id_ação_Fonte_oculta]:[R$ Executado (2027)]],4,FALSE)=0,"",VLOOKUP(A33,Financeiro[[id_ação_Fonte_oculta]:[R$ Executado (2027)]],4,FALSE)) -> FEHIDRO - CFURH | F33: =IFERROR(INDEX(IdentAcoes[SubPDC],MATCH(B33,IdentAcoes[ID Ação],0)),"") -> 8.3 - Comunicação | G33: =IF(VLOOKUP(A33,Financeiro[[id_ação_Fonte_oculta]:[R$ Executado (2027)]],4,FALSE)=0,"",VLOOKUP(A33,Financeiro[[id_ação_Fonte_oculta]:[R$ Executado (2027)]],5,FALSE)) -> 180000 | H33: =IF(VLOOKUP(A33,Financeiro[[id_ação_Fonte_oculta]:[R$ Executado (2027)]],4,FALSE)=0,"",VLOOKUP(A33,Financeiro[[id_ação_Fonte_oculta]:[R$ Executado (2027)]],8,FALSE)) -> 0 | I33: =IF(VLOOKUP(A33,Financeiro[[id_ação_Fonte_oculta]:[R$ Executado (2027)]],4,FALSE)=0,"",VLOOKUP(A33,Financeiro[[id_ação_Fonte_oculta]:[R$ Executado (2027)]],11,FALSE)) -> 0 | J33: =IF(VLOOKUP(A33,Financeiro[[id_ação_Fonte_oculta]:[R$ Executado (2027)]],4,FALSE)=0,"",VLOOKUP(A33,Financeiro[[id_ação_Fonte_oculta]:[R$ Executado (2027)]],14,FALSE)) -> 350000 | K33: 530000 | L33: =IFERROR(INDEX(IdentAcoes[Prioridade do PDC],MATCH(B33,IdentAcoes[ID Ação],0)),"") -> Não prioritário | M33: =IFERROR(INDEX(IdentAcoes[Segmento do executor],MATCH($B33,IdentAcoes[ID Ação],0)),"") -> Sociedade Civil | N33: =IFERROR(INDEX(IdentAcoes[Área de abrangência],MATCH($B33,IdentAcoes[ID Ação],0)),"") -> UGRHi | O33: =IFERROR(INDEX(IdentAcoes[Detalhamento da área de abrangência],MATCH($B33,IdentAcoes[ID Ação],0)),"") -> UGRHI-1
A34: SM-32-2024FEHIDRO - CFURH | B34: SM-32-2024 | C34: =INDEX(Financeiro[Descrição da ação],MATCH(B34,Financeiro[ID Ação], 0)) -> 1.2.19 Revisão do Plano de Gestão Integrada de Resíduos sólidos de Santo Antonio do Pinhal. | D34: =IF(INDEX('Acompanhamento das metas 24-27'!$C$2:$C$50,MATCH(B34,'Acompanhamento das metas 24-27'!$A$2:$A$50,0))<>0,INDEX('Acompanhamento das metas 24-27'!$C$2:$C$50,MATCH(B34,'Acompanhamento das metas 24-27'!$A$2:$A$50,0)),"") -> Atualizar o Plano de Residos Sólidos no município de Santo Antonio do Pinhal. | E34: =IF(VLOOKUP(A34,Financeiro[[id_ação_Fonte_oculta]:[R$ Executado (2027)]],4,FALSE)=0,"",VLOOKUP(A34,Financeiro[[id_ação_Fonte_oculta]:[R$ Executado (2027)]],4,FALSE)) -> FEHIDRO - CFURH | F34: =IFERROR(INDEX(IdentAcoes[SubPDC],MATCH(B34,IdentAcoes[ID Ação],0)),"") -> 1.2 - Planejamento | G34: =IF(VLOOKUP(A34,Financeiro[[id_ação_Fonte_oculta]:[R$ Executado (2027)]],4,FALSE)=0,"",VLOOKUP(A34,Financeiro[[id_ação_Fonte_oculta]:[R$ Executado (2027)]],5,FALSE)) -> 0 | H34: =IF(VLOOKUP(A34,Financeiro[[id_ação_Fonte_oculta]:[R$ Executado (2027)]],4,FALSE)=0,"",VLOOKUP(A34,Financeiro[[id_ação_Fonte_oculta]:[R$ Executado (2027)]],8,FALSE)) -> 0 | I34: =IF(VLOOKUP(A34,Financeiro[[id_ação_Fonte_oculta]:[R$ Executado (2027)]],4,FALSE)=0,"",VLOOKUP(A34,Financeiro[[id_ação_Fonte_oculta]:[R$ Executado (2027)]],11,FALSE)) -> 0 | J34: =IF(VLOOKUP(A34,Financeiro[[id_ação_Fonte_oculta]:[R$ Executado (2027)]],4,FALSE)=0,"",VLOOKUP(A34,Financeiro[[id_ação_Fonte_oculta]:[R$ Executado (2027)]],14,FALSE)) -> 0 | K34: 0 | L34: =IFERROR(INDEX(IdentAcoes[Prioridade do PDC],MATCH(B34,IdentAcoes[ID Ação],0)),"") -> PDC 1 e 2 | M34: =IFERROR(INDEX(IdentAcoes[Segmento do executor],MATCH($B34,IdentAcoes[ID Ação],0)),"") -> Sociedade Civil | N34: =IFERROR(INDEX(IdentAcoes[Área de abrangência],MATCH($B34,IdentAcoes[ID Ação],0)),"") -> Município | O34: =IFERROR(INDEX(IdentAcoes[Detalhamento da área de abrangência],MATCH($B34,IdentAcoes[ID Ação],0)),"") -> Município de Santo Antonio do Pinhal
A35: SM-33-2024FEHIDRO - CFURH | B35: SM-33-2024 | C35: =INDEX(Financeiro[Descrição da ação],MATCH(B35,Financeiro[ID Ação], 0)) -> 1.2.19 Revisão do Plano de Gestão Integrada de Resíduos sólidos de São Bento do Sapucaí | D35: =IF(INDEX('Acompanhamento das metas 24-27'!$C$2:$C$50,MATCH(B35,'Acompanhamento das metas 24-27'!$A$2:$A$50,0))<>0,INDEX('Acompanhamento das metas 24-27'!$C$2:$C$50,MATCH(B35,'Acompanhamento das metas 24-27'!$A$2:$A$50,0)),"") -> Atualizar o Plano de Residos Sólidos no município de São Bento do Sapucai. | E35: =IF(VLOOKUP(A35,Financeiro[[id_ação_Fonte_oculta]:[R$ Executado (2027)]],4,FALSE)=0,"",VLOOKUP(A35,Financeiro[[id_ação_Fonte_oculta]:[R$ Executado (2027)]],4,FALSE)) -> FEHIDRO - CFURH | F35: =IFERROR(INDEX(IdentAcoes[SubPDC],MATCH(B35,IdentAcoes[ID Ação],0)),"") -> 1.2 - Planejamento | G35: =IF(VLOOKUP(A35,Financeiro[[id_ação_Fonte_oculta]:[R$ Executado (2027)]],4,FALSE)=0,"",VLOOKUP(A35,Financeiro[[id_ação_Fonte_oculta]:[R$ Executado (2027)]],5,FALSE)) -> 0 | H35: =IF(VLOOKUP(A35,Financeiro[[id_ação_Fonte_oculta]:[R$ Executado (2027)]],4,FALSE)=0,"",VLOOKUP(A35,Financeiro[[id_ação_Fonte_oculta]:[R$ Executado (2027)]],8,FALSE)) -> 0 | I35: =IF(VLOOKUP(A35,Financeiro[[id_ação_Fonte_oculta]:[R$ Executado (2027)]],4,FALSE)=0,"",VLOOKUP(A35,Financeiro[[id_ação_Fonte_oculta]:[R$ Executado (2027)]],11,FALSE)) -> 0 | J35: =IF(VLOOKUP(A35,Financeiro[[id_ação_Fonte_oculta]:[R$ Executado (2027)]],4,FALSE)=0,"",VLOOKUP(A35,Financeiro[[id_ação_Fonte_oculta]:[R$ Executado (2027)]],14,FALSE)) -> 0 | K35: 0 | L35: =IFERROR(INDEX(IdentAcoes[Prioridade do PDC],MATCH(B35,IdentAcoes[ID Ação],0)),"") -> PDC 1 e 2 | M35: =IFERROR(INDEX(IdentAcoes[Segmento do executor],MATCH($B35,IdentAcoes[ID Ação],0)),"") -> Sociedade Civil | N35: =IFERROR(INDEX(IdentAcoes[Área de abrangência],MATCH($B35,IdentAcoes[ID Ação],0)),"") -> Município | O35: =IFERROR(INDEX(IdentAcoes[Detalhamento da área de abrangência],MATCH($B35,IdentAcoes[ID Ação],0)),"") -> Município São Bento do Sapucaí
A36: SM-34-2024FEHIDRO - CFURH | B36: SM-34-2024 | C36: =INDEX(Financeiro[Descrição da ação],MATCH(B36,Financeiro[ID Ação], 0)) -> T.4.2.13. Projeto executivo de Pagamento por Serviços Ambientais relacionados à água | D36: =IF(INDEX('Acompanhamento das metas 24-27'!$C$2:$C$50,MATCH(B36,'Acompanhamento das metas 24-27'!$A$2:$A$50,0))<>0,INDEX('Acompanhamento das metas 24-27'!$C$2:$C$50,MATCH(B36,'Acompanhamento das metas 24-27'!$A$2:$A$50,0)),"") -> Obter Diagnostico, Estudos, Recuperação e Proteção da Bacia do Ribeirão Serrano – São Bento do Sapucaí | E36: =IF(VLOOKUP(A36,Financeiro[[id_ação_Fonte_oculta]:[R$ Executado (2027)]],4,FALSE)=0,"",VLOOKUP(A36,Financeiro[[id_ação_Fonte_oculta]:[R$ Executado (2027)]],4,FALSE)) -> FEHIDRO - CFURH | F36: =IFERROR(INDEX(IdentAcoes[SubPDC],MATCH(B36,IdentAcoes[ID Ação],0)),"") -> 4.2 - Soluções baseadas Natureza | G36: =IF(VLOOKUP(A36,Financeiro[[id_ação_Fonte_oculta]:[R$ Executado (2027)]],4,FALSE)=0,"",VLOOKUP(A36,Financeiro[[id_ação_Fonte_oculta]:[R$ Executado (2027)]],5,FALSE)) -> 0 | H36: =IF(VLOOKUP(A36,Financeiro[[id_ação_Fonte_oculta]:[R$ Executado (2027)]],4,FALSE)=0,"",VLOOKUP(A36,Financeiro[[id_ação_Fonte_oculta]:[R$ Executado (2027)]],8,FALSE)) -> 0 | I36: =IF(VLOOKUP(A36,Financeiro[[id_ação_Fonte_oculta]:[R$ Executado (2027)]],4,FALSE)=0,"",VLOOKUP(A36,Financeiro[[id_ação_Fonte_oculta]:[R$ Executado (2027)]],11,FALSE)) -> 0 | J36: =IF(VLOOKUP(A36,Financeiro[[id_ação_Fonte_oculta]:[R$ Executado (2027)]],4,FALSE)=0,"",VLOOKUP(A36,Financeiro[[id_ação_Fonte_oculta]:[R$ Executado (2027)]],14,FALSE)) -> 0 | K36: 0 | L36: =IFERROR(INDEX(IdentAcoes[Prioridade do PDC],MATCH(B36,IdentAcoes[ID Ação],0)),"") -> Prioritário | M36: =IFERROR(INDEX(IdentAcoes[Segmento do executor],MATCH($B36,IdentAcoes[ID Ação],0)),"") -> Sociedade Civil | N36: =IFERROR(INDEX(IdentAcoes[Área de abrangência],MATCH($B36,IdentAcoes[ID Ação],0)),"") -> Sub-bacia | O36: =IFERROR(INDEX(IdentAcoes[Detalhamento da área de abrangência],MATCH($B36,IdentAcoes[ID Ação],0)),"") -> Município de São Bento do Sapucaí / a definir
A37: SM-35-2025FEHIDRO - CFURH | B37: SM-35-2025 | C37: =INDEX(Financeiro[Descrição da ação],MATCH(B37,Financeiro[ID Ação], 0)) -> T.1.2.11. Estudo, levantamento, diagnóstico para subsidiar projetos de PSA | D37: =IF(INDEX('Acompanhamento das metas 24-27'!$C$2:$C$50,MATCH(B37,'Acompanhamento das metas 24-27'!$A$2:$A$50,0))<>0,INDEX('Acompanhamento das metas 24-27'!$C$2:$C$50,MATCH(B37,'Acompanhamento das metas 24-27'!$A$2:$A$50,0)),"") -> Subsidiar PSA – cadastramento das propriedades rurais interessadas em projetos melhorias ambientais. | E37: =IF(VLOOKUP(A37,Financeiro[[id_ação_Fonte_oculta]:[R$ Executado (2027)]],4,FALSE)=0,"",VLOOKUP(A37,Financeiro[[id_ação_Fonte_oculta]:[R$ Executado (2027)]],4,FALSE)) -> FEHIDRO - CFURH | F37: =IFERROR(INDEX(IdentAcoes[SubPDC],MATCH(B37,IdentAcoes[ID Ação],0)),"") -> 1.2 - Planejamento | G37: =IF(VLOOKUP(A37,Financeiro[[id_ação_Fonte_oculta]:[R$ Executado (2027)]],4,FALSE)=0,"",VLOOKUP(A37,Financeiro[[id_ação_Fonte_oculta]:[R$ Executado (2027)]],5,FALSE)) -> 0 | H37: =IF(VLOOKUP(A37,Financeiro[[id_ação_Fonte_oculta]:[R$ Executado (2027)]],4,FALSE)=0,"",VLOOKUP(A37,Financeiro[[id_ação_Fonte_oculta]:[R$ Executado (2027)]],8,FALSE)) -> 200000 | I37: =IF(VLOOKUP(A37,Financeiro[[id_ação_Fonte_oculta]:[R$ Executado (2027)]],4,FALSE)=0,"",VLOOKUP(A37,Financeiro[[id_ação_Fonte_oculta]:[R$ Executado (2027)]],11,FALSE)) -> 0 | J37: =IF(VLOOKUP(A37,Financeiro[[id_ação_Fonte_oculta]:[R$ Executado (2027)]],4,FALSE)=0,"",VLOOKUP(A37,Financeiro[[id_ação_Fonte_oculta]:[R$ Executado (2027)]],14,FALSE)) -> 0 | K37: 200000 | L37: =IFERROR(INDEX(IdentAcoes[Prioridade do PDC],MATCH(B37,IdentAcoes[ID Ação],0)),"") -> PDC 1 e 2 | M37: =IFERROR(INDEX(IdentAcoes[Segmento do executor],MATCH($B37,IdentAcoes[ID Ação],0)),"") -> Sociedade Civil | N37: =IFERROR(INDEX(IdentAcoes[Área de abrangência],MATCH($B37,IdentAcoes[ID Ação],0)),"") -> Sub-bacia | O37: =IFERROR(INDEX(IdentAcoes[Detalhamento da área de abrangência],MATCH($B37,IdentAcoes[ID Ação],0)),"") -> Município de São Bento do Sapucaí / a definir
A38: SM-36-2026FEHIDRO - CFURH | B38: SM-36-2026 | C38: =INDEX(Financeiro[Descrição da ação],MATCH(B38,Financeiro[ID Ação], 0)) -> T.1.2.16 Planejamento territorial com foco na conservação, proteção, recuperação ou uso dos recur-sos hídricos -Sao Bento do Sapucai | D38: =IF(INDEX('Acompanhamento das metas 24-27'!$C$2:$C$50,MATCH(B38,'Acompanhamento das metas 24-27'!$A$2:$A$50,0))<>0,INDEX('Acompanhamento das metas 24-27'!$C$2:$C$50,MATCH(B38,'Acompanhamento das metas 24-27'!$A$2:$A$50,0)),"") -> Planejamento territorial – (continuidade do mapa de uso e ocupação do solo) | E38: =IF(VLOOKUP(A38,Financeiro[[id_ação_Fonte_oculta]:[R$ Executado (2027)]],4,FALSE)=0,"",VLOOKUP(A38,Financeiro[[id_ação_Fonte_oculta]:[R$ Executado (2027)]],4,FALSE)) -> FEHIDRO - CFURH | F38: =IFERROR(INDEX(IdentAcoes[SubPDC],MATCH(B38,IdentAcoes[ID Ação],0)),"") -> 1.2 - Planejamento | G38: =IF(VLOOKUP(A38,Financeiro[[id_ação_Fonte_oculta]:[R$ Executado (2027)]],4,FALSE)=0,"",VLOOKUP(A38,Financeiro[[id_ação_Fonte_oculta]:[R$ Executado (2027)]],5,FALSE)) -> 0 | H38: =IF(VLOOKUP(A38,Financeiro[[id_ação_Fonte_oculta]:[R$ Executado (2027)]],4,FALSE)=0,"",VLOOKUP(A38,Financeiro[[id_ação_Fonte_oculta]:[R$ Executado (2027)]],8,FALSE)) -> 0 | I38: =IF(VLOOKUP(A38,Financeiro[[id_ação_Fonte_oculta]:[R$ Executado (2027)]],4,FALSE)=0,"",VLOOKUP(A38,Financeiro[[id_ação_Fonte_oculta]:[R$ Executado (2027)]],11,FALSE)) -> 300000 | J38: =IF(VLOOKUP(A38,Financeiro[[id_ação_Fonte_oculta]:[R$ Executado (2027)]],4,FALSE)=0,"",VLOOKUP(A38,Financeiro[[id_ação_Fonte_oculta]:[R$ Executado (2027)]],14,FALSE)) -> 0 | K38: 300000 | L38: =IFERROR(INDEX(IdentAcoes[Prioridade do PDC],MATCH(B38,IdentAcoes[ID Ação],0)),"") -> PDC 1 e 2 | M38: =IFERROR(INDEX(IdentAcoes[Segmento do executor],MATCH($B38,IdentAcoes[ID Ação],0)),"") -> Sociedade Civil | N38: =IFERROR(INDEX(IdentAcoes[Área de abrangência],MATCH($B38,IdentAcoes[ID Ação],0)),"") -> Município | O38: =IFERROR(INDEX(IdentAcoes[Detalhamento da área de abrangência],MATCH($B38,IdentAcoes[ID Ação],0)),"") -> Município São Bento do Sapucaí
A39: SM-37-2026FEHIDRO - CFURH | B39: SM-37-2026 | C39: =INDEX(Financeiro[Descrição da ação],MATCH(B39,Financeiro[ID Ação], 0)) -> T.1.2.16 Planejamento territorial com foco na conservação, proteção, recuperação ou uso dos recur-sos hídricos -Santo Antonio do Pinhal | D39: =IF(INDEX('Acompanhamento das metas 24-27'!$C$2:$C$50,MATCH(B39,'Acompanhamento das metas 24-27'!$A$2:$A$50,0))<>0,INDEX('Acompanhamento das metas 24-27'!$C$2:$C$50,MATCH(B39,'Acompanhamento das metas 24-27'!$A$2:$A$50,0)),"") -> Planejamento territorial – (continuidade do mapa de uso e ocupação do solo) | E39: =IF(VLOOKUP(A39,Financeiro[[id_ação_Fonte_oculta]:[R$ Executado (2027)]],4,FALSE)=0,"",VLOOKUP(A39,Financeiro[[id_ação_Fonte_oculta]:[R$ Executado (2027)]],4,FALSE)) -> FEHIDRO - CFURH | F39: =IFERROR(INDEX(IdentAcoes[SubPDC],MATCH(B39,IdentAcoes[ID Ação],0)),"") -> 1.2 - Planejamento | G39: =IF(VLOOKUP(A39,Financeiro[[id_ação_Fonte_oculta]:[R$ Executado (2027)]],4,FALSE)=0,"",VLOOKUP(A39,Financeiro[[id_ação_Fonte_oculta]:[R$ Executado (2027)]],5,FALSE)) -> 0 | H39: =IF(VLOOKUP(A39,Financeiro[[id_ação_Fonte_oculta]:[R$ Executado (2027)]],4,FALSE)=0,"",VLOOKUP(A39,Financeiro[[id_ação_Fonte_oculta]:[R$ Executado (2027)]],8,FALSE)) -> 0 | I39: =IF(VLOOKUP(A39,Financeiro[[id_ação_Fonte_oculta]:[R$ Executado (2027)]],4,FALSE)=0,"",VLOOKUP(A39,Financeiro[[id_ação_Fonte_oculta]:[R$ Executado (2027)]],11,FALSE)) -> 300000 | J39: =IF(VLOOKUP(A39,Financeiro[[id_ação_Fonte_oculta]:[R$ Executado (2027)]],4,FALSE)=0,"",VLOOKUP(A39,Financeiro[[id_ação_Fonte_oculta]:[R$ Executado (2027)]],14,FALSE)) -> 0 | K39: 300000 | L39: =IFERROR(INDEX(IdentAcoes[Prioridade do PDC],MATCH(B39,IdentAcoes[ID Ação],0)),"") -> PDC 1 e 2 | M39: =IFERROR(INDEX(IdentAcoes[Segmento do executor],MATCH($B39,IdentAcoes[ID Ação],0)),"") -> Sociedade Civil | N39: =IFERROR(INDEX(IdentAcoes[Área de abrangência],MATCH($B39,IdentAcoes[ID Ação],0)),"") -> Município | O39: =IFERROR(INDEX(IdentAcoes[Detalhamento da área de abrangência],MATCH($B39,IdentAcoes[ID Ação],0)),"") -> Município de Santo Antonio do Pinhal
A40: SM-38-2025FEHIDRO - CFURH | B40: SM-38-2025 | C40: =INDEX(Financeiro[Descrição da ação],MATCH(B40,Financeiro[ID Ação], 0)) -> T.3.2.1. Projetos (básicos e/ou executivos) de recuperação de áreas contaminadas | D40: =IF(INDEX('Acompanhamento das metas 24-27'!$C$2:$C$50,MATCH(B40,'Acompanhamento das metas 24-27'!$A$2:$A$50,0))<>0,INDEX('Acompanhamento das metas 24-27'!$C$2:$C$50,MATCH(B40,'Acompanhamento das metas 24-27'!$A$2:$A$50,0)),"") -> áreas contaminadas – poluição difusa – cemitério São Bento do Sapucai – 2025 | E40: =IF(VLOOKUP(A40,Financeiro[[id_ação_Fonte_oculta]:[R$ Executado (2027)]],4,FALSE)=0,"",VLOOKUP(A40,Financeiro[[id_ação_Fonte_oculta]:[R$ Executado (2027)]],4,FALSE)) -> FEHIDRO - CFURH | F40: =IFERROR(INDEX(IdentAcoes[SubPDC],MATCH(B40,IdentAcoes[ID Ação],0)),"") -> 3.3 - Resíduos | G40: =IF(VLOOKUP(A40,Financeiro[[id_ação_Fonte_oculta]:[R$ Executado (2027)]],4,FALSE)=0,"",VLOOKUP(A40,Financeiro[[id_ação_Fonte_oculta]:[R$ Executado (2027)]],5,FALSE)) -> 0 | H40: =IF(VLOOKUP(A40,Financeiro[[id_ação_Fonte_oculta]:[R$ Executado (2027)]],4,FALSE)=0,"",VLOOKUP(A40,Financeiro[[id_ação_Fonte_oculta]:[R$ Executado (2027)]],8,FALSE)) -> 150000 | I40: =IF(VLOOKUP(A40,Financeiro[[id_ação_Fonte_oculta]:[R$ Executado (2027)]],4,FALSE)=0,"",VLOOKUP(A40,Financeiro[[id_ação_Fonte_oculta]:[R$ Executado (2027)]],11,FALSE)) -> 0 | J40: =IF(VLOOKUP(A40,Financeiro[[id_ação_Fonte_oculta]:[R$ Executado (2027)]],4,FALSE)=0,"",VLOOKUP(A40,Financeiro[[id_ação_Fonte_oculta]:[R$ Executado (2027)]],14,FALSE)) -> 0 | K40: 150000 | L40: =IFERROR(INDEX(IdentAcoes[Prioridade do PDC],MATCH(B40,IdentAcoes[ID Ação],0)),"") -> Prioritário | M40: =IFERROR(INDEX(IdentAcoes[Segmento do executor],MATCH($B40,IdentAcoes[ID Ação],0)),"") -> Sociedade Civil | N40: =IFERROR(INDEX(IdentAcoes[Área de abrangência],MATCH($B40,IdentAcoes[ID Ação],0)),"") -> Área urbana | O40: =IFERROR(INDEX(IdentAcoes[Detalhamento da área de abrangência],MATCH($B40,IdentAcoes[ID Ação],0)),"") -> Município São Bento do Sapucaí / cemiterio
A41: SM-39-2026FEHIDRO - CFURH | B41: SM-39-2026 | C41: =INDEX(Financeiro[Descrição da ação],MATCH(B41,Financeiro[ID Ação], 0)) -> T.3.3.1 – Projeto ( básico ou executivo) de aterro sanitário para disposição de resíduos solidos domiciliares (continuidade Revisão Plano de Resíduos Sólidos São Bento do Sapucaí) | D41: =IF(INDEX('Acompanhamento das metas 24-27'!$C$2:$C$50,MATCH(B41,'Acompanhamento das metas 24-27'!$A$2:$A$50,0))<>0,INDEX('Acompanhamento das metas 24-27'!$C$2:$C$50,MATCH(B41,'Acompanhamento das metas 24-27'!$A$2:$A$50,0)),"") -> Projeto inicial de aterro sanitário para disposição de resíduos solidos domiciliares (continuidade Revisão Plano de Resíduos Sólidos) - São Bento do Sapucaí | E41: =IF(VLOOKUP(A41,Financeiro[[id_ação_Fonte_oculta]:[R$ Executado (2027)]],4,FALSE)=0,"",VLOOKUP(A41,Financeiro[[id_ação_Fonte_oculta]:[R$ Executado (2027)]],4,FALSE)) -> FEHIDRO - CFURH | F41: =IFERROR(INDEX(IdentAcoes[SubPDC],MATCH(B41,IdentAcoes[ID Ação],0)),"") -> 3.3 - Resíduos | G41: =IF(VLOOKUP(A41,Financeiro[[id_ação_Fonte_oculta]:[R$ Executado (2027)]],4,FALSE)=0,"",VLOOKUP(A41,Financeiro[[id_ação_Fonte_oculta]:[R$ Executado (2027)]],5,FALSE)) -> 0 | H41: =IF(VLOOKUP(A41,Financeiro[[id_ação_Fonte_oculta]:[R$ Executado (2027)]],4,FALSE)=0,"",VLOOKUP(A41,Financeiro[[id_ação_Fonte_oculta]:[R$ Executado (2027)]],8,FALSE)) -> 0 | I41: =IF(VLOOKUP(A41,Financeiro[[id_ação_Fonte_oculta]:[R$ Executado (2027)]],4,FALSE)=0,"",VLOOKUP(A41,Financeiro[[id_ação_Fonte_oculta]:[R$ Executado (2027)]],11,FALSE)) -> 100000 | J41: =IF(VLOOKUP(A41,Financeiro[[id_ação_Fonte_oculta]:[R$ Executado (2027)]],4,FALSE)=0,"",VLOOKUP(A41,Financeiro[[id_ação_Fonte_oculta]:[R$ Executado (2027)]],14,FALSE)) -> 0 | K41: 100000 | L41: =IFERROR(INDEX(IdentAcoes[Prioridade do PDC],MATCH(B41,IdentAcoes[ID Ação],0)),"") -> Prioritário | M41: =IFERROR(INDEX(IdentAcoes[Segmento do executor],MATCH($B41,IdentAcoes[ID Ação],0)),"") -> Município e Sociedade Civil | N41: =IFERROR(INDEX(IdentAcoes[Área de abrangência],MATCH($B41,IdentAcoes[ID Ação],0)),"") -> Município | O41: =IFERROR(INDEX(IdentAcoes[Detalhamento da área de abrangência],MATCH($B41,IdentAcoes[ID Ação],0)),"") -> Município São Bento do Sapucaí
A42: SM-40-2027FEHIDRO - CFURH | B42: SM-40-2027 | C42: =INDEX(Financeiro[Descrição da ação],MATCH(B42,Financeiro[ID Ação], 0)) -> T.3.3.1 – Projeto ( básico ou executivo) de aterro sanitário para disposição de resíduos solidos domiciliares (continuidade Revisão Plano de Resíduos Sólidos - Santo Antonio do Pinhal) | D42: =IF(INDEX('Acompanhamento das metas 24-27'!$C$2:$C$50,MATCH(B42,'Acompanhamento das metas 24-27'!$A$2:$A$50,0))<>0,INDEX('Acompanhamento das metas 24-27'!$C$2:$C$50,MATCH(B42,'Acompanhamento das metas 24-27'!$A$2:$A$50,0)),"") -> Projeto inicial de aterro sanitário para disposição de resíduos solidos domiciliares (continuidade Revisão Plano de Resíduos Sólidos)-Santo Antonio do Pinhal | E42: =IF(VLOOKUP(A42,Financeiro[[id_ação_Fonte_oculta]:[R$ Executado (2027)]],4,FALSE)=0,"",VLOOKUP(A42,Financeiro[[id_ação_Fonte_oculta]:[R$ Executado (2027)]],4,FALSE)) -> FEHIDRO - CFURH | F42: =IFERROR(INDEX(IdentAcoes[SubPDC],MATCH(B42,IdentAcoes[ID Ação],0)),"") -> 3.3 - Resíduos | G42: =IF(VLOOKUP(A42,Financeiro[[id_ação_Fonte_oculta]:[R$ Executado (2027)]],4,FALSE)=0,"",VLOOKUP(A42,Financeiro[[id_ação_Fonte_oculta]:[R$ Executado (2027)]],5,FALSE)) -> 0 | H42: =IF(VLOOKUP(A42,Financeiro[[id_ação_Fonte_oculta]:[R$ Executado (2027)]],4,FALSE)=0,"",VLOOKUP(A42,Financeiro[[id_ação_Fonte_oculta]:[R$ Executado (2027)]],8,FALSE)) -> 0 | I42: =IF(VLOOKUP(A42,Financeiro[[id_ação_Fonte_oculta]:[R$ Executado (2027)]],4,FALSE)=0,"",VLOOKUP(A42,Financeiro[[id_ação_Fonte_oculta]:[R$ Executado (2027)]],11,FALSE)) -> 0 | J42: =IF(VLOOKUP(A42,Financeiro[[id_ação_Fonte_oculta]:[R$ Executado (2027)]],4,FALSE)=0,"",VLOOKUP(A42,Financeiro[[id_ação_Fonte_oculta]:[R$ Executado (2027)]],14,FALSE)) -> 100000 | K42: 100000 | L42: =IFERROR(INDEX(IdentAcoes[Prioridade do PDC],MATCH(B42,IdentAcoes[ID Ação],0)),"") -> Prioritário | M42: =IFERROR(INDEX(IdentAcoes[Segmento do executor],MATCH($B42,IdentAcoes[ID Ação],0)),"") -> Município e Sociedade Civil | N42: =IFERROR(INDEX(IdentAcoes[Área de abrangência],MATCH($B42,IdentAcoes[ID Ação],0)),"") -> Município | O42: =IFERROR(INDEX(IdentAcoes[Detalhamento da área de abrangência],MATCH($B42,IdentAcoes[ID Ação],0)),"") -> Município de Santo Antonio do Pinhal
A43: SM-41-2027FEHIDRO - CFURH | B43: SM-41-2027 | C43: =INDEX(Financeiro[Descrição da ação],MATCH(B43,Financeiro[ID Ação], 0)) -> T.3.3.4 – Implantação de unidade de tratamento de residuos sólidos – Sao Bento do Sapucaí (compostagem, reciclagem ou incineração) associado ou não a undade de transbordo | D43: =IF(INDEX('Acompanhamento das metas 24-27'!$C$2:$C$50,MATCH(B43,'Acompanhamento das metas 24-27'!$A$2:$A$50,0))<>0,INDEX('Acompanhamento das metas 24-27'!$C$2:$C$50,MATCH(B43,'Acompanhamento das metas 24-27'!$A$2:$A$50,0)),"") -> Implantação de aterro sanitário, ecoponto e PEV – Ponto de Entrega Voluntária – (continuidade Revisão Plano de Resíduos Sólidos) - São Bento do Sapucaí | E43: =IF(VLOOKUP(A43,Financeiro[[id_ação_Fonte_oculta]:[R$ Executado (2027)]],4,FALSE)=0,"",VLOOKUP(A43,Financeiro[[id_ação_Fonte_oculta]:[R$ Executado (2027)]],4,FALSE)) -> FEHIDRO - CFURH | F43: =IFERROR(INDEX(IdentAcoes[SubPDC],MATCH(B43,IdentAcoes[ID Ação],0)),"") -> 3.3 - Resíduos | G43: =IF(VLOOKUP(A43,Financeiro[[id_ação_Fonte_oculta]:[R$ Executado (2027)]],4,FALSE)=0,"",VLOOKUP(A43,Financeiro[[id_ação_Fonte_oculta]:[R$ Executado (2027)]],5,FALSE)) -> 0 | H43: =IF(VLOOKUP(A43,Financeiro[[id_ação_Fonte_oculta]:[R$ Executado (2027)]],4,FALSE)=0,"",VLOOKUP(A43,Financeiro[[id_ação_Fonte_oculta]:[R$ Executado (2027)]],8,FALSE)) -> 0 | I43: =IF(VLOOKUP(A43,Financeiro[[id_ação_Fonte_oculta]:[R$ Executado (2027)]],4,FALSE)=0,"",VLOOKUP(A43,Financeiro[[id_ação_Fonte_oculta]:[R$ Executado (2027)]],11,FALSE)) -> 0 | J43: =IF(VLOOKUP(A43,Financeiro[[id_ação_Fonte_oculta]:[R$ Executado (2027)]],4,FALSE)=0,"",VLOOKUP(A43,Financeiro[[id_ação_Fonte_oculta]:[R$ Executado (2027)]],14,FALSE)) -> 200000 | K43: 200000 | L43: =IFERROR(INDEX(IdentAcoes[Prioridade do PDC],MATCH(B43,IdentAcoes[ID Ação],0)),"") -> Prioritário | M43: =IFERROR(INDEX(IdentAcoes[Segmento do executor],MATCH($B43,IdentAcoes[ID Ação],0)),"") -> Município | N43: =IFERROR(INDEX(IdentAcoes[Área de abrangência],MATCH($B43,IdentAcoes[ID Ação],0)),"") -> Município | O43: =IFERROR(INDEX(IdentAcoes[Detalhamento da área de abrangência],MATCH($B43,IdentAcoes[ID Ação],0)),"") -> Município São Bento do Sapucaí
A44: SM-42-2027FEHIDRO - CFURH | B44: SM-42-2027 | C44: =INDEX(Financeiro[Descrição da ação],MATCH(B44,Financeiro[ID Ação], 0)) -> T.3.3.4 – Implantação de unidade de tratamento de residuos sólidos – Santo Antonio do Pinhal (compostagem, reciclagem ou incineração) associado ou não a undade de transbordo | D44: =IF(INDEX('Acompanhamento das metas 24-27'!$C$2:$C$50,MATCH(B44,'Acompanhamento das metas 24-27'!$A$2:$A$50,0))<>0,INDEX('Acompanhamento das metas 24-27'!$C$2:$C$50,MATCH(B44,'Acompanhamento das metas 24-27'!$A$2:$A$50,0)),"") -> Implantação de aterro sanitário, ecoponto e PEV – Ponto de Entrega Voluntária – (continuidade Revisão Plano de Resíduos Sólidos) - Santo Antonio do Pinhal | E44: =IF(VLOOKUP(A44,Financeiro[[id_ação_Fonte_oculta]:[R$ Executado (2027)]],4,FALSE)=0,"",VLOOKUP(A44,Financeiro[[id_ação_Fonte_oculta]:[R$ Executado (2027)]],4,FALSE)) -> FEHIDRO - CFURH | F44: =IFERROR(INDEX(IdentAcoes[SubPDC],MATCH(B44,IdentAcoes[ID Ação],0)),"") -> 3.3 - Resíduos | G44: =IF(VLOOKUP(A44,Financeiro[[id_ação_Fonte_oculta]:[R$ Executado (2027)]],4,FALSE)=0,"",VLOOKUP(A44,Financeiro[[id_ação_Fonte_oculta]:[R$ Executado (2027)]],5,FALSE)) -> 0 | H44: =IF(VLOOKUP(A44,Financeiro[[id_ação_Fonte_oculta]:[R$ Executado (2027)]],4,FALSE)=0,"",VLOOKUP(A44,Financeiro[[id_ação_Fonte_oculta]:[R$ Executado (2027)]],8,FALSE)) -> 0 | I44: =IF(VLOOKUP(A44,Financeiro[[id_ação_Fonte_oculta]:[R$ Executado (2027)]],4,FALSE)=0,"",VLOOKUP(A44,Financeiro[[id_ação_Fonte_oculta]:[R$ Executado (2027)]],11,FALSE)) -> 0 | J44: =IF(VLOOKUP(A44,Financeiro[[id_ação_Fonte_oculta]:[R$ Executado (2027)]],4,FALSE)=0,"",VLOOKUP(A44,Financeiro[[id_ação_Fonte_oculta]:[R$ Executado (2027)]],14,FALSE)) -> 200000 | K44: 200000 | L44: =IFERROR(INDEX(IdentAcoes[Prioridade do PDC],MATCH(B44,IdentAcoes[ID Ação],0)),"") -> Prioritário | M44: =IFERROR(INDEX(IdentAcoes[Segmento do executor],MATCH($B44,IdentAcoes[ID Ação],0)),"") -> Município | N44: =IFERROR(INDEX(IdentAcoes[Área de abrangência],MATCH($B44,IdentAcoes[ID Ação],0)),"") -> Município | O44: =IFERROR(INDEX(IdentAcoes[Detalhamento da área de abrangência],MATCH($B44,IdentAcoes[ID Ação],0)),"") -> Município de Santo Antonio do Pinhal
A45: SM-43-2026FEHIDRO - CFURH | B45: SM-43-2026 | C45: =INDEX(Financeiro[Descrição da ação],MATCH(B45,Financeiro[ID Ação], 0)) -> T.4.1.5 Projeto ( Básico ou executivo) de desassoreamento de curso dágua - Sao Bento do Sapucaí | D45: =IF(INDEX('Acompanhamento das metas 24-27'!$C$2:$C$50,MATCH(B45,'Acompanhamento das metas 24-27'!$A$2:$A$50,0))<>0,INDEX('Acompanhamento das metas 24-27'!$C$2:$C$50,MATCH(B45,'Acompanhamento das metas 24-27'!$A$2:$A$50,0)),"") -> Controle de processos erosivos - Proteção margens – (continuidade do macrodrenagem) - São Bento do Sapucaí | E45: =IF(VLOOKUP(A45,Financeiro[[id_ação_Fonte_oculta]:[R$ Executado (2027)]],4,FALSE)=0,"",VLOOKUP(A45,Financeiro[[id_ação_Fonte_oculta]:[R$ Executado (2027)]],4,FALSE)) -> FEHIDRO - CFURH | F45: =IFERROR(INDEX(IdentAcoes[SubPDC],MATCH(B45,IdentAcoes[ID Ação],0)),"") -> 4.1 - Controle erosão | G45: =IF(VLOOKUP(A45,Financeiro[[id_ação_Fonte_oculta]:[R$ Executado (2027)]],4,FALSE)=0,"",VLOOKUP(A45,Financeiro[[id_ação_Fonte_oculta]:[R$ Executado (2027)]],5,FALSE)) -> 0 | H45: =IF(VLOOKUP(A45,Financeiro[[id_ação_Fonte_oculta]:[R$ Executado (2027)]],4,FALSE)=0,"",VLOOKUP(A45,Financeiro[[id_ação_Fonte_oculta]:[R$ Executado (2027)]],8,FALSE)) -> 0 | I45: =IF(VLOOKUP(A45,Financeiro[[id_ação_Fonte_oculta]:[R$ Executado (2027)]],4,FALSE)=0,"",VLOOKUP(A45,Financeiro[[id_ação_Fonte_oculta]:[R$ Executado (2027)]],11,FALSE)) -> 150000 | J45: =IF(VLOOKUP(A45,Financeiro[[id_ação_Fonte_oculta]:[R$ Executado (2027)]],4,FALSE)=0,"",VLOOKUP(A45,Financeiro[[id_ação_Fonte_oculta]:[R$ Executado (2027)]],14,FALSE)) -> 0 | K45: 150000 | L45: =IFERROR(INDEX(IdentAcoes[Prioridade do PDC],MATCH(B45,IdentAcoes[ID Ação],0)),"") -> Prioritário | M45: =IFERROR(INDEX(IdentAcoes[Segmento do executor],MATCH($B45,IdentAcoes[ID Ação],0)),"") -> Município | N45: =IFERROR(INDEX(IdentAcoes[Área de abrangência],MATCH($B45,IdentAcoes[ID Ação],0)),"") -> Corpo hídrico | O45: =IFERROR(INDEX(IdentAcoes[Detalhamento da área de abrangência],MATCH($B45,IdentAcoes[ID Ação],0)),"") -> 0
A46: SM-44-2026FEHIDRO - CFURH | B46: SM-44-2026 | C46: =INDEX(Financeiro[Descrição da ação],MATCH(B46,Financeiro[ID Ação], 0)) -> T.4.1.5 Projeto ( Básico ou executivo) de desassoreamento de curso dágua - Santo Antonio do Pinhal | D46: =IF(INDEX('Acompanhamento das metas 24-27'!$C$2:$C$50,MATCH(B46,'Acompanhamento das metas 24-27'!$A$2:$A$50,0))<>0,INDEX('Acompanhamento das metas 24-27'!$C$2:$C$50,MATCH(B46,'Acompanhamento das metas 24-27'!$A$2:$A$50,0)),"") -> Controle de processos erosivos - Proteção margens – (continuidade do macrodrenagem) - Santo Antonio do Pinhal | E46: =IF(VLOOKUP(A46,Financeiro[[id_ação_Fonte_oculta]:[R$ Executado (2027)]],4,FALSE)=0,"",VLOOKUP(A46,Financeiro[[id_ação_Fonte_oculta]:[R$ Executado (2027)]],4,FALSE)) -> FEHIDRO - CFURH | F46: =IFERROR(INDEX(IdentAcoes[SubPDC],MATCH(B46,IdentAcoes[ID Ação],0)),"") -> 4.1 - Controle erosão | G46: =IF(VLOOKUP(A46,Financeiro[[id_ação_Fonte_oculta]:[R$ Executado (2027)]],4,FALSE)=0,"",VLOOKUP(A46,Financeiro[[id_ação_Fonte_oculta]:[R$ Executado (2027)]],5,FALSE)) -> 0 | H46: =IF(VLOOKUP(A46,Financeiro[[id_ação_Fonte_oculta]:[R$ Executado (2027)]],4,FALSE)=0,"",VLOOKUP(A46,Financeiro[[id_ação_Fonte_oculta]:[R$ Executado (2027)]],8,FALSE)) -> 0 | I46: =IF(VLOOKUP(A46,Financeiro[[id_ação_Fonte_oculta]:[R$ Executado (2027)]],4,FALSE)=0,"",VLOOKUP(A46,Financeiro[[id_ação_Fonte_oculta]:[R$ Executado (2027)]],11,FALSE)) -> 150000 | J46: =IF(VLOOKUP(A46,Financeiro[[id_ação_Fonte_oculta]:[R$ Executado (2027)]],4,FALSE)=0,"",VLOOKUP(A46,Financeiro[[id_ação_Fonte_oculta]:[R$ Executado (2027)]],14,FALSE)) -> 0 | K46: 150000 | L46: =IFERROR(INDEX(IdentAcoes[Prioridade do PDC],MATCH(B46,IdentAcoes[ID Ação],0)),"") -> Prioritário | M46: =IFERROR(INDEX(IdentAcoes[Segmento do executor],MATCH($B46,IdentAcoes[ID Ação],0)),"") -> Município | N46: =IFERROR(INDEX(IdentAcoes[Área de abrangência],MATCH($B46,IdentAcoes[ID Ação],0)),"") -> Corpo hídrico | O46: =IFERROR(INDEX(IdentAcoes[Detalhamento da área de abrangência],MATCH($B46,IdentAcoes[ID Ação],0)),"") -> Município de Santo Antonio do Pinhal
A47: SM-45-2025FEHIDRO - CFURH | B47: SM-45-2025 | C47: =INDEX(Financeiro[Descrição da ação],MATCH(B47,Financeiro[ID Ação], 0)) -> T.4.2.11 Projeto Executivo de aumento de áreas permeáveis e/ou redução de escoamento superficial por meio de implantacao de estrutura verde - parque linear | D47: =IF(INDEX('Acompanhamento das metas 24-27'!$C$2:$C$50,MATCH(B47,'Acompanhamento das metas 24-27'!$A$2:$A$50,0))<>0,INDEX('Acompanhamento das metas 24-27'!$C$2:$C$50,MATCH(B47,'Acompanhamento das metas 24-27'!$A$2:$A$50,0)),"") -> Implantação de parque linear , bosque urbano em São Bento do Sapucaí | E47: =IF(VLOOKUP(A47,Financeiro[[id_ação_Fonte_oculta]:[R$ Executado (2027)]],4,FALSE)=0,"",VLOOKUP(A47,Financeiro[[id_ação_Fonte_oculta]:[R$ Executado (2027)]],4,FALSE)) -> FEHIDRO - CFURH | F47: =IFERROR(INDEX(IdentAcoes[SubPDC],MATCH(B47,IdentAcoes[ID Ação],0)),"") -> 4.2 - Soluções baseadas Natureza | G47: =IF(VLOOKUP(A47,Financeiro[[id_ação_Fonte_oculta]:[R$ Executado (2027)]],4,FALSE)=0,"",VLOOKUP(A47,Financeiro[[id_ação_Fonte_oculta]:[R$ Executado (2027)]],5,FALSE)) -> 0 | H47: =IF(VLOOKUP(A47,Financeiro[[id_ação_Fonte_oculta]:[R$ Executado (2027)]],4,FALSE)=0,"",VLOOKUP(A47,Financeiro[[id_ação_Fonte_oculta]:[R$ Executado (2027)]],8,FALSE)) -> 150000 | I47: =IF(VLOOKUP(A47,Financeiro[[id_ação_Fonte_oculta]:[R$ Executado (2027)]],4,FALSE)=0,"",VLOOKUP(A47,Financeiro[[id_ação_Fonte_oculta]:[R$ Executado (2027)]],11,FALSE)) -> 0 | J47: =IF(VLOOKUP(A47,Financeiro[[id_ação_Fonte_oculta]:[R$ Executado (2027)]],4,FALSE)=0,"",VLOOKUP(A47,Financeiro[[id_ação_Fonte_oculta]:[R$ Executado (2027)]],14,FALSE)) -> 0 | K47: 150000 | L47: =IFERROR(INDEX(IdentAcoes[Prioridade do PDC],MATCH(B47,IdentAcoes[ID Ação],0)),"") -> Prioritário | M47: =IFERROR(INDEX(IdentAcoes[Segmento do executor],MATCH($B47,IdentAcoes[ID Ação],0)),"") -> Município e Sociedade Civil | N47: =IFERROR(INDEX(IdentAcoes[Área de abrangência],MATCH($B47,IdentAcoes[ID Ação],0)),"") -> Região Hidrográfica | O47: =IFERROR(INDEX(IdentAcoes[Detalhamento da área de abrangência],MATCH($B47,IdentAcoes[ID Ação],0)),"") -> Município São Bento do Sapucaí
A48: SM-46-2025FEHIDRO - CFURH | B48: SM-46-2025 | C48: =INDEX(Financeiro[Descrição da ação],MATCH(B48,Financeiro[ID Ação], 0)) -> T.8.3.1. Campanha educativa voltada para a conservação e gestão dos recursos hídricos - continuidade Plano Educação Ambiental | D48: =IF(INDEX('Acompanhamento das metas 24-27'!$C$2:$C$50,MATCH(B48,'Acompanhamento das metas 24-27'!$A$2:$A$50,0))<>0,INDEX('Acompanhamento das metas 24-27'!$C$2:$C$50,MATCH(B48,'Acompanhamento das metas 24-27'!$A$2:$A$50,0)),"") -> Realizar campanha educativa na gestão de recursos hídricos - continuidade e ações do Projeto Plano de Educação Ambiental - Caminho das Águas | E48: =IF(VLOOKUP(A48,Financeiro[[id_ação_Fonte_oculta]:[R$ Executado (2027)]],4,FALSE)=0,"",VLOOKUP(A48,Financeiro[[id_ação_Fonte_oculta]:[R$ Executado (2027)]],4,FALSE)) -> FEHIDRO - CFURH | F48: =IFERROR(INDEX(IdentAcoes[SubPDC],MATCH(B48,IdentAcoes[ID Ação],0)),"") -> 8.2 - Educação | G48: =IF(VLOOKUP(A48,Financeiro[[id_ação_Fonte_oculta]:[R$ Executado (2027)]],4,FALSE)=0,"",VLOOKUP(A48,Financeiro[[id_ação_Fonte_oculta]:[R$ Executado (2027)]],5,FALSE)) -> 0 | H48: =IF(VLOOKUP(A48,Financeiro[[id_ação_Fonte_oculta]:[R$ Executado (2027)]],4,FALSE)=0,"",VLOOKUP(A48,Financeiro[[id_ação_Fonte_oculta]:[R$ Executado (2027)]],8,FALSE)) -> 300000 | I48: =IF(VLOOKUP(A48,Financeiro[[id_ação_Fonte_oculta]:[R$ Executado (2027)]],4,FALSE)=0,"",VLOOKUP(A48,Financeiro[[id_ação_Fonte_oculta]:[R$ Executado (2027)]],11,FALSE)) -> 0 | J48: =IF(VLOOKUP(A48,Financeiro[[id_ação_Fonte_oculta]:[R$ Executado (2027)]],4,FALSE)=0,"",VLOOKUP(A48,Financeiro[[id_ação_Fonte_oculta]:[R$ Executado (2027)]],14,FALSE)) -> 0 | K48: 300000 | L48: =IFERROR(INDEX(IdentAcoes[Prioridade do PDC],MATCH(B48,IdentAcoes[ID Ação],0)),"") -> Não prioritário | M48: =IFERROR(INDEX(IdentAcoes[Segmento do executor],MATCH($B48,IdentAcoes[ID Ação],0)),"") -> Sociedade Civil | N48: =IFERROR(INDEX(IdentAcoes[Área de abrangência],MATCH($B48,IdentAcoes[ID Ação],0)),"") -> UGRHi | O48: =IFERROR(INDEX(IdentAcoes[Detalhamento da área de abrangência],MATCH($B48,IdentAcoes[ID Ação],0)),"") -> UGRHI-1
A49: SM-47-2024FEHIDRO - Cobrança estadual | B49: SM-47-2024 | C49: =INDEX(Financeiro[Descrição da ação],MATCH(B49,Financeiro[ID Ação], 0)) -> T.1.2.2 . Diagnóstico qualitativo e/ou quantitativo de recursos hídricos superficiais e/ou subterrâneos nas sub bacias Perdizes,Bau,Serrano e Prata | D49: =IF(INDEX('Acompanhamento das metas 24-27'!$C$2:$C$50,MATCH(B49,'Acompanhamento das metas 24-27'!$A$2:$A$50,0))<>0,INDEX('Acompanhamento das metas 24-27'!$C$2:$C$50,MATCH(B49,'Acompanhamento das metas 24-27'!$A$2:$A$50,0)),"") -> Caracterização da Vulnerabilidade Ambiental das Nascentes, e Diagnóstico dos Recursos Hidricos das Sub-Bacias de Perdizes, Baú, Serrano e Prata da Bacia Hidrográfica da Serra da Mantiqueira – UGRHI 1 | E49: =IF(VLOOKUP(A49,Financeiro[[id_ação_Fonte_oculta]:[R$ Executado (2027)]],4,FALSE)=0,"",VLOOKUP(A49,Financeiro[[id_ação_Fonte_oculta]:[R$ Executado (2027)]],4,FALSE)) -> FEHIDRO - Cobrança estadual | F49: =IFERROR(INDEX(IdentAcoes[SubPDC],MATCH(B49,IdentAcoes[ID Ação],0)),"") -> 1.2 - Planejamento | G49: =IF(VLOOKUP(A49,Financeiro[[id_ação_Fonte_oculta]:[R$ Executado (2027)]],4,FALSE)=0,"",VLOOKUP(A49,Financeiro[[id_ação_Fonte_oculta]:[R$ Executado (2027)]],5,FALSE)) -> 0 | H49: =IF(VLOOKUP(A49,Financeiro[[id_ação_Fonte_oculta]:[R$ Executado (2027)]],4,FALSE)=0,"",VLOOKUP(A49,Financeiro[[id_ação_Fonte_oculta]:[R$ Executado (2027)]],8,FALSE)) -> 0 | I49: =IF(VLOOKUP(A49,Financeiro[[id_ação_Fonte_oculta]:[R$ Executado (2027)]],4,FALSE)=0,"",VLOOKUP(A49,Financeiro[[id_ação_Fonte_oculta]:[R$ Executado (2027)]],11,FALSE)) -> 0 | J49: =IF(VLOOKUP(A49,Financeiro[[id_ação_Fonte_oculta]:[R$ Executado (2027)]],4,FALSE)=0,"",VLOOKUP(A49,Financeiro[[id_ação_Fonte_oculta]:[R$ Executado (2027)]],14,FALSE)) -> 0 | K49: 0 | L49: =IFERROR(INDEX(IdentAcoes[Prioridade do PDC],MATCH(B49,IdentAcoes[ID Ação],0)),"") -> PDC 1 e 2 | M49: =IFERROR(INDEX(IdentAcoes[Segmento do executor],MATCH($B49,IdentAcoes[ID Ação],0)),"") -> Sociedade Civil | N49: =IFERROR(INDEX(IdentAcoes[Área de abrangência],MATCH($B49,IdentAcoes[ID Ação],0)),"") -> Sub-bacia | O49: =IFERROR(INDEX(IdentAcoes[Detalhamento da área de abrangência],MATCH($B49,IdentAcoes[ID Ação],0)),"") -> Sub Bacia Sapucai Guacu
C50: =INDEX(Financeiro[Descrição da ação],MATCH(B50,Financeiro[ID Ação], 0)) ->  | D50: =IF(INDEX('Acompanhamento das metas 24-27'!$C$2:$C$50,MATCH(B50,'Acompanhamento das metas 24-27'!$A$2:$A$50,0))<>0,INDEX('Acompanhamento das metas 24-27'!$C$2:$C$50,MATCH(B50,'Acompanhamento das metas 24-27'!$A$2:$A$50,0)),"") ->  | E50: =IF(VLOOKUP(A50,Financeiro[[id_ação_Fonte_oculta]:[R$ Executado (2027)]],4,FALSE)=0,"",VLOOKUP(A50,Financeiro[[id_ação_Fonte_oculta]:[R$ Executado (2027)]],4,FALSE)) ->  | F50: =IFERROR(INDEX(IdentAcoes[SubPDC],MATCH(B50,IdentAcoes[ID Ação],0)),"") ->  | G50: =IF(VLOOKUP(A50,Financeiro[[id_ação_Fonte_oculta]:[R$ Executado (2027)]],4,FALSE)=0,"",VLOOKUP(A50,Financeiro[[id_ação_Fonte_oculta]:[R$ Executado (2027)]],5,FALSE)) ->  | H50: =IF(VLOOKUP(A50,Financeiro[[id_ação_Fonte_oculta]:[R$ Executado (2027)]],4,FALSE)=0,"",VLOOKUP(A50,Financeiro[[id_ação_Fonte_oculta]:[R$ Executado (2027)]],8,FALSE)) ->  | I50: =IF(VLOOKUP(A50,Financeiro[[id_ação_Fonte_oculta]:[R$ Executado (2027)]],4,FALSE)=0,"",VLOOKUP(A50,Financeiro[[id_ação_Fonte_oculta]:[R$ Executado (2027)]],11,FALSE)) ->  | J50: =IF(VLOOKUP(A50,Financeiro[[id_ação_Fonte_oculta]:[R$ Executado (2027)]],4,FALSE)=0,"",VLOOKUP(A50,Financeiro[[id_ação_Fonte_oculta]:[R$ Executado (2027)]],14,FALSE)) ->  | K50: 0 | L50: =IFERROR(INDEX(IdentAcoes[Prioridade do PDC],MATCH(B50,IdentAcoes[ID Ação],0)),"") ->  | M50: =IFERROR(INDEX(IdentAcoes[Segmento do executor],MATCH($B50,IdentAcoes[ID Ação],0)),"") ->  | N50: =IFERROR(INDEX(IdentAcoes[Área de abrangência],MATCH($B50,IdentAcoes[ID Ação],0)),"") ->  | O50: =IFERROR(INDEX(IdentAcoes[Detalhamento da área de abrangência],MATCH($B50,IdentAcoes[ID Ação],0)),"") -> 
C51: =INDEX(Financeiro[Descrição da ação],MATCH(B51,Financeiro[ID Ação], 0)) ->  | E51: =IF(VLOOKUP(A51,Financeiro[[id_ação_Fonte_oculta]:[R$ Executado (2027)]],4,FALSE)=0,"",VLOOKUP(A51,Financeiro[[id_ação_Fonte_oculta]:[R$ Executado (2027)]],4,FALSE)) ->  | F51: =IFERROR(INDEX(IdentAcoes[SubPDC],MATCH(B51,IdentAcoes[ID Ação],0)),"") ->  | G51: =IF(VLOOKUP(A51,Financeiro[[id_ação_Fonte_oculta]:[R$ Executado (2027)]],4,FALSE)=0,"",VLOOKUP(A51,Financeiro[[id_ação_Fonte_oculta]:[R$ Executado (2027)]],5,FALSE)) ->  | H51: =IF(VLOOKUP(A51,Financeiro[[id_ação_Fonte_oculta]:[R$ Executado (2027)]],4,FALSE)=0,"",VLOOKUP(A51,Financeiro[[id_ação_Fonte_oculta]:[R$ Executado (2027)]],8,FALSE)) ->  | I51: =IF(VLOOKUP(A51,Financeiro[[id_ação_Fonte_oculta]:[R$ Executado (2027)]],4,FALSE)=0,"",VLOOKUP(A51,Financeiro[[id_ação_Fonte_oculta]:[R$ Executado (2027)]],11,FALSE)) ->  | J51: =IF(VLOOKUP(A51,Financeiro[[id_ação_Fonte_oculta]:[R$ Executado (2027)]],4,FALSE)=0,"",VLOOKUP(A51,Financeiro[[id_ação_Fonte_oculta]:[R$ Executado (2027)]],14,FALSE)) ->  | L51: =IFERROR(INDEX(IdentAcoes[Prioridade do PDC],MATCH(B51,IdentAcoes[ID Ação],0)),"") ->  | M51: =IFERROR(INDEX(IdentAcoes[Segmento do executor],MATCH($B51,IdentAcoes[ID Ação],0)),"") ->  | N51: =IFERROR(INDEX(IdentAcoes[Área de abrangência],MATCH($B51,IdentAcoes[ID Ação],0)),"") ->  | O51: =IFERROR(INDEX(IdentAcoes[Detalhamento da área de abrangência],MATCH($B51,IdentAcoes[ID Ação],0)),"") -> 

Sheet Consolidaçao - 1 (hidden)
A1: Delib. 190 | C1: 2021 (R$ Estimado) | H1: Delib. 246 | I1: 2022 (R$ Estimado) | N1: 2023 (R$ Estimado) | S1: 2022 - 2023 (R$ Estimado)
A2: SubPDC | B2: CFURH | C2: Cobrança Estadual | D2: Cobrança Federal | E2: Outras | F2: TOTAL | H2: SubPDC | I2: CFURH | J2: Cobrança Estadual | K2: Cobrança Federal | L2: Outras | M2: TOTAL | N2: CFURH | O2: Cobrança Estadual | P2: Cobrança Federal | Q2: Outras | R2: TOTAL | S2: TOTAL
A3: 1.1 - SI | B3: =SUMIFS(#REF!,#REF!,A3,#REF!,2021) ->  | C3: =SUMIFS(#REF!,#REF!,A3,#REF!,2021) ->  | D3: =SUMIFS(#REF!,#REF!,A3,#REF!,2021) ->  | E3: =SUMIFS(#REF!,#REF!,A3,#REF!,2021) ->  | F3: =SUM(B3:E3) ->  | H3: 1.1 - Legislação | I3: =SUMIFS(PAPI20_22_23[Recurso financeiro estimado no ano (R$) - CFURH],PAPI20_22_23[SubPDC],'Consolidaçao - 1'!H3,PAPI20_22_23[Ano previsto para início],2022) -> 0 | J3: =SUMIFS(PAPI20_22_23[Recurso financeiro estimado no ano (R$) - Cobrança Estadual],PAPI20_22_23[SubPDC],'Consolidaçao - 1'!H3,PAPI20_22_23[Ano previsto para início],2022) -> 0 | K3: =SUMIFS(PAPI20_22_23[Recurso financeiro estimado no ano (R$) - Cobrança Federal],PAPI20_22_23[SubPDC],'Consolidaçao - 1'!H3,PAPI20_22_23[Ano previsto para início],2022) -> 0 | L3: =SUMIFS(PAPI20_22_23[Recurso financeiro estimado no ano (R$) - Outras],PAPI20_22_23[SubPDC],'Consolidaçao - 1'!H3,PAPI20_22_23[Ano previsto para início],2022) -> 0 | M3: =SUM(I3:L3) -> 0 | N3: =SUMIFS(PAPI20_22_23[Recurso financeiro estimado no ano (R$) - CFURH],PAPI20_22_23[SubPDC],'Consolidaçao - 1'!H3,PAPI20_22_23[Ano previsto para início],2023) -> 0 | O3: =SUMIFS(PAPI20_22_23[Recurso financeiro estimado no ano (R$) - Cobrança Estadual],PAPI20_22_23[SubPDC],'Consolidaçao - 1'!M3,PAPI20_22_23[Ano previsto para início],2023) -> 0 | P3: =SUMIFS(PAPI20_22_23[Recurso financeiro estimado no ano (R$) - Cobrança Federal],PAPI20_22_23[SubPDC],'Consolidaçao - 1'!M3,PAPI20_22_23[Ano previsto para início],2023) -> 0 | Q3: =SUMIFS(PAPI20_22_23[Recurso financeiro estimado no ano (R$) - Outras],PAPI20_22_23[SubPDC],'Consolidaçao - 1'!M3,PAPI20_22_23[Ano previsto para início],2023) -> 0 | R3: =SUM(N3:Q3) -> 0 | S3: =SUM(M3,R3) -> 0
A4: 1.2 - Planejamento | B4: =SUMIFS(#REF!,#REF!,A4,#REF!,2021) ->  | C4: =SUMIFS(#REF!,#REF!,A4,#REF!,2021) ->  | D4: =SUMIFS(#REF!,#REF!,A4,#REF!,2021) ->  | E4: =SUMIFS(#REF!,#REF!,A4,#REF!,2021) ->  | H4: 1.2 - Planejamento | I4: =SUMIFS(PAPI20_22_23[Recurso financeiro estimado no ano (R$) - CFURH],PAPI20_22_23[SubPDC],'Consolidaçao - 1'!H4,PAPI20_22_23[Ano previsto para início],2022) -> 0 | J4: =SUMIFS(PAPI20_22_23[Recurso financeiro estimado no ano (R$) - Cobrança Estadual],PAPI20_22_23[SubPDC],'Consolidaçao - 1'!H4,PAPI20_22_23[Ano previsto para início],2022) -> 0 | K4: =SUMIFS(PAPI20_22_23[Recurso financeiro estimado no ano (R$) - Cobrança Federal],PAPI20_22_23[SubPDC],'Consolidaçao - 1'!H4,PAPI20_22_23[Ano previsto para início],2022) -> 0 | L4: =SUMIFS(PAPI20_22_23[Recurso financeiro estimado no ano (R$) - Outras],PAPI20_22_23[SubPDC],'Consolidaçao - 1'!H4,PAPI20_22_23[Ano previsto para início],2022) -> 0 | M4: 0 | N4: =SUMIFS(PAPI20_22_23[Recurso financeiro estimado no ano (R$) - CFURH],PAPI20_22_23[SubPDC],'Consolidaçao - 1'!H4,PAPI20_22_23[Ano previsto para início],2023) -> 0 | O4: =SUMIFS(PAPI20_22_23[Recurso financeiro estimado no ano (R$) - Cobrança Estadual],PAPI20_22_23[SubPDC],'Consolidaçao - 1'!M4,PAPI20_22_23[Ano previsto para início],2023) -> 0 | P4: =SUMIFS(PAPI20_22_23[Recurso financeiro estimado no ano (R$) - Cobrança Federal],PAPI20_22_23[SubPDC],'Consolidaçao - 1'!M4,PAPI20_22_23[Ano previsto para início],2023) -> 0 | Q4: =SUMIFS(PAPI20_22_23[Recurso financeiro estimado no ano (R$) - Outras],PAPI20_22_23[SubPDC],'Consolidaçao - 1'!M4,PAPI20_22_23[Ano previsto para início],2023) -> 0 | R4: 0 | S4: =SUM(M4,R4) -> 0
A5: 1.3 - Enquadramento | B5: =SUMIFS(#REF!,#REF!,A5,#REF!,2021) ->  | C5: =SUMIFS(#REF!,#REF!,A5,#REF!,2021) ->  | D5: =SUMIFS(#REF!,#REF!,A5,#REF!,2021) ->  | E5: =SUMIFS(#REF!,#REF!,A5,#REF!,2021) ->  | H5: 2.1 - Plano | I5: =SUMIFS(PAPI20_22_23[Recurso financeiro estimado no ano (R$) - CFURH],PAPI20_22_23[SubPDC],'Consolidaçao - 1'!H5,PAPI20_22_23[Ano previsto para início],2022) -> 0 | J5: =SUMIFS(PAPI20_22_23[Recurso financeiro estimado no ano (R$) - Cobrança Estadual],PAPI20_22_23[SubPDC],'Consolidaçao - 1'!H5,PAPI20_22_23[Ano previsto para início],2022) -> 0 | K5: =SUMIFS(PAPI20_22_23[Recurso financeiro estimado no ano (R$) - Cobrança Federal],PAPI20_22_23[SubPDC],'Consolidaçao - 1'!H5,PAPI20_22_23[Ano previsto para início],2022) -> 0 | L5: =SUMIFS(PAPI20_22_23[Recurso financeiro estimado no ano (R$) - Outras],PAPI20_22_23[SubPDC],'Consolidaçao - 1'!H5,PAPI20_22_23[Ano previsto para início],2022) -> 0 | M5: 0 | N5: =SUMIFS(PAPI20_22_23[Recurso financeiro estimado no ano (R$) - CFURH],PAPI20_22_23[SubPDC],'Consolidaçao - 1'!H5,PAPI20_22_23[Ano previsto para início],2023) -> 0 | O5: =SUMIFS(PAPI20_22_23[Recurso financeiro estimado no ano (R$) - Cobrança Estadual],PAPI20_22_23[SubPDC],'Consolidaçao - 1'!M5,PAPI20_22_23[Ano previsto para início],2023) -> 0 | P5: =SUMIFS(PAPI20_22_23[Recurso financeiro estimado no ano (R$) - Cobrança Federal],PAPI20_22_23[SubPDC],'Consolidaçao - 1'!M5,PAPI20_22_23[Ano previsto para início],2023) -> 0 | Q5: =SUMIFS(PAPI20_22_23[Recurso financeiro estimado no ano (R$) - Outras],PAPI20_22_23[SubPDC],'Consolidaçao - 1'!M5,PAPI20_22_23[Ano previsto para início],2023) -> 0 | R5: 0 | S5: 0
A6: 1.4 - Monitoramento | B6: =SUMIFS(#REF!,#REF!,A6,#REF!,2021) ->  | C6: =SUMIFS(#REF!,#REF!,A6,#REF!,2021) ->  | D6: =SUMIFS(#REF!,#REF!,A6,#REF!,2021) ->  | E6: =SUMIFS(#REF!,#REF!,A6,#REF!,2021) ->  | H6: 2.2 - Outorga | I6: =SUMIFS(PAPI20_22_23[Recurso financeiro estimado no ano (R$) - CFURH],PAPI20_22_23[SubPDC],'Consolidaçao - 1'!H6,PAPI20_22_23[Ano previsto para início],2022) -> 0 | J6: =SUMIFS(PAPI20_22_23[Recurso financeiro estimado no ano (R$) - Cobrança Estadual],PAPI20_22_23[SubPDC],'Consolidaçao - 1'!H6,PAPI20_22_23[Ano previsto para início],2022) -> 0 | K6: =SUMIFS(PAPI20_22_23[Recurso financeiro estimado no ano (R$) - Cobrança Federal],PAPI20_22_23[SubPDC],'Consolidaçao - 1'!H6,PAPI20_22_23[Ano previsto para início],2022) -> 0 | L6: =SUMIFS(PAPI20_22_23[Recurso financeiro estimado no ano (R$) - Outras],PAPI20_22_23[SubPDC],'Consolidaçao - 1'!H6,PAPI20_22_23[Ano previsto para início],2022) -> 0 | M6: 0 | N6: =SUMIFS(PAPI20_22_23[Recurso financeiro estimado no ano (R$) - CFURH],PAPI20_22_23[SubPDC],'Consolidaçao - 1'!H6,PAPI20_22_23[Ano previsto para início],2023) -> 0 | O6: =SUMIFS(PAPI20_22_23[Recurso financeiro estimado no ano (R$) - Cobrança Estadual],PAPI20_22_23[SubPDC],'Consolidaçao - 1'!M6,PAPI20_22_23[Ano previsto para início],2023) -> 0 | P6: =SUMIFS(PAPI20_22_23[Recurso financeiro estimado no ano (R$) - Cobrança Federal],PAPI20_22_23[SubPDC],'Consolidaçao - 1'!M6,PAPI20_22_23[Ano previsto para início],2023) -> 0 | Q6: =SUMIFS(PAPI20_22_23[Recurso financeiro estimado no ano (R$) - Outras],PAPI20_22_23[SubPDC],'Consolidaçao - 1'!M6,PAPI20_22_23[Ano previsto para início],2023) -> 0 | R6: 0 | S6: 0
A7: 1.5 - Disponibilidade | B7: =SUMIFS(#REF!,#REF!,A7,#REF!,2021) ->  | C7: =SUMIFS(#REF!,#REF!,A7,#REF!,2021) ->  | D7: =SUMIFS(#REF!,#REF!,A7,#REF!,2021) ->  | E7: =SUMIFS(#REF!,#REF!,A7,#REF!,2021) ->  | H7: 2.3 - Cobrança | I7: =SUMIFS(PAPI20_22_23[Recurso financeiro estimado no ano (R$) - CFURH],PAPI20_22_23[SubPDC],'Consolidaçao - 1'!H7,PAPI20_22_23[Ano previsto para início],2022) -> 0 | J7: =SUMIFS(PAPI20_22_23[Recurso financeiro estimado no ano (R$) - Cobrança Estadual],PAPI20_22_23[SubPDC],'Consolidaçao - 1'!H7,PAPI20_22_23[Ano previsto para início],2022) -> 0 | K7: =SUMIFS(PAPI20_22_23[Recurso financeiro estimado no ano (R$) - Cobrança Federal],PAPI20_22_23[SubPDC],'Consolidaçao - 1'!H7,PAPI20_22_23[Ano previsto para início],2022) -> 0 | L7: =SUMIFS(PAPI20_22_23[Recurso financeiro estimado no ano (R$) - Outras],PAPI20_22_23[SubPDC],'Consolidaçao - 1'!H7,PAPI20_22_23[Ano previsto para início],2022) -> 0 | M7: 0 | N7: =SUMIFS(PAPI20_22_23[Recurso financeiro estimado no ano (R$) - CFURH],PAPI20_22_23[SubPDC],'Consolidaçao - 1'!H7,PAPI20_22_23[Ano previsto para início],2023) -> 0 | O7: =SUMIFS(PAPI20_22_23[Recurso financeiro estimado no ano (R$) - Cobrança Estadual],PAPI20_22_23[SubPDC],'Consolidaçao - 1'!M7,PAPI20_22_23[Ano previsto para início],2023) -> 0 | P7: =SUMIFS(PAPI20_22_23[Recurso financeiro estimado no ano (R$) - Cobrança Federal],PAPI20_22_23[SubPDC],'Consolidaçao - 1'!M7,PAPI20_22_23[Ano previsto para início],2023) -> 0 | Q7: =SUMIFS(PAPI20_22_23[Recurso financeiro estimado no ano (R$) - Outras],PAPI20_22_23[SubPDC],'Consolidaçao - 1'!M7,PAPI20_22_23[Ano previsto para início],2023) -> 0 | R7: 0 | S7: 0
A8: 1.6 - Legislação | B8: =SUMIFS(#REF!,#REF!,A8,#REF!,2021) ->  | C8: =SUMIFS(#REF!,#REF!,A8,#REF!,2021) ->  | D8: =SUMIFS(#REF!,#REF!,A8,#REF!,2021) ->  | E8: =SUMIFS(#REF!,#REF!,A8,#REF!,2021) ->  | H8: 2.4 - Enquadramento | I8: =SUMIFS(PAPI20_22_23[Recurso financeiro estimado no ano (R$) - CFURH],PAPI20_22_23[SubPDC],'Consolidaçao - 1'!H8,PAPI20_22_23[Ano previsto para início],2022) -> 0 | J8: =SUMIFS(PAPI20_22_23[Recurso financeiro estimado no ano (R$) - Cobrança Estadual],PAPI20_22_23[SubPDC],'Consolidaçao - 1'!H8,PAPI20_22_23[Ano previsto para início],2022) -> 0 | K8: =SUMIFS(PAPI20_22_23[Recurso financeiro estimado no ano (R$) - Cobrança Federal],PAPI20_22_23[SubPDC],'Consolidaçao - 1'!H8,PAPI20_22_23[Ano previsto para início],2022) -> 0 | L8: =SUMIFS(PAPI20_22_23[Recurso financeiro estimado no ano (R$) - Outras],PAPI20_22_23[SubPDC],'Consolidaçao - 1'!H8,PAPI20_22_23[Ano previsto para início],2022) -> 0 | M8: 0 | N8: =SUMIFS(PAPI20_22_23[Recurso financeiro estimado no ano (R$) - CFURH],PAPI20_22_23[SubPDC],'Consolidaçao - 1'!H8,PAPI20_22_23[Ano previsto para início],2023) -> 0 | O8: =SUMIFS(PAPI20_22_23[Recurso financeiro estimado no ano (R$) - Cobrança Estadual],PAPI20_22_23[SubPDC],'Consolidaçao - 1'!M8,PAPI20_22_23[Ano previsto para início],2023) -> 0 | P8: =SUMIFS(PAPI20_22_23[Recurso financeiro estimado no ano (R$) - Cobrança Federal],PAPI20_22_23[SubPDC],'Consolidaçao - 1'!M8,PAPI20_22_23[Ano previsto para início],2023) -> 0 | Q8: =SUMIFS(PAPI20_22_23[Recurso financeiro estimado no ano (R$) - Outras],PAPI20_22_23[SubPDC],'Consolidaçao - 1'!M8,PAPI20_22_23[Ano previsto para início],2023) -> 0 | R8: 0 | S8: 0
A9: 1.7 - Poluição | B9: =SUMIFS(#REF!,#REF!,A9,#REF!,2021) ->  | C9: =SUMIFS(#REF!,#REF!,A9,#REF!,2021) ->  | D9: =SUMIFS(#REF!,#REF!,A9,#REF!,2021) ->  | E9: =SUMIFS(#REF!,#REF!,A9,#REF!,2021) ->  | H9: 2.5 - Monitoramento e SI | I9: =SUMIFS(PAPI20_22_23[Recurso financeiro estimado no ano (R$) - CFURH],PAPI20_22_23[SubPDC],'Consolidaçao - 1'!H9,PAPI20_22_23[Ano previsto para início],2022) -> 0 | J9: =SUMIFS(PAPI20_22_23[Recurso financeiro estimado no ano (R$) - Cobrança Estadual],PAPI20_22_23[SubPDC],'Consolidaçao - 1'!H9,PAPI20_22_23[Ano previsto para início],2022) -> 0 | K9: =SUMIFS(PAPI20_22_23[Recurso financeiro estimado no ano (R$) - Cobrança Federal],PAPI20_22_23[SubPDC],'Consolidaçao - 1'!H9,PAPI20_22_23[Ano previsto para início],2022) -> 0 | L9: =SUMIFS(PAPI20_22_23[Recurso financeiro estimado no ano (R$) - Outras],PAPI20_22_23[SubPDC],'Consolidaçao - 1'!H9,PAPI20_22_23[Ano previsto para início],2022) -> 0 | M9: 0 | N9: =SUMIFS(PAPI20_22_23[Recurso financeiro estimado no ano (R$) - CFURH],PAPI20_22_23[SubPDC],'Consolidaçao - 1'!H9,PAPI20_22_23[Ano previsto para início],2023) -> 0 | O9: =SUMIFS(PAPI20_22_23[Recurso financeiro estimado no ano (R$) - Cobrança Estadual],PAPI20_22_23[SubPDC],'Consolidaçao - 1'!M9,PAPI20_22_23[Ano previsto para início],2023) -> 0 | P9: =SUMIFS(PAPI20_22_23[Recurso financeiro estimado no ano (R$) - Cobrança Federal],PAPI20_22_23[SubPDC],'Consolidaçao - 1'!M9,PAPI20_22_23[Ano previsto para início],2023) -> 0 | Q9: =SUMIFS(PAPI20_22_23[Recurso financeiro estimado no ano (R$) - Outras],PAPI20_22_23[SubPDC],'Consolidaçao - 1'!M9,PAPI20_22_23[Ano previsto para início],2023) -> 0 | R9: 0 | S9: 0
A10: 2.1 - Planos | B10: =SUMIFS(#REF!,#REF!,A10,#REF!,2021) ->  | C10: =SUMIFS(#REF!,#REF!,A10,#REF!,2021) ->  | D10: =SUMIFS(#REF!,#REF!,A10,#REF!,2021) ->  | E10: =SUMIFS(#REF!,#REF!,A10,#REF!,2021) ->  | H10: 2.6 - Integração | I10: =SUMIFS(PAPI20_22_23[Recurso financeiro estimado no ano (R$) - CFURH],PAPI20_22_23[SubPDC],'Consolidaçao - 1'!H10,PAPI20_22_23[Ano previsto para início],2022) -> 0 | J10: =SUMIFS(PAPI20_22_23[Recurso financeiro estimado no ano (R$) - Cobrança Estadual],PAPI20_22_23[SubPDC],'Consolidaçao - 1'!H10,PAPI20_22_23[Ano previsto para início],2022) -> 0 | K10: =SUMIFS(PAPI20_22_23[Recurso financeiro estimado no ano (R$) - Cobrança Federal],PAPI20_22_23[SubPDC],'Consolidaçao - 1'!H10,PAPI20_22_23[Ano previsto para início],2022) -> 0 | L10: =SUMIFS(PAPI20_22_23[Recurso financeiro estimado no ano (R$) - Outras],PAPI20_22_23[SubPDC],'Consolidaçao - 1'!H10,PAPI20_22_23[Ano previsto para início],2022) -> 0 | M10: 0 | N10: =SUMIFS(PAPI20_22_23[Recurso financeiro estimado no ano (R$) - CFURH],PAPI20_22_23[SubPDC],'Consolidaçao - 1'!H10,PAPI20_22_23[Ano previsto para início],2023) -> 0 | O10: =SUMIFS(PAPI20_22_23[Recurso financeiro estimado no ano (R$) - Cobrança Estadual],PAPI20_22_23[SubPDC],'Consolidaçao - 1'!M10,PAPI20_22_23[Ano previsto para início],2023) -> 0 | P10: =SUMIFS(PAPI20_22_23[Recurso financeiro estimado no ano (R$) - Cobrança Federal],PAPI20_22_23[SubPDC],'Consolidaçao - 1'!M10,PAPI20_22_23[Ano previsto para início],2023) -> 0 | Q10: =SUMIFS(PAPI20_22_23[Recurso financeiro estimado no ano (R$) - Outras],PAPI20_22_23[SubPDC],'Consolidaçao - 1'!M10,PAPI20_22_23[Ano previsto para início],2023) -> 0 | R10: 0 | S10: 0
A11: 2.2 - Outorga | B11: =SUMIFS(#REF!,#REF!,A11,#REF!,2021) ->  | C11: =SUMIFS(#REF!,#REF!,A11,#REF!,2021) ->  | D11: =SUMIFS(#REF!,#REF!,A11,#REF!,2021) ->  | E11: =SUMIFS(#REF!,#REF!,A11,#REF!,2021) ->  | H11: 2.7 - CORHI | I11: =SUMIFS(PAPI20_22_23[Recurso financeiro estimado no ano (R$) - CFURH],PAPI20_22_23[SubPDC],'Consolidaçao - 1'!H11,PAPI20_22_23[Ano previsto para início],2022) -> 0 | J11: =SUMIFS(PAPI20_22_23[Recurso financeiro estimado no ano (R$) - Cobrança Estadual],PAPI20_22_23[SubPDC],'Consolidaçao - 1'!H11,PAPI20_22_23[Ano previsto para início],2022) -> 0 | K11: =SUMIFS(PAPI20_22_23[Recurso financeiro estimado no ano (R$) - Cobrança Federal],PAPI20_22_23[SubPDC],'Consolidaçao - 1'!H11,PAPI20_22_23[Ano previsto para início],2022) -> 0 | L11: =SUMIFS(PAPI20_22_23[Recurso financeiro estimado no ano (R$) - Outras],PAPI20_22_23[SubPDC],'Consolidaçao - 1'!H11,PAPI20_22_23[Ano previsto para início],2022) -> 0 | M11: 0 | N11: =SUMIFS(PAPI20_22_23[Recurso financeiro estimado no ano (R$) - CFURH],PAPI20_22_23[SubPDC],'Consolidaçao - 1'!H11,PAPI20_22_23[Ano previsto para início],2023) -> 0 | O11: =SUMIFS(PAPI20_22_23[Recurso financeiro estimado no ano (R$) - Cobrança Estadual],PAPI20_22_23[SubPDC],'Consolidaçao - 1'!M11,PAPI20_22_23[Ano previsto para início],2023) -> 0 | P11: =SUMIFS(PAPI20_22_23[Recurso financeiro estimado no ano (R$) - Cobrança Federal],PAPI20_22_23[SubPDC],'Consolidaçao - 1'!M11,PAPI20_22_23[Ano previsto para início],2023) -> 0 | Q11: =SUMIFS(PAPI20_22_23[Recurso financeiro estimado no ano (R$) - Outras],PAPI20_22_23[SubPDC],'Consolidaçao - 1'!M11,PAPI20_22_23[Ano previsto para início],2023) -> 0 | R11: 0 | S11: 0
A12: 2.3 - Cobrança | B12: =SUMIFS(#REF!,#REF!,A12,#REF!,2021) ->  | C12: =SUMIFS(#REF!,#REF!,A12,#REF!,2021) ->  | D12: =SUMIFS(#REF!,#REF!,A12,#REF!,2021) ->  | E12: =SUMIFS(#REF!,#REF!,A12,#REF!,2021) ->  | H12: 3.1 - Efluentes | I12: =SUMIFS(PAPI20_22_23[Recurso financeiro estimado no ano (R$) - CFURH],PAPI20_22_23[SubPDC],'Consolidaçao - 1'!H12,PAPI20_22_23[Ano previsto para início],2022) -> 0 | J12: =SUMIFS(PAPI20_22_23[Recurso financeiro estimado no ano (R$) - Cobrança Estadual],PAPI20_22_23[SubPDC],'Consolidaçao - 1'!H12,PAPI20_22_23[Ano previsto para início],2022) -> 0 | K12: =SUMIFS(PAPI20_22_23[Recurso financeiro estimado no ano (R$) - Cobrança Federal],PAPI20_22_23[SubPDC],'Consolidaçao - 1'!H12,PAPI20_22_23[Ano previsto para início],2022) -> 0 | L12: =SUMIFS(PAPI20_22_23[Recurso financeiro estimado no ano (R$) - Outras],PAPI20_22_23[SubPDC],'Consolidaçao - 1'!H12,PAPI20_22_23[Ano previsto para início],2022) -> 0 | M12: 0 | N12: =SUMIFS(PAPI20_22_23[Recurso financeiro estimado no ano (R$) - CFURH],PAPI20_22_23[SubPDC],'Consolidaçao - 1'!H12,PAPI20_22_23[Ano previsto para início],2023) -> 0 | O12: =SUMIFS(PAPI20_22_23[Recurso financeiro estimado no ano (R$) - Cobrança Estadual],PAPI20_22_23[SubPDC],'Consolidaçao - 1'!M12,PAPI20_22_23[Ano previsto para início],2023) -> 0 | P12: =SUMIFS(PAPI20_22_23[Recurso financeiro estimado no ano (R$) - Cobrança Federal],PAPI20_22_23[SubPDC],'Consolidaçao - 1'!M12,PAPI20_22_23[Ano previsto para início],2023) -> 0 | Q12: =SUMIFS(PAPI20_22_23[Recurso financeiro estimado no ano (R$) - Outras],PAPI20_22_23[SubPDC],'Consolidaçao - 1'!M12,PAPI20_22_23[Ano previsto para início],2023) -> 0 | R12: 0 | S12: 0
A13: 2.4 - Efetivação | B13: =SUMIFS(#REF!,#REF!,A13,#REF!,2021) ->  | C13: =SUMIFS(#REF!,#REF!,A13,#REF!,2021) ->  | D13: =SUMIFS(#REF!,#REF!,A13,#REF!,2021) ->  | E13: =SUMIFS(#REF!,#REF!,A13,#REF!,2021) ->  | H13: 3.2 - Poluição | I13: =SUMIFS(PAPI20_22_23[Recurso financeiro estimado no ano (R$) - CFURH],PAPI20_22_23[SubPDC],'Consolidaçao - 1'!H13,PAPI20_22_23[Ano previsto para início],2022) -> 0 | J13: =SUMIFS(PAPI20_22_23[Recurso financeiro estimado no ano (R$) - Cobrança Estadual],PAPI20_22_23[SubPDC],'Consolidaçao - 1'!H13,PAPI20_22_23[Ano previsto para início],2022) -> 0 | K13: =SUMIFS(PAPI20_22_23[Recurso financeiro estimado no ano (R$) - Cobrança Federal],PAPI20_22_23[SubPDC],'Consolidaçao - 1'!H13,PAPI20_22_23[Ano previsto para início],2022) -> 0 | L13: =SUMIFS(PAPI20_22_23[Recurso financeiro estimado no ano (R$) - Outras],PAPI20_22_23[SubPDC],'Consolidaçao - 1'!H13,PAPI20_22_23[Ano previsto para início],2022) -> 0 | M13: 0 | N13: =SUMIFS(PAPI20_22_23[Recurso financeiro estimado no ano (R$) - CFURH],PAPI20_22_23[SubPDC],'Consolidaçao - 1'!H13,PAPI20_22_23[Ano previsto para início],2023) -> 0 | O13: =SUMIFS(PAPI20_22_23[Recurso financeiro estimado no ano (R$) - Cobrança Estadual],PAPI20_22_23[SubPDC],'Consolidaçao - 1'!M13,PAPI20_22_23[Ano previsto para início],2023) -> 0 | P13: =SUMIFS(PAPI20_22_23[Recurso financeiro estimado no ano (R$) - Cobrança Federal],PAPI20_22_23[SubPDC],'Consolidaçao - 1'!M13,PAPI20_22_23[Ano previsto para início],2023) -> 0 | Q13: =SUMIFS(PAPI20_22_23[Recurso financeiro estimado no ano (R$) - Outras],PAPI20_22_23[SubPDC],'Consolidaçao - 1'!M13,PAPI20_22_23[Ano previsto para início],2023) -> 0 | R13: 0 | S13: 0
A14: 2.5 - Integração | B14: =SUMIFS(#REF!,#REF!,A14,#REF!,2021) ->  | C14: =SUMIFS(#REF!,#REF!,A14,#REF!,2021) ->  | D14: =SUMIFS(#REF!,#REF!,A14,#REF!,2021) ->  | E14: =SUMIFS(#REF!,#REF!,A14,#REF!,2021) ->  | H14: 3.3 - Resíduos | I14: =SUMIFS(PAPI20_22_23[Recurso financeiro estimado no ano (R$) - CFURH],PAPI20_22_23[SubPDC],'Consolidaçao - 1'!H14,PAPI20_22_23[Ano previsto para início],2022) -> 0 | J14: =SUMIFS(PAPI20_22_23[Recurso financeiro estimado no ano (R$) - Cobrança Estadual],PAPI20_22_23[SubPDC],'Consolidaçao - 1'!H14,PAPI20_22_23[Ano previsto para início],2022) -> 0 | K14: =SUMIFS(PAPI20_22_23[Recurso financeiro estimado no ano (R$) - Cobrança Federal],PAPI20_22_23[SubPDC],'Consolidaçao - 1'!H14,PAPI20_22_23[Ano previsto para início],2022) -> 0 | L14: =SUMIFS(PAPI20_22_23[Recurso financeiro estimado no ano (R$) - Outras],PAPI20_22_23[SubPDC],'Consolidaçao - 1'!H14,PAPI20_22_23[Ano previsto para início],2022) -> 0 | M14: 0 | N14: =SUMIFS(PAPI20_22_23[Recurso financeiro estimado no ano (R$) - CFURH],PAPI20_22_23[SubPDC],'Consolidaçao - 1'!H14,PAPI20_22_23[Ano previsto para início],2023) -> 0 | O14: =SUMIFS(PAPI20_22_23[Recurso financeiro estimado no ano (R$) - Cobrança Estadual],PAPI20_22_23[SubPDC],'Consolidaçao - 1'!M14,PAPI20_22_23[Ano previsto para início],2023) -> 0 | P14: =SUMIFS(PAPI20_22_23[Recurso financeiro estimado no ano (R$) - Cobrança Federal],PAPI20_22_23[SubPDC],'Consolidaçao - 1'!M14,PAPI20_22_23[Ano previsto para início],2023) -> 0 | Q14: =SUMIFS(PAPI20_22_23[Recurso financeiro estimado no ano (R$) - Outras],PAPI20_22_23[SubPDC],'Consolidaçao - 1'!M14,PAPI20_22_23[Ano previsto para início],2023) -> 0 | R14: 0 | S14: 0
A15: 2.6 - CORHI | B15: =SUMIFS(#REF!,#REF!,A15,#REF!,2021) ->  | C15: =SUMIFS(#REF!,#REF!,A15,#REF!,2021) ->  | D15: =SUMIFS(#REF!,#REF!,A15,#REF!,2021) ->  | E15: =SUMIFS(#REF!,#REF!,A15,#REF!,2021) ->  | H15: 3.4 - Intervenções | I15: =SUMIFS(PAPI20_22_23[Recurso financeiro estimado no ano (R$) - CFURH],PAPI20_22_23[SubPDC],'Consolidaçao - 1'!H15,PAPI20_22_23[Ano previsto para início],2022) -> 0 | J15: =SUMIFS(PAPI20_22_23[Recurso financeiro estimado no ano (R$) - Cobrança Estadual],PAPI20_22_23[SubPDC],'Consolidaçao - 1'!H15,PAPI20_22_23[Ano previsto para início],2022) -> 0 | K15: =SUMIFS(PAPI20_22_23[Recurso financeiro estimado no ano (R$) - Cobrança Federal],PAPI20_22_23[SubPDC],'Consolidaçao - 1'!H15,PAPI20_22_23[Ano previsto para início],2022) -> 0 | L15: =SUMIFS(PAPI20_22_23[Recurso financeiro estimado no ano (R$) - Outras],PAPI20_22_23[SubPDC],'Consolidaçao - 1'!H15,PAPI20_22_23[Ano previsto para início],2022) -> 0 | M15: 0 | N15: =SUMIFS(PAPI20_22_23[Recurso financeiro estimado no ano (R$) - CFURH],PAPI20_22_23[SubPDC],'Consolidaçao - 1'!H15,PAPI20_22_23[Ano previsto para início],2023) -> 0 | O15: =SUMIFS(PAPI20_22_23[Recurso financeiro estimado no ano (R$) - Cobrança Estadual],PAPI20_22_23[SubPDC],'Consolidaçao - 1'!H15,PAPI20_22_23[Ano previsto para início],2023) -> 0 | P15: =SUMIFS(PAPI20_22_23[Recurso financeiro estimado no ano (R$) - Cobrança Federal],PAPI20_22_23[SubPDC],'Consolidaçao - 1'!H15,PAPI20_22_23[Ano previsto para início],2023) -> 0 | Q15: =SUMIFS(PAPI20_22_23[Recurso financeiro estimado no ano (R$) - Outras],PAPI20_22_23[SubPDC],'Consolidaçao - 1'!H15,PAPI20_22_23[Ano previsto para início],2023) -> 0 | R15: 0 | S15: 0
A16: 3.1 - Efluentes | B16: =SUMIFS(#REF!,#REF!,A16,#REF!,2021) ->  | C16: =SUMIFS(#REF!,#REF!,A16,#REF!,2021) ->  | D16: =SUMIFS(#REF!,#REF!,A16,#REF!,2021) ->  | E16: =SUMIFS(#REF!,#REF!,A16,#REF!,2021) ->  | H16: 4.1 - Erosão | I16: =SUMIFS(PAPI20_22_23[Recurso financeiro estimado no ano (R$) - CFURH],PAPI20_22_23[SubPDC],'Consolidaçao - 1'!H16,PAPI20_22_23[Ano previsto para início],2022) -> 0 | J16: =SUMIFS(PAPI20_22_23[Recurso financeiro estimado no ano (R$) - Cobrança Estadual],PAPI20_22_23[SubPDC],'Consolidaçao - 1'!H16,PAPI20_22_23[Ano previsto para início],2022) -> 0 | K16: =SUMIFS(PAPI20_22_23[Recurso financeiro estimado no ano (R$) - Cobrança Federal],PAPI20_22_23[SubPDC],'Consolidaçao - 1'!H16,PAPI20_22_23[Ano previsto para início],2022) -> 0 | L16: =SUMIFS(PAPI20_22_23[Recurso financeiro estimado no ano (R$) - Outras],PAPI20_22_23[SubPDC],'Consolidaçao - 1'!H16,PAPI20_22_23[Ano previsto para início],2022) -> 0 | M16: 0 | N16: =SUMIFS(PAPI20_22_23[Recurso financeiro estimado no ano (R$) - CFURH],PAPI20_22_23[SubPDC],'Consolidaçao - 1'!H16,PAPI20_22_23[Ano previsto para início],2023) -> 0 | O16: =SUMIFS(PAPI20_22_23[Recurso financeiro estimado no ano (R$) - Cobrança Estadual],PAPI20_22_23[SubPDC],'Consolidaçao - 1'!H16,PAPI20_22_23[Ano previsto para início],2023) -> 0 | P16: =SUMIFS(PAPI20_22_23[Recurso financeiro estimado no ano (R$) - Cobrança Federal],PAPI20_22_23[SubPDC],'Consolidaçao - 1'!H16,PAPI20_22_23[Ano previsto para início],2023) -> 0 | Q16: =SUMIFS(PAPI20_22_23[Recurso financeiro estimado no ano (R$) - Outras],PAPI20_22_23[SubPDC],'Consolidaçao - 1'!H16,PAPI20_22_23[Ano previsto para início],2023) -> 0 | R16: 0 | S16: 0
A17: 3.2 - Resíduos | B17: =SUMIFS(#REF!,#REF!,A17,#REF!,2021) ->  | C17: =SUMIFS(#REF!,#REF!,A17,#REF!,2021) ->  | D17: =SUMIFS(#REF!,#REF!,A17,#REF!,2021) ->  | E17: =SUMIFS(#REF!,#REF!,A17,#REF!,2021) ->  | H17: 4.2 - Conservação | I17: =SUMIFS(PAPI20_22_23[Recurso financeiro estimado no ano (R$) - CFURH],PAPI20_22_23[SubPDC],'Consolidaçao - 1'!H17,PAPI20_22_23[Ano previsto para início],2022) -> 0 | J17: =SUMIFS(PAPI20_22_23[Recurso financeiro estimado no ano (R$) - Cobrança Estadual],PAPI20_22_23[SubPDC],'Consolidaçao - 1'!H17,PAPI20_22_23[Ano previsto para início],2022) -> 0 | K17: =SUMIFS(PAPI20_22_23[Recurso financeiro estimado no ano (R$) - Cobrança Federal],PAPI20_22_23[SubPDC],'Consolidaçao - 1'!H17,PAPI20_22_23[Ano previsto para início],2022) -> 0 | L17: =SUMIFS(PAPI20_22_23[Recurso financeiro estimado no ano (R$) - Outras],PAPI20_22_23[SubPDC],'Consolidaçao - 1'!H17,PAPI20_22_23[Ano previsto para início],2022) -> 0 | M17: 0 | N17: =SUMIFS(PAPI20_22_23[Recurso financeiro estimado no ano (R$) - CFURH],PAPI20_22_23[SubPDC],'Consolidaçao - 1'!H17,PAPI20_22_23[Ano previsto para início],2023) -> 0 | O17: =SUMIFS(PAPI20_22_23[Recurso financeiro estimado no ano (R$) - Cobrança Estadual],PAPI20_22_23[SubPDC],'Consolidaçao - 1'!H17,PAPI20_22_23[Ano previsto para início],2023) -> 0 | P17: =SUMIFS(PAPI20_22_23[Recurso financeiro estimado no ano (R$) - Cobrança Federal],PAPI20_22_23[SubPDC],'Consolidaçao - 1'!H17,PAPI20_22_23[Ano previsto para início],2023) -> 0 | Q17: =SUMIFS(PAPI20_22_23[Recurso financeiro estimado no ano (R$) - Outras],PAPI20_22_23[SubPDC],'Consolidaçao - 1'!H17,PAPI20_22_23[Ano previsto para início],2023) -> 0 | R17: 0 | S17: 0
A18: 3.3 - Drenagem | B18: =SUMIFS(#REF!,#REF!,A18,#REF!,2021) ->  | C18: =SUMIFS(#REF!,#REF!,A18,#REF!,2021) ->  | D18: =SUMIFS(#REF!,#REF!,A18,#REF!,2021) ->  | E18: =SUMIFS(#REF!,#REF!,A18,#REF!,2021) ->  | H18: 4.3 - Mananciais | I18: =SUMIFS(PAPI20_22_23[Recurso financeiro estimado no ano (R$) - CFURH],PAPI20_22_23[SubPDC],'Consolidaçao - 1'!H18,PAPI20_22_23[Ano previsto para início],2022) -> 0 | J18: =SUMIFS(PAPI20_22_23[Recurso financeiro estimado no ano (R$) - Cobrança Estadual],PAPI20_22_23[SubPDC],'Consolidaçao - 1'!H18,PAPI20_22_23[Ano previsto para início],2022) -> 0 | K18: =SUMIFS(PAPI20_22_23[Recurso financeiro estimado no ano (R$) - Cobrança Federal],PAPI20_22_23[SubPDC],'Consolidaçao - 1'!H18,PAPI20_22_23[Ano previsto para início],2022) -> 0 | L18: =SUMIFS(PAPI20_22_23[Recurso financeiro estimado no ano (R$) - Outras],PAPI20_22_23[SubPDC],'Consolidaçao - 1'!H18,PAPI20_22_23[Ano previsto para início],2022) -> 0 | M18: 0 | N18: =SUMIFS(PAPI20_22_23[Recurso financeiro estimado no ano (R$) - CFURH],PAPI20_22_23[SubPDC],'Consolidaçao - 1'!H18,PAPI20_22_23[Ano previsto para início],2023) -> 0 | O18: =SUMIFS(PAPI20_22_23[Recurso financeiro estimado no ano (R$) - Cobrança Estadual],PAPI20_22_23[SubPDC],'Consolidaçao - 1'!H18,PAPI20_22_23[Ano previsto para início],2023) -> 0 | P18: =SUMIFS(PAPI20_22_23[Recurso financeiro estimado no ano (R$) - Cobrança Federal],PAPI20_22_23[SubPDC],'Consolidaçao - 1'!H18,PAPI20_22_23[Ano previsto para início],2023) -> 0 | Q18: =SUMIFS(PAPI20_22_23[Recurso financeiro estimado no ano (R$) - Outras],PAPI20_22_23[SubPDC],'Consolidaçao - 1'!H18,PAPI20_22_23[Ano previsto para início],2023) -> 0 | R18: 0 | S18: 0
A19: 3.4 - Erosão | B19: =SUMIFS(#REF!,#REF!,A19,#REF!,2021) ->  | C19: =SUMIFS(#REF!,#REF!,A19,#REF!,2021) ->  | D19: =SUMIFS(#REF!,#REF!,A19,#REF!,2021) ->  | E19: =SUMIFS(#REF!,#REF!,A19,#REF!,2021) ->  | H19: 5.1 - Perdas | I19: =SUMIFS(PAPI20_22_23[Recurso financeiro estimado no ano (R$) - CFURH],PAPI20_22_23[SubPDC],'Consolidaçao - 1'!H19,PAPI20_22_23[Ano previsto para início],2022) -> 0 | J19: =SUMIFS(PAPI20_22_23[Recurso financeiro estimado no ano (R$) - Cobrança Estadual],PAPI20_22_23[SubPDC],'Consolidaçao - 1'!H19,PAPI20_22_23[Ano previsto para início],2022) -> 0 | K19: =SUMIFS(PAPI20_22_23[Recurso financeiro estimado no ano (R$) - Cobrança Federal],PAPI20_22_23[SubPDC],'Consolidaçao - 1'!H19,PAPI20_22_23[Ano previsto para início],2022) -> 0 | L19: =SUMIFS(PAPI20_22_23[Recurso financeiro estimado no ano (R$) - Outras],PAPI20_22_23[SubPDC],'Consolidaçao - 1'!H19,PAPI20_22_23[Ano previsto para início],2022) -> 0 | M19: 0 | N19: =SUMIFS(PAPI20_22_23[Recurso financeiro estimado no ano (R$) - CFURH],PAPI20_22_23[SubPDC],'Consolidaçao - 1'!H19,PAPI20_22_23[Ano previsto para início],2023) -> 0 | O19: =SUMIFS(PAPI20_22_23[Recurso financeiro estimado no ano (R$) - Cobrança Estadual],PAPI20_22_23[SubPDC],'Consolidaçao - 1'!H19,PAPI20_22_23[Ano previsto para início],2023) -> 0 | P19: =SUMIFS(PAPI20_22_23[Recurso financeiro estimado no ano (R$) - Cobrança Federal],PAPI20_22_23[SubPDC],'Consolidaçao - 1'!H19,PAPI20_22_23[Ano previsto para início],2023) -> 0 | Q19: =SUMIFS(PAPI20_22_23[Recurso financeiro estimado no ano (R$) - Outras],PAPI20_22_23[SubPDC],'Consolidaçao - 1'!H19,PAPI20_22_23[Ano previsto para início],2023) -> 0 | R19: 0 | S19: 0
A20: 3.5 - Intervenções | B20: =SUMIFS(#REF!,#REF!,A20,#REF!,2021) ->  | C20: =SUMIFS(#REF!,#REF!,A20,#REF!,2021) ->  | D20: =SUMIFS(#REF!,#REF!,A20,#REF!,2021) ->  | E20: =SUMIFS(#REF!,#REF!,A20,#REF!,2021) ->  | H20: 5.2 - Racionalização | I20: =SUMIFS(PAPI20_22_23[Recurso financeiro estimado no ano (R$) - CFURH],PAPI20_22_23[SubPDC],'Consolidaçao - 1'!H20,PAPI20_22_23[Ano previsto para início],2022) -> 0 | J20: =SUMIFS(PAPI20_22_23[Recurso financeiro estimado no ano (R$) - Cobrança Estadual],PAPI20_22_23[SubPDC],'Consolidaçao - 1'!H20,PAPI20_22_23[Ano previsto para início],2022) -> 0 | K20: =SUMIFS(PAPI20_22_23[Recurso financeiro estimado no ano (R$) - Cobrança Federal],PAPI20_22_23[SubPDC],'Consolidaçao - 1'!H20,PAPI20_22_23[Ano previsto para início],2022) -> 0 | L20: =SUMIFS(PAPI20_22_23[Recurso financeiro estimado no ano (R$) - Outras],PAPI20_22_23[SubPDC],'Consolidaçao - 1'!H20,PAPI20_22_23[Ano previsto para início],2022) -> 0 | M20: 0 | N20: =SUMIFS(PAPI20_22_23[Recurso financeiro estimado no ano (R$) - CFURH],PAPI20_22_23[SubPDC],'Consolidaçao - 1'!H20,PAPI20_22_23[Ano previsto para início],2023) -> 0 | O20: =SUMIFS(PAPI20_22_23[Recurso financeiro estimado no ano (R$) - Cobrança Estadual],PAPI20_22_23[SubPDC],'Consolidaçao - 1'!H20,PAPI20_22_23[Ano previsto para início],2023) -> 0 | P20: =SUMIFS(PAPI20_22_23[Recurso financeiro estimado no ano (R$) - Cobrança Federal],PAPI20_22_23[SubPDC],'Consolidaçao - 1'!H20,PAPI20_22_23[Ano previsto para início],2023) -> 0 | Q20: =SUMIFS(PAPI20_22_23[Recurso financeiro estimado no ano (R$) - Outras],PAPI20_22_23[SubPDC],'Consolidaçao - 1'!H20,PAPI20_22_23[Ano previsto para início],2023) -> 0 | R20: 0 | S20: 0
A21: 4.1 - Mananciais | B21: =SUMIFS(#REF!,#REF!,A21,#REF!,2021) ->  | C21: =SUMIFS(#REF!,#REF!,A21,#REF!,2021) ->  | D21: =SUMIFS(#REF!,#REF!,A21,#REF!,2021) ->  | E21: =SUMIFS(#REF!,#REF!,A21,#REF!,2021) ->  | H21: 5.3 - Reuso | I21: =SUMIFS(PAPI20_22_23[Recurso financeiro estimado no ano (R$) - CFURH],PAPI20_22_23[SubPDC],'Consolidaçao - 1'!H21,PAPI20_22_23[Ano previsto para início],2022) -> 0 | J21: =SUMIFS(PAPI20_22_23[Recurso financeiro estimado no ano (R$) - Cobrança Estadual],PAPI20_22_23[SubPDC],'Consolidaçao - 1'!H21,PAPI20_22_23[Ano previsto para início],2022) -> 0 | K21: =SUMIFS(PAPI20_22_23[Recurso financeiro estimado no ano (R$) - Cobrança Federal],PAPI20_22_23[SubPDC],'Consolidaçao - 1'!H21,PAPI20_22_23[Ano previsto para início],2022) -> 0 | L21: =SUMIFS(PAPI20_22_23[Recurso financeiro estimado no ano (R$) - Outras],PAPI20_22_23[SubPDC],'Consolidaçao - 1'!H21,PAPI20_22_23[Ano previsto para início],2022) -> 0 | M21: 0 | N21: =SUMIFS(PAPI20_22_23[Recurso financeiro estimado no ano (R$) - CFURH],PAPI20_22_23[SubPDC],'Consolidaçao - 1'!H21,PAPI20_22_23[Ano previsto para início],2023) -> 0 | O21: =SUMIFS(PAPI20_22_23[Recurso financeiro estimado no ano (R$) - Cobrança Estadual],PAPI20_22_23[SubPDC],'Consolidaçao - 1'!H21,PAPI20_22_23[Ano previsto para início],2023) -> 0 | P21: =SUMIFS(PAPI20_22_23[Recurso financeiro estimado no ano (R$) - Cobrança Federal],PAPI20_22_23[SubPDC],'Consolidaçao - 1'!H21,PAPI20_22_23[Ano previsto para início],2023) -> 0 | Q21: =SUMIFS(PAPI20_22_23[Recurso financeiro estimado no ano (R$) - Outras],PAPI20_22_23[SubPDC],'Consolidaçao - 1'!H21,PAPI20_22_23[Ano previsto para início],2023) -> 0 | R21: 0 | S21: 0
A22: 4.2 - Vegetação | B22: =SUMIFS(#REF!,#REF!,A22,#REF!,2021) ->  | C22: =SUMIFS(#REF!,#REF!,A22,#REF!,2021) ->  | D22: =SUMIFS(#REF!,#REF!,A22,#REF!,2021) ->  | E22: =SUMIFS(#REF!,#REF!,A22,#REF!,2021) ->  | H22: 6.1 - Captação | I22: =SUMIFS(PAPI20_22_23[Recurso financeiro estimado no ano (R$) - CFURH],PAPI20_22_23[SubPDC],'Consolidaçao - 1'!H22,PAPI20_22_23[Ano previsto para início],2022) -> 0 | J22: =SUMIFS(PAPI20_22_23[Recurso financeiro estimado no ano (R$) - Cobrança Estadual],PAPI20_22_23[SubPDC],'Consolidaçao - 1'!H22,PAPI20_22_23[Ano previsto para início],2022) -> 0 | K22: =SUMIFS(PAPI20_22_23[Recurso financeiro estimado no ano (R$) - Cobrança Federal],PAPI20_22_23[SubPDC],'Consolidaçao - 1'!H22,PAPI20_22_23[Ano previsto para início],2022) -> 0 | L22: =SUMIFS(PAPI20_22_23[Recurso financeiro estimado no ano (R$) - Outras],PAPI20_22_23[SubPDC],'Consolidaçao - 1'!H22,PAPI20_22_23[Ano previsto para início],2022) -> 0 | M22: 0 | N22: =SUMIFS(PAPI20_22_23[Recurso financeiro estimado no ano (R$) - CFURH],PAPI20_22_23[SubPDC],'Consolidaçao - 1'!H22,PAPI20_22_23[Ano previsto para início],2023) -> 0 | O22: =SUMIFS(PAPI20_22_23[Recurso financeiro estimado no ano (R$) - Cobrança Estadual],PAPI20_22_23[SubPDC],'Consolidaçao - 1'!H22,PAPI20_22_23[Ano previsto para início],2023) -> 0 | P22: =SUMIFS(PAPI20_22_23[Recurso financeiro estimado no ano (R$) - Cobrança Federal],PAPI20_22_23[SubPDC],'Consolidaçao - 1'!H22,PAPI20_22_23[Ano previsto para início],2023) -> 0 | Q22: =SUMIFS(PAPI20_22_23[Recurso financeiro estimado no ano (R$) - Outras],PAPI20_22_23[SubPDC],'Consolidaçao - 1'!H22,PAPI20_22_23[Ano previsto para início],2023) -> 0 | R22: 0 | S22: 0
A23: 5.1 - Perdas | B23: =SUMIFS(#REF!,#REF!,A23,#REF!,2021) ->  | C23: =SUMIFS(#REF!,#REF!,A23,#REF!,2021) ->  | D23: =SUMIFS(#REF!,#REF!,A23,#REF!,2021) ->  | E23: =SUMIFS(#REF!,#REF!,A23,#REF!,2021) ->  | H23: 6.2 - Regularização | I23: =SUMIFS(PAPI20_22_23[Recurso financeiro estimado no ano (R$) - CFURH],PAPI20_22_23[SubPDC],'Consolidaçao - 1'!H23,PAPI20_22_23[Ano previsto para início],2022) -> 0 | J23: =SUMIFS(PAPI20_22_23[Recurso financeiro estimado no ano (R$) - Cobrança Estadual],PAPI20_22_23[SubPDC],'Consolidaçao - 1'!H23,PAPI20_22_23[Ano previsto para início],2022) -> 0 | K23: =SUMIFS(PAPI20_22_23[Recurso financeiro estimado no ano (R$) - Cobrança Federal],PAPI20_22_23[SubPDC],'Consolidaçao - 1'!H23,PAPI20_22_23[Ano previsto para início],2022) -> 0 | L23: =SUMIFS(PAPI20_22_23[Recurso financeiro estimado no ano (R$) - Outras],PAPI20_22_23[SubPDC],'Consolidaçao - 1'!H23,PAPI20_22_23[Ano previsto para início],2022) -> 0 | M23: 0 | N23: =SUMIFS(PAPI20_22_23[Recurso financeiro estimado no ano (R$) - CFURH],PAPI20_22_23[SubPDC],'Consolidaçao - 1'!H23,PAPI20_22_23[Ano previsto para início],2023) -> 0 | O23: =SUMIFS(PAPI20_22_23[Recurso financeiro estimado no ano (R$) - Cobrança Estadual],PAPI20_22_23[SubPDC],'Consolidaçao - 1'!H23,PAPI20_22_23[Ano previsto para início],2023) -> 0 | P23: =SUMIFS(PAPI20_22_23[Recurso financeiro estimado no ano (R$) - Cobrança Federal],PAPI20_22_23[SubPDC],'Consolidaçao - 1'!H23,PAPI20_22_23[Ano previsto para início],2023) -> 0 | Q23: =SUMIFS(PAPI20_22_23[Recurso financeiro estimado no ano (R$) - Outras],PAPI20_22_23[SubPDC],'Consolidaçao - 1'!H23,PAPI20_22_23[Ano previsto para início],2023) -> 0 | R23: 0 | S23: 0
A24: 5.2 - Racionalização | B24: =SUMIFS(#REF!,#REF!,A24,#REF!,2021) ->  | C24: =SUMIFS(#REF!,#REF!,A24,#REF!,2021) ->  | D24: =SUMIFS(#REF!,#REF!,A24,#REF!,2021) ->  | E24: =SUMIFS(#REF!,#REF!,A24,#REF!,2021) ->  | H24: 7.1 - Drenagem | I24: =SUMIFS(PAPI20_22_23[Recurso financeiro estimado no ano (R$) - CFURH],PAPI20_22_23[SubPDC],'Consolidaçao - 1'!H24,PAPI20_22_23[Ano previsto para início],2022) -> 0 | J24: =SUMIFS(PAPI20_22_23[Recurso financeiro estimado no ano (R$) - Cobrança Estadual],PAPI20_22_23[SubPDC],'Consolidaçao - 1'!H24,PAPI20_22_23[Ano previsto para início],2022) -> 0 | K24: =SUMIFS(PAPI20_22_23[Recurso financeiro estimado no ano (R$) - Cobrança Federal],PAPI20_22_23[SubPDC],'Consolidaçao - 1'!H24,PAPI20_22_23[Ano previsto para início],2022) -> 0 | L24: =SUMIFS(PAPI20_22_23[Recurso financeiro estimado no ano (R$) - Outras],PAPI20_22_23[SubPDC],'Consolidaçao - 1'!H24,PAPI20_22_23[Ano previsto para início],2022) -> 0 | M24: 0 | N24: =SUMIFS(PAPI20_22_23[Recurso financeiro estimado no ano (R$) - CFURH],PAPI20_22_23[SubPDC],'Consolidaçao - 1'!H24,PAPI20_22_23[Ano previsto para início],2023) -> 0 | O24: =SUMIFS(PAPI20_22_23[Recurso financeiro estimado no ano (R$) - Cobrança Estadual],PAPI20_22_23[SubPDC],'Consolidaçao - 1'!H24,PAPI20_22_23[Ano previsto para início],2023) -> 0 | P24: =SUMIFS(PAPI20_22_23[Recurso financeiro estimado no ano (R$) - Cobrança Federal],PAPI20_22_23[SubPDC],'Consolidaçao - 1'!H24,PAPI20_22_23[Ano previsto para início],2023) -> 0 | Q24: =SUMIFS(PAPI20_22_23[Recurso financeiro estimado no ano (R$) - Outras],PAPI20_22_23[SubPDC],'Consolidaçao - 1'!H24,PAPI20_22_23[Ano previsto para início],2023) -> 0 | R24: 0 | S24: 0
A25: 5.3 - Reuso | B25: =SUMIFS(#REF!,#REF!,A25,#REF!,2021) ->  | C25: =SUMIFS(#REF!,#REF!,A25,#REF!,2021) ->  | D25: =SUMIFS(#REF!,#REF!,A25,#REF!,2021) ->  | E25: =SUMIFS(#REF!,#REF!,A25,#REF!,2021) ->  | H25: 7.2 - Escassez | I25: =SUMIFS(PAPI20_22_23[Recurso financeiro estimado no ano (R$) - CFURH],PAPI20_22_23[SubPDC],'Consolidaçao - 1'!H25,PAPI20_22_23[Ano previsto para início],2022) -> 0 | J25: =SUMIFS(PAPI20_22_23[Recurso financeiro estimado no ano (R$) - Cobrança Estadual],PAPI20_22_23[SubPDC],'Consolidaçao - 1'!H25,PAPI20_22_23[Ano previsto para início],2022) -> 0 | K25: =SUMIFS(PAPI20_22_23[Recurso financeiro estimado no ano (R$) - Cobrança Federal],PAPI20_22_23[SubPDC],'Consolidaçao - 1'!H25,PAPI20_22_23[Ano previsto para início],2022) -> 0 | L25: =SUMIFS(PAPI20_22_23[Recurso financeiro estimado no ano (R$) - Outras],PAPI20_22_23[SubPDC],'Consolidaçao - 1'!H25,PAPI20_22_23[Ano previsto para início],2022) -> 0 | M25: 0 | N25: =SUMIFS(PAPI20_22_23[Recurso financeiro estimado no ano (R$) - CFURH],PAPI20_22_23[SubPDC],'Consolidaçao - 1'!H25,PAPI20_22_23[Ano previsto para início],2023) -> 0 | O25: =SUMIFS(PAPI20_22_23[Recurso financeiro estimado no ano (R$) - Cobrança Estadual],PAPI20_22_23[SubPDC],'Consolidaçao - 1'!H25,PAPI20_22_23[Ano previsto para início],2023) -> 0 | P25: =SUMIFS(PAPI20_22_23[Recurso financeiro estimado no ano (R$) - Cobrança Federal],PAPI20_22_23[SubPDC],'Consolidaçao - 1'!H25,PAPI20_22_23[Ano previsto para início],2023) -> 0 | Q25: =SUMIFS(PAPI20_22_23[Recurso financeiro estimado no ano (R$) - Outras],PAPI20_22_23[SubPDC],'Consolidaçao - 1'!H25,PAPI20_22_23[Ano previsto para início],2023) -> 0 | R25: 0 | S25: 0
A26: 6.1 - Usos | B26: =SUMIFS(#REF!,#REF!,A26,#REF!,2021) ->  | C26: =SUMIFS(#REF!,#REF!,A26,#REF!,2021) ->  | D26: =SUMIFS(#REF!,#REF!,A26,#REF!,2021) ->  | E26: =SUMIFS(#REF!,#REF!,A26,#REF!,2021) ->  | H26: 8.1 - Capacitação | I26: =SUMIFS(PAPI20_22_23[Recurso financeiro estimado no ano (R$) - CFURH],PAPI20_22_23[SubPDC],'Consolidaçao - 1'!H26,PAPI20_22_23[Ano previsto para início],2022) -> 0 | J26: =SUMIFS(PAPI20_22_23[Recurso financeiro estimado no ano (R$) - Cobrança Estadual],PAPI20_22_23[SubPDC],'Consolidaçao - 1'!H26,PAPI20_22_23[Ano previsto para início],2022) -> 0 | K26: =SUMIFS(PAPI20_22_23[Recurso financeiro estimado no ano (R$) - Cobrança Federal],PAPI20_22_23[SubPDC],'Consolidaçao - 1'!H26,PAPI20_22_23[Ano previsto para início],2022) -> 0 | L26: =SUMIFS(PAPI20_22_23[Recurso financeiro estimado no ano (R$) - Outras],PAPI20_22_23[SubPDC],'Consolidaçao - 1'!H26,PAPI20_22_23[Ano previsto para início],2022) -> 0 | M26: 0 | N26: =SUMIFS(PAPI20_22_23[Recurso financeiro estimado no ano (R$) - CFURH],PAPI20_22_23[SubPDC],'Consolidaçao - 1'!H26,PAPI20_22_23[Ano previsto para início],2023) -> 0 | O26: =SUMIFS(PAPI20_22_23[Recurso financeiro estimado no ano (R$) - Cobrança Estadual],PAPI20_22_23[SubPDC],'Consolidaçao - 1'!H26,PAPI20_22_23[Ano previsto para início],2023) -> 0 | P26: =SUMIFS(PAPI20_22_23[Recurso financeiro estimado no ano (R$) - Cobrança Federal],PAPI20_22_23[SubPDC],'Consolidaçao - 1'!H26,PAPI20_22_23[Ano previsto para início],2023) -> 0 | Q26: =SUMIFS(PAPI20_22_23[Recurso financeiro estimado no ano (R$) - Outras],PAPI20_22_23[SubPDC],'Consolidaçao - 1'!H26,PAPI20_22_23[Ano previsto para início],2023) -> 0 | R26: 0 | S26: 0
A27: 6.2 - Segurança | B27: =SUMIFS(#REF!,#REF!,A27,#REF!,2021) ->  | C27: =SUMIFS(#REF!,#REF!,A27,#REF!,2021) ->  | D27: =SUMIFS(#REF!,#REF!,A27,#REF!,2021) ->  | E27: =SUMIFS(#REF!,#REF!,A27,#REF!,2021) ->  | H27: 8.2 - Educação | I27: =SUMIFS(PAPI20_22_23[Recurso financeiro estimado no ano (R$) - CFURH],PAPI20_22_23[SubPDC],'Consolidaçao - 1'!H27,PAPI20_22_23[Ano previsto para início],2022) -> 0 | J27: =SUMIFS(PAPI20_22_23[Recurso financeiro estimado no ano (R$) - Cobrança Estadual],PAPI20_22_23[SubPDC],'Consolidaçao - 1'!H27,PAPI20_22_23[Ano previsto para início],2022) -> 0 | K27: =SUMIFS(PAPI20_22_23[Recurso financeiro estimado no ano (R$) - Cobrança Federal],PAPI20_22_23[SubPDC],'Consolidaçao - 1'!H27,PAPI20_22_23[Ano previsto para início],2022) -> 0 | L27: =SUMIFS(PAPI20_22_23[Recurso financeiro estimado no ano (R$) - Outras],PAPI20_22_23[SubPDC],'Consolidaçao - 1'!H27,PAPI20_22_23[Ano previsto para início],2022) -> 0 | M27: 0 | N27: =SUMIFS(PAPI20_22_23[Recurso financeiro estimado no ano (R$) - CFURH],PAPI20_22_23[SubPDC],'Consolidaçao - 1'!H27,PAPI20_22_23[Ano previsto para início],2023) -> 0 | O27: =SUMIFS(PAPI20_22_23[Recurso financeiro estimado no ano (R$) - Cobrança Estadual],PAPI20_22_23[SubPDC],'Consolidaçao - 1'!H27,PAPI20_22_23[Ano previsto para início],2023) -> 0 | P27: =SUMIFS(PAPI20_22_23[Recurso financeiro estimado no ano (R$) - Cobrança Federal],PAPI20_22_23[SubPDC],'Consolidaçao - 1'!H27,PAPI20_22_23[Ano previsto para início],2023) -> 0 | Q27: =SUMIFS(PAPI20_22_23[Recurso financeiro estimado no ano (R$) - Outras],PAPI20_22_23[SubPDC],'Consolidaçao - 1'!H27,PAPI20_22_23[Ano previsto para início],2023) -> 0 | R27: 0 | S27: 0
A28: 6.3 - Aproveitamento | B28: =SUMIFS(#REF!,#REF!,A28,#REF!,2021) ->  | C28: =SUMIFS(#REF!,#REF!,A28,#REF!,2021) ->  | D28: =SUMIFS(#REF!,#REF!,A28,#REF!,2021) ->  | E28: =SUMIFS(#REF!,#REF!,A28,#REF!,2021) ->  | H28: 8.3 - Comunicação | I28: =SUMIFS(PAPI20_22_23[Recurso financeiro estimado no ano (R$) - CFURH],PAPI20_22_23[SubPDC],'Consolidaçao - 1'!H28,PAPI20_22_23[Ano previsto para início],2022) -> 0 | J28: =SUMIFS(PAPI20_22_23[Recurso financeiro estimado no ano (R$) - Cobrança Estadual],PAPI20_22_23[SubPDC],'Consolidaçao - 1'!H28,PAPI20_22_23[Ano previsto para início],2022) -> 0 | K28: =SUMIFS(PAPI20_22_23[Recurso financeiro estimado no ano (R$) - Cobrança Federal],PAPI20_22_23[SubPDC],'Consolidaçao - 1'!H28,PAPI20_22_23[Ano previsto para início],2022) -> 0 | L28: =SUMIFS(PAPI20_22_23[Recurso financeiro estimado no ano (R$) - Outras],PAPI20_22_23[SubPDC],'Consolidaçao - 1'!H28,PAPI20_22_23[Ano previsto para início],2022) -> 0 | M28: 0 | N28: =SUMIFS(PAPI20_22_23[Recurso financeiro estimado no ano (R$) - CFURH],PAPI20_22_23[SubPDC],'Consolidaçao - 1'!H28,PAPI20_22_23[Ano previsto para início],2023) -> 0 | O28: =SUMIFS(PAPI20_22_23[Recurso financeiro estimado no ano (R$) - Cobrança Estadual],PAPI20_22_23[SubPDC],'Consolidaçao - 1'!H28,PAPI20_22_23[Ano previsto para início],2023) -> 0 | P28: =SUMIFS(PAPI20_22_23[Recurso financeiro estimado no ano (R$) - Cobrança Federal],PAPI20_22_23[SubPDC],'Consolidaçao - 1'!H28,PAPI20_22_23[Ano previsto para início],2023) -> 0 | Q28: =SUMIFS(PAPI20_22_23[Recurso financeiro estimado no ano (R$) - Outras],PAPI20_22_23[SubPDC],'Consolidaçao - 1'!H28,PAPI20_22_23[Ano previsto para início],2023) -> 0 | R28: 0 | S28: 0
A29: 7.1 - Criticidades | B29: =SUMIFS(#REF!,#REF!,A29,#REF!,2021) ->  | C29: =SUMIFS(#REF!,#REF!,A29,#REF!,2021) ->  | D29: =SUMIFS(#REF!,#REF!,A29,#REF!,2021) ->  | E29: =SUMIFS(#REF!,#REF!,A29,#REF!,2021) -> 
A30: 7.2 - Inundações | B30: =SUMIFS(#REF!,#REF!,A30,#REF!,2021) ->  | C30: =SUMIFS(#REF!,#REF!,A30,#REF!,2021) ->  | D30: =SUMIFS(#REF!,#REF!,A30,#REF!,2021) ->  | E30: =SUMIFS(#REF!,#REF!,A30,#REF!,2021) ->  | H30: Delib. 246 | I30: PDC 1 e 2 | J30: Prioritário | K30: Não Prioritário
A31: 7.3 - Estiagens | B31: =SUMIFS(#REF!,#REF!,A31,#REF!,2021) ->  | C31: =SUMIFS(#REF!,#REF!,A31,#REF!,2021) ->  | D31: =SUMIFS(#REF!,#REF!,A31,#REF!,2021) ->  | E31: =SUMIFS(#REF!,#REF!,A31,#REF!,2021) ->  | H31: SubPDC | I31: =SUMIF(#REF!,I$30,PAPI20_22_23[Recurso financeiro estimado no ano (R$)]) ->  | J31: =SUMIF(#REF!,J$30,PAPI20_22_23[Recurso financeiro estimado no ano (R$)]) ->  | K31: =SUMIF(#REF!,K$30,PAPI20_22_23[Recurso financeiro estimado no ano (R$)]) -> 
A32: 8.1 - Capacitação | B32: =SUMIFS(#REF!,#REF!,A32,#REF!,2021) ->  | C32: =SUMIFS(#REF!,#REF!,A32,#REF!,2021) ->  | D32: =SUMIFS(#REF!,#REF!,A32,#REF!,2021) ->  | E32: =SUMIFS(#REF!,#REF!,A32,#REF!,2021) ->  | I32: =IFERROR(I31/SUM(I31:K31),"") ->  | J32: =IFERROR(J31/SUM(I31:K31),"") ->  | K32: =IFERROR(K31/SUM(I31:K31),"") -> 
A33: 8.2 - Educação | B33: =SUMIFS(#REF!,#REF!,A33,#REF!,2021) ->  | C33: =SUMIFS(#REF!,#REF!,A33,#REF!,2021) ->  | D33: =SUMIFS(#REF!,#REF!,A33,#REF!,2021) ->  | E33: =SUMIFS(#REF!,#REF!,A33,#REF!,2021) -> 
A34: 8.3 - Comunicação | B34: =SUMIFS(#REF!,#REF!,A34,#REF!,2021) ->  | C34: =SUMIFS(#REF!,#REF!,A34,#REF!,2021) ->  | D34: =SUMIFS(#REF!,#REF!,A34,#REF!,2021) ->  | E34: =SUMIFS(#REF!,#REF!,A34,#REF!,2021) -> 
A36: Delib. 190 | B36: PDC 1 e 2 | C36: Prioritário | D36: Não Prioritário
A37: SubPDC | B37: =SUMIF(#REF!,B$36,#REF!) ->  | C37: =SUMIF(#REF!,C$36,#REF!) ->  | D37: =SUMIF(#REF!,D$36,#REF!) -> 
B38: =B37/SUM(B37:D37) ->  | C38: =C37/SUM(B37:D37) ->  | D38: =D37/SUM(B37:D37) -> 

Sheet Consolidaçao - 2 (hidden)
A1: Para atualizar, vá em Dados --> Atualizar Tudo ou aperte
A2: CTRL + Alt + F5

Sheet Orientações
C1: MELHOR VISUALIZADO no Office 365
C3: Este modelo de PAPI para o quadriênio 2024-2027 tem uma estrutura distinta dos enviados nos outros períodos/anos, pois ele contempla tanto o PAPI 24-27 e seu acompanhamento, quanto o acompanhamento do PAPI anterior.
C4: Está dividido em multiplas planilhas ("abas"), estruturadas em dois grupos: PAPI 24-27 e PAPI 20-23 (Acompanhamento). A expectativa é que a mesma planilha sirva para todo o quadriênio.
B8: A | C8: PAPI 2024-2027
C9: Compreende quatro planilhas ("abas") e se refere ao planejamento e acompanhamento do PAPI - 24-27.
B10: 1 | C10: Identificação das ações - 24-27" - Compreende a indicação das ações previstas para o PAPI 2024-2027. Sugere-se a indicação do que será produzido/realizado com o recurso pleiteado, considerando a esfera de atuação direta do CBH. Envolve um fluxo de atividades a serem executadas para entregar um produto final. Preencher TODAS informações das colunas também de forma sequencial (esquerda para direita).
B11: 2 | C11: Acompanhamento das metas 24-27 - Compreende a indicação e o acompanhamento da execução das Metas (do quadriênio e anuais).Devem ser quantificáveis e mensuráveis por meio de indicadores que reflitam as mudanças para as quais espera-se que as intervenções previstos pelas ações propostas influenciem.
B12: 3 | C12: Acomp. Financeiro 24-27 - Acompanhamento das previsões dos valores (R$) planejados, disponbilizados e executados. Para esta primeira etapa, só precisam ser preenchidos os valores Planejados (colunas em roxo). O acompanhamento se dará ao longo do quadriênio.
B13: 4 | C13: PAPI 2024-2027 - Resultado automático do preenchimento anterior. Somente as ações sem recursos financeiros previstos deve ser preenchida. As demais são inseridas automaticamente. É o conteúdo mínimo do PAPI 24/27 que deve ser deliberado e referendado nas revisões anuais.
B15: B | C15: ACOMPANHAMENTO - PAPI 20-23
C16: Compreende o acompanhamento das ações iniciadas no quadriênio anterior. Como grande parte delas ainda está em execução, ideal é monitorar, na medida do possível, sua execução.
B17: 1 | C17: Serão utilizadas as mesmas planilhas do ano anterior, que devem ser incorporadas no presente arquivo. Observar as duas colunas na cor roxa, relativa ao acompanhamento 2024. As outras colunas devem ser copiadas do último PAPI aprovado. Como se trata do acompanhamento de 2024 dessas ações, só será iniciado em 2025.

Sheet Acomp. - PAPI_21 (Delib. 190)
A1: ID Ação | B1: Ano | C1: SubPDC | D1: Prioridade do SubPDC | E1: Ação | F1: Meta | G1: % Execução da meta | H1: Segmento do executor | I1: Área de abrangência | J1: Nome da área de abrangência | K1: Recurso financeiro executado no ano (R$) | L1: Justificativa sobre execução física e financeira em 2024
A2: SM-01-2022 | B2: 2021 | C2: 1.2 - Planejamento | D2: PDC 1 e 2 | E2: Contratação de Estudos para elaboração do Plano Municipal de Recursos Hídricos que subsidiem a criação da Política Municipal de Recursos Hídricos em cada município da UGRHI-1, incluindo minutas para as respectivas legislações. | F2: Estudos para Elaboração de Plano de Recursos Hídricos para criação e implantação da Política municipal de Recursos Hídricos nos 3 municípios da UGRHI-1 | G2: 0 | H2: Sociedade civil | I2: UGRHi | J2: UGRHI-1 | K2: 0 | L2: Esta Ação foi cancelada pois sua implementação era continuidade de uma outra Ação préviamente anterior ( condicionante) ser implemntada e a qual sofre um atraso de 18 meses não permitindo a continuidade no planejamento estabelecido. A Meta planejada "Elaborar um Plano Diretor de recomposição Florestal foi revisada e alterada para outra Meta na revisão do PAPI dezembro 2021: a nova meta deu continuidade na utilização dos produtos entregues na Ação 1a'fase ( vide linha 13 desta planilha)
A3: SM-02-2022 | B3: 2021 | C3: 1.2 - Planejamento | D3: PDC 1 e 2 | E3: Apoiar os municípios a estabelecer um programa de trabalho junto a SABESP, visando estabelecer acoes urgentes para situações criticas já identificadas e também conhecer o planejamento de investimentos e metas para melhoria dos indicadores e serviços de saneamento básico. | F3: Atingir a classificação de “Ótimo / Bom “ para os Indicadores de cobertura e qualidade de saneamento Básico e abastecimento de água nos 3 municípios | G3: 0.5 | H3: Estado | I3: UGRHi | J3: UGRHI-1 | K3: 0 | L3: Esta Ação não demanda investimento financeiro e foi mantida na revisão do PAPI - Deliberação CBH-SM 09/2022 , procurando estabelecer um contato de nível gerencial com a SABESP. Deve se observar que o Plano Estadual de Saneamento Basico indica que os municípios da UGRHI-1 não estão com capacidade de atingir o indice de 100 % ate 2033 cfme estabelecido no PLANSAB / federal.
A4: SM-03-2022 | B4: 2021 | C4: 1.2 - Planejamento | D4: PDC 1 e 2 | E4: Induzir projeto / empreendimento FEHIDRO para obter um estudo de Saneamento Básico Rural para estabelecer diretrizes , segundo a orientação e parceria com a área de vigilância sanitária Estadual / municipal com foco nas áreas rurais e não atendidas pela SABESP. | F4: Fazer Diagnóstico da Situação do Saneamento Básico Rural da UGRHI-1 , com foco nos municípios de Sao Bento do Sapucai e Santo Antonio do Pinhal | G4: 0.25 | H4: A definir | I4: UGRHi | J4: UGRHI-1 | K4: 0 | L4: Esta Ação foi mantida / revisada no PAPI 2023 - Deliberação CBH-SM 09/2022 e foi apresentada e aprovada / indicada para financiamento FEHIDRO em 2023 pela Deliberação CBH-SM xx 2023 , porem foi cancelada pelo Agente Técnico devido a necessidade de alteração de termo de Referência para dividir o projeto e realiza-lo por municípío. Será incluída na PAPI 2024/2027 com novo termo de Referência de acordo com a orientação do Agente Técnico.
A5: SM-04-2022 | B5: 2021 | C5: 1.2 - Planejamento | D5: PDC 1 e 2 | E5: Induzir projeto / empreendimento FEHIDRO para realizar estudo de viabilidade para implantação de um aterro sanitário regional para atender os 3 municípios da UGRHI-1 | F5: Obter estudo de viabilidade para implantação de aterro sanitário na UGRHI-1 com indicação de local e requisitos ambientais e financeiros. | G5: 0 | H5: Estado | I5: UGRHi | J5: UGRHI-1 | K5: 0 | L5: O projeto foi mantido na revisão do PAPI 2023 - Deliberação CBH-SM 09/2022.
A6: SM-05-2022 | B6: 2021 | C6: 2.5 - Integração | D6: PDC 1 e 2 | E6: Projeto e ações / empreendimentos FEHIDRO visando a implantação de Sala de Situação Virtual e online e sua operação, manutenção, modernização bem como instalação de equipamentos de monitoramento qualitativo-quantitativo dos recursos hídricos e Hidro meteorológicos em parceria com o DAEE / SABESP e DEFESA CIVIL dos municípios da UGRHI-1 | F6: Implantar Sala da Situação online para fornecer um Sistema de Suporte a Decisão ( SSD ) e de Alerta de prevenção de eventos climáticos e ambientais extremos para os 3 municípios da UGRHI-1 | G6: 0 | H6: Estado | I6: UGRHi | J6: UGRHI-1 | K6: 0 | L6: A Ação de implementação da Sala da Situaçao online foi cancelada pelo agente Técnico / CRH , porem é de alta relevância / necessidade e deve ser novamente debatido com o CRH visando obter solução para a necessidade de gestão da UGRHI-1
A7: SM-06-2022 | B7: 2021 | C7: 2.5 - Integração | D7: PDC 1 e 2 | E7: Induzir projeto / empreendimento FEHIDRO para estabelecer um programa continuo de monitoramento de uso e ocupação do solo nas cabeceiras das principais microbacias para ações de controle, fiscalização ou normatização. | F7: Implantar Sistema de informações e avaliações periódicas sobre o uso e ocupação do solo por microbacias da UGRHI-1 | G7: 0 | H7: Sociedade civil | I7: UGRHi | J7: UGRHI-1 | K7: 0 | L7: Esta Açao deverá ser reavaliada e sua continuidade deverá estar no planejamento do PAPI 2024/2027
A8: SM-07-2022 | B8: 2021 | C8: 2.5 - Integração | D8: PDC 1 e 2 | E8: Aprimorar a comunicação com municípios situados nos arredores da UGRHI-1 que sofrem influência ou que influenciam os recursos hídricos da UGRHI-1 | F8: Promover a interação institucional com organismos estaduais / federais | G8: 1 | H8: A definir | I8: UGRHi | J8: UGRHI-1 | K8: 0 | L8: Esta Ação deve ser mantida na revisão do PAPI 2024/2027 e considerada estratégica no planejamento. Não demanda recursos financeiros para sua implemantação.
A9: SM-08-2022 | B9: 2021 | C9: 3.1 - Efluentes | D9: Prioritário | E9: Induzir estudos para tratamento de esgotos em comunidades isoladas (área rural), onde a SABESP não atende. | F9: Aprimorar as estruturas de atendimento de agua e tratamento de esgotos em pelo menos 01 comunidade isolada até 2023 | G9: 0 | H9: Município | I9: Bairro | J9: A definir | K9: 0 | L9: Esta Açao deverá ser reavaliada e sua continuidade deverá estar no planejamento do PAPI 2024/2027
A10: SM-09-2022 | B10: 2021 | C10: 3.2 - Resíduos | D10: Prioritário | E10: Induzir projetos de elaboração de Planos de Coleta e Tratamento de Resíduos Sólidos e/ou ações para melhorias em processos já existentes, segundo diretrizes e legislação Estadual / Municipal, nos 3 municípios com foco em Sao Bento do Sapucai e Santo Antonio do Pinhal | F10: Aprimorar o sistema de coleta e disposição de resíduos sólidos ( orgânico, reciclável, eletrônico, obras civis, químicos e poluentes ) nos 3 municípios | G10: 0 | H10: Município | I10: Município | J10: SAMA | K10: 0 | L10: A continuidade ou mesmo a implementação deste tipo de projeto dependerá de maior apoio e recursos tecnicos aos municípios de SBS e SAP devido a falta de recursos dos mesmos para apresentação de propostas e projetos pois é crítica a necessidade de implamentação de ações para atender os Planos Municipáis de Resíduos Sólidos Esta Ação foi excluída da revisão do PAPI 2022 - Deliberação CBH-SM 09 / 2022 e deverá ser reavaliada no planejamento do PAPI 2024/2027
A11: SM-10-2022 | B11: 2021 | C11: 4.1 - Mananciais | D11: Prioritário | E11: Induzir , apoiar e orientar os municípios a apresentar projetos e / ou implementar obras de desassoreamento e contenção de margem de cursos d'água a serem financiados pelo FEHIDRO | F11: Aprimorar sistemas de desassoreamento e controle de erosão rural e urbana em pelo menos 01 sub-bacia | G11: 1 | H11: Município | I11: Sub-bacia | L11: Projeto específico de muro de conteção - Vila Fátima no município de Santo Antonio do Pinhal - necessita revisão do Plano de Drenagem
A12: SM-11-2022 | B12: 2021 | C12: 4.2 - Vegetação | D12: Prioritário | E12: Suporte Tecnico e Financeiro aos municípios através de indução de projetos e serviços de restauração e preservação de áreas prioritárias através de programas de Pagamento de Serviços Ambientais – PSA financiados pelo FEHIDRO ou por Entidades da Sociedade civil através da criação de parcerias. | F12: Restauração e Preservação de áreas em propriedades rurais e microbacias via implantação de Projetos de Pagamento de Serviços Ambientais- PSA | G12: 0.25 | H12: Sociedade civil | I12: UGRHi | J12: UGRHI-1 | L12: A continuidade desta Ação ira ser planejada na revisão do PAPI 2024/2027 através de projetos similares em áreas a ser definidas da UGRHI-1.
A13: SM-12-2023 | B13: 2021 | C13: 4.1 - Mananciais | D13: Prioritário | E13: Induzir e apoiar / orientar os municípios a apresentarem projetos e / ou obras de desassoreamento e recuperação dos mananciais de abastecimento visando aumento da reservação | F13: Aumento da disponibilidade hídrica nos mananciais de abastecimento público | G13: 0 | H13: Município | I13: Sub-bacia | L13: O projeto sera incluído na revisão do PAPI 2024/2027
A14: SM-13-2023 | B14: 2021 | C14: 7.2 - Inundações | D14: Não prioritário | E14: Induzir e apoiar / orientar os municípios a apresentar projetos e / ou obras de melhorias de drenagem pluvial urbana a serem indicados para financiamento FEHIDRO. | F14: Aprimoramento do sistema de drenagem urbana dos municípios | G14: 0.5 | H14: Município | I14: Município | L14: A continuidade desta ação depende do prjeto de execução da obra / intervenção que deverá ser incluído na revisão do PAPI 2024/2027
A15: SM-14-2023 | B15: 2021 | C15: 7.2 - Inundações | D15: Não prioritário | E15: Induzir projeto de elaboração e / ou atualização do Plano de drenagem dos 3 municípios, com foco em soluções de drenagem em áreas de inundação identificadas e recorrentes. | F15: Entregar um Plano de Drenagem atualizado para os 3 municípios | G15: 0 | H15: Sociedade civil | I15: Município | L15: O projeto será incluído na revisão do PAPI 2024-2027
A16: SM15-2022 | B16: 2021 | C16: 8.1 - Capacitação | D16: Não prioritário | E16: Desenvolver programa de capacitacao e certificação em conformidade com diretrizes do CRH para Gestão de Recursos Hídricos a ser aplicado aos membros do CBH-SM | F16: Capacitar e certificar os membros do CBH-SM em durante o ano de 2022 | G16: 1 | H16: Estado | I16: UGRHi | L16: A revisão do Plano de Capacitação será realizada no primeiro semestre de 2024 - para o período 2024/2025 a Capacitação dos membros do CBH-SM ( plenária e CTs) deve ser continua
A17: SM-16-2022 | B17: 2021 | C17: 8.2 - Educação | D17: Prioritário | E17: Induzir projeto para elaboração do Plano de Educação Ambiental da UGRHI-1 em conformidade com o plano de Bacias e com as diretrizes do CRH – Deliberação 231 / 2019. | F17: Plano de Educação Ambiental da UGRHI-1 | G17: 0.25 | H17: Sociedade civil | I17: UGRHi | L17: O projeto está em fase inicial de execução e tem duração de 24 meses
A18: SM-17-2022 | B18: 2021 | C18: 8.2 - Educação | D18: Prioritário | E18: Induzir projetos de Educação Ambiental a serem financiados pelo FEHIDRO segundo as diretrizes e roteiros / MPO do CRH – Deliberação 231 / 2019 | F18: Desenvolver Programas e Projetos de Educação Ambiental que atendam os municípios da UGRHI-1. | G18: 0 | H18: Sociedade civil | I18: UGRHi | L18: O projeto será incluído na revisão do PAPI 2024-2027
A19: SM-18-2022 | B19: 2021 | C19: 8.3 - Comunicação | D19: Prioritário | E19: Induzir e apoiar projetos para construir e manter canais de comunicação com a população dos municípios visando a divulgação das acoes do CBH-SM e a conscientização sobre a preservação dos recursos hídricos | F19: Implantar programa continuo de Comunicação Social através de canais e mídias digitais de comunicação alem de eventos sociais específicos nos municípios da UGRHI-1 | G19: 0 | H19: Sociedade civil | I19: UGRHi | L19: O projeto será incluído na revisão do PAPI 2024-2027

Sheet Acomp. PAPI_22_23 (Delib. 246)
A1: ID Ação | B1: Ano | C1: SubPDC | D1: Prioridade do SubPDC | E1: Ação | F1: Meta | G1: % Execução da meta | H1: Segmento do executor | I1: Área de abrangência | J1: Nome da área de abrangência | K1: Justificativa sobre execução física e financeira em 2024
A2: SM-02-2022 | B2: 2022 | C2: 1.2 - Planejamento e gestão de recursos hídricos | D2: PDC 1 e 2 | E2: Apoiar os municípios a estabelecer um programa de trabalho junto a SABESP, visando estabelecer acoes urgentes para situações criticas já identificadas e também conhecer o planejamento de investimentos e metas para melhoria dos indicadores e serviços de saneamento básico. | F2: Atingir a classificação de “Ótimo/Bom “ para os Indicadores de cobertura e qualidade de saneamento Básico e abastecimento de água nos 3 municípios | G2: 0.5 | H2: Estado | I2: UGRHi | J2: UGRHI-1 | K2: Esta Ação não demanda investimento financeiro e foi mantida na revisão do PAPI - Deliberação CBH-SM 09/2022 , procurando estabelecer um contato de nível gerencial com a SABESP. Deve se observar que o Plano Estadual de Saneamento Basico indica que os municípios da UGRHI-1 não estão com capacidade de atingir o indice de 100 % ate 2033 cfme estabelecido no PLANSAB / federal.
A3: SM-03-2022 | B3: 2022 | C3: 1.2 - Planejamento e gestão de recursos hídricos | D3: PDC 1 e 2 | E3: Induzir projeto / empreendimento FEHIDRO para obter um estudo de Saneamento Básico Rural para estabelecer diretrizes, segundo a orientação e parceria com a área de vigilância sanitária Estadual/municipal com foco nas áreas rurais e não atendidas pela SABESP. | F3: Fazer Diagnóstico da Situação do Saneamento Básico Rural da UGRHI-1, com foco nos municípios de Sao Bento do Sapucai e Santo Antonio do Pinhal | G3: 0 | H3: Sociedade civil | I3: UGRHi | J3: UGRHI-1 | K3: Esta Ação foi mantida / revisada no PAPI 2023 - Deliberação CBH-SM 09/2022 e foi apresentada e aprovada / indicada para financiamento FEHIDRO em 2023 pela Deliberação CBH-SM xx 2023 , porem foi cancelada pelo Agente Técnico devido a necessidade de alteração de termo de Referência para dividir o projeto e realiza-lo por municípío. Será incluída na PAPI 2024/2027 com novo termo de Referência de acordo com a orientação do Agente Técnico.
A4: SM-04-2022 | B4: 2022 | C4: 1.2 - Planejamento e gestão de recursos hídricos | D4: PDC 1 e 2 | E4: Induzir projeto / empreendimento FEHIDRO para realizar estudo de viabilidade para implantação de um aterro sanitário regional para atender os 3 municípios da UGRHI-1 | F4: Obter estudo de viabilidade para implantação de aterro sanitário na UGRHI-1 com indicação de local e requisitos ambientais e financeiros. | G4: 0 | H4: Estado | I4: UGRHi | J4: UGRHI-1 | K4: Dificuldade de realizar a integração dos muncípios em formato de Consórcio visando solução comum devido a todos terem o mesmo problema . Projeto foi adiado para revisão 2024/2027
A5: SM-01-2023 | B5: 2023 | C5: 2.1 - Planos de Recursos Hídricos e Relatórios de Situação | D5: PDC 1 e 2 | E5: Elaboração do Plano de Bacias Hidrográficas da UGRHI-1 para o planejamento de Ações e Investimentos para o quadriênio 2024/2027 | F5: Plano de Recursos Hídricos/Plano de Bacias da UGRI-1 para o quadriênio 2024/2027 | G5: 1 | H5: Sociedade civil | I5: Bacia | J5: UGRHI-1 | K5: O projeto foi incluído na revisão do PAPI 2022/2023 - Deliberação CBH-SM 09/2022 e foi indicado para financiamento FEHIDRO em 2023 e contrato 357/ 2023 com início em Março de 2024.
A6: SM-02-2023 | B6: 2023 | C6: 2.3 - Cobrança pelo uso dos recursos hídricos | D6: PDC 1 e 2 | E6: Estudo de fundamentação para revisão de valores, critérios ou procedimentos para cobrança pelo uso dos recursos hídricos. | F6: Realizar a revisão de valores da cobranca de agua na UGRHI-1 e implantar a correção dos valores a partir de 2025 | G6: 1 | H6: Sociedade civil | I6: UGRHi | J6: UGRHI-1 | K6: O projeto foi incluído na revisão do PAPI 2022/2023 - Deliberação CBH-SM 09/2022 e foi indicado para financiamento FEHIDRO em 2023 e contrato 287/ 2023 com início em Abril de 2024.
A7: SM-05-2022 | B7: 2022 | C7: 2.5 - Redes de Monitoramento e Sistemas de informação sobre recursos hídricos | D7: PDC 1 e 2 | E7: Projeto e ações / empreendimentos FEHIDRO visando a implantação de Sala de Situação Virtual e online e sua operação, manutenção, modernização bem como instalação de equipamentos de monitoramento qualitativo-quantitativo dos recursos hídricos e Hidro meteorológicos em parceria com o DAEE / SABESP e DEFESA CIVIL dos municípios da UGRHI-1 | F7: Implantar Sala da Situação online para fornecer um Sistema de Suporte a Decisão ( SSD ) e de Alerta de prevenção de eventos climáticos e ambientais extremos para os 3 municípios da UGRHI-1 | G7: 0 | H7: Estado | I7: UGRHi | J7: UGRHI-1 | K7: A projeto de implementação da Sala da Situaçao online foi indicado pelo Comite Deliberação 03/2022 e foi cancelado pelo agente Técnico / CRH , porem é de alta relevância / necessidade e deve ser novamente debatido com o CRH visando obter solução para a necessidade de gestão da UGRHI-1.
A8: SM-06-2022 | B8: 2022 | C8: 2.5 - Redes de Monitoramento e Sistemas de informação sobre recursos hídricos | D8: PDC 1 e 2 | E8: Induzir projeto / empreendimento FEHIDRO para estabelecer um programa continuo de monitoramento de uso e ocupação do solo nas cabeceiras das principais microbacias para ações de controle, fiscalização ou normatização. | F8: Implantar Sistema de informações e avaliações periódicas sobre o uso e ocupação do solo por microbacias da UGRHI-1 | G8: 0 | H8: Sociedade civil | I8: UGRHi | J8: UGRHI-1 | K8: Nao houve apresentação de proposta / Tomador no período de 2020 a 2023 . Projeto será reavaliado.
A9: SM-07-2022 | B9: 2022 | C9: 2.6 - Gestão integrada dos recursos hídricos | D9: PDC 1 e 2 | E9: Aprimorar a comunicação com municípios situados nos arredores da UGRHI-1 que sofrem influência ou que influenciam os recursos hídricos da UGRHI-1 | F9: Promover a interação institucional com organismos estaduais / federais | G9: 1 | H9: Município e Sociedade Civil | I9: UGRHi | J9: UGRHI-1 | K9: Esta Ação deve ser mantida na revisão do PAPI 2024/2027 e considerada estratégica no planejamento. Não demanda recursos financeiros para sua implemantação.
A10: SM-03-2023 | B10: 2023 | C10: 3.1 - Esgotamento sanitário | D10: Não prioritário | E10: Induzir estudos para tratamento de esgotos em comunidades isoladas (área rural), não atendidas pela SABESP. | F10: Aprimorar as estruturas de atendimento de agua e tratamento de esgotos em pelo menos 01 comunidade isolada até 2023 | G10: 0 | H10: Município | I10: Bairro | J10: A definir | K10: Nao houve apresentação de proposta / Tomador no período de 2020 a 2023 . Projeto será reavaliado.
A11: SM-04-2023 | B11: 2023 | C11: 3.3 - Manejo e disposição de resíduos sólidos | D11: Não prioritário | E11: Induzir projetos de elaboração de Planos de Coleta e Tratamento de Resíduos Sólidos e/ou ações para melhorias em processos já existentes, segundo diretrizes e legislação Estadual / Municipal, nos 3 municípios com foco em Sao Bento do Sapucai e Santo Antonio do Pinhal | F11: Aprimorar o sistema de coleta e disposição de resíduos sólidos ( orgânico, reciclável, eletrônico, obras civis, químicos e poluentes ) nos 3 municípios | G11: 0 | H11: Município | I11: Município | J11: SAMA | K11: Nao houve apresentação de proposta / Tomador no período de 2020 a 2023 . Projeto será reavaliado.
A12: SM-08-2022 | B12: 2022 | C12: 4.1 - Controle de processos erosivos | D12: Prioritário | E12: Induzir, apoiar e orientar os municípios a apresentar projetos e/ou implementar obras de desassoreamento e contenção de margem de cursos d'água a serem financiados pelo FEHIDRO | F12: Aprimorar sistemas de desassoreamento e controle de erosão rural e urbana em pelo menos 01 sub-bacia | G12: 0 | H12: Município | I12: Sub-bacia | J12: Rio da Prata | K12: Projeto Foi indicado pelo CBH-SM porem devido a alterações introduzidas no Manual de Procedimento Operacional pelo FEHIDRO demandaram alteração no projeto técnico / solicitado ao Tomador município de SAP e não conseguiu fazer o ajuste necessário em tempo pleito 2023 sendo cancelado. Será revisado e incluído no PAPI 2024-2027.
A13: SM-09-2022 | B13: 2022 | C13: 4.2 - Soluções baseadas na natureza | D13: Prioritário | E13: Suporte Tecnico e Financeiro aos municípios através de indução de projetos e serviços de restauração e preservação de áreas prioritárias através de programas de Pagamento de Serviços Ambientais – PSA financiados pelo FEHIDRO ou por Entidades da Sociedade civil através da criação de parcerias. | F13: Restauração e Preservação de áreas em propriedades rurais e microbacias via implantação de Projetos de Pagamento de Serviços Ambientais- PSA | G13: 1 | H13: Sociedade civil | I13: UGRHi | J13: UGRHI-1 | K13: Projeto foi indicado pelo CBH-SM em Maio de 2022 e teve atraso de 16 meses no processo para assinatura do contrato FEHIDRO desde a indicão do projeto pelo CBH-SM, devido a transição da equipe de Agentes Técnicos e alterações no MPO. Contrato FEHIDRO 030/2023 e início do projeto em Fevereiro 2024.
A14: SM-10-2022 | B14: 2022 | C14: 4.3 Proteção de mananciais | D14: Prioritário | E14: Induzir e apoiar/orientar os municípios a apresentarem projetos e/ou obras de desassoreamento e recuperação dos mananciais de abastecimento visando aumento da reservação | F14: Aumento da disponibilidade hídrica nos mananciais de abastecimento público | G14: 0 | H14: Município | I14: Sub-bacia | J14: Rio Sapucaí Guaçu | K14: Município de Campos do Jordão não apresentou proposta.A Ação deverá ser replanejada na revisão do PAPI 2024/2027. O município necessita atualização do Plano de Macrodrenagem
A15: SM-05-2023 | B15: 2023 | C15: 7.1 - Ações estruturais de micro ou macro drenagem para mitigação de inundações e alagamentos | D15: Prioritário | E15: Induzir e apoiar/orientar os municípios a apresentar projetos e/ou obras de melhorias de drenagem pluvial urbana a serem indicados para financiamento FEHIDRO. | F15: Aprimoramento do sistema de drenagem urbana dos municípios | G15: 0 | H15: Município | I15: Município | J15: 3 municípios | K15: Municípios não apresentaram proposta . A ação deverá ser replanejada na revisão do PAPI 2024-2027.
A16: SM-06-2023 | B16: 2023 | C16: 7.1 - Ações estruturais de micro ou macro drenagem para mitigação de inundações e alagamentos | D16: Prioritário | E16: Induzir projeto de elaboração e/ou atualização do Plano de macrodrenagem dos 3 municípios, com foco em soluções de drenagem em áreas de inundação identificadas e recorrentes. | F16: Entregar um Plano de Drenagem atualizado para os 3 municípios | G16: 0 | H16: Município | I16: Município | J16: UGRHI-1 | K16: A implementação deste tipo de projeto dependerá de maior apoio e recursos tecnicos aos municípios devido a falta de recursos dos mesmos para apresentação de propostas e projetos pois é crítica a necessidade de implementação da atualização do Plano de Macrodrenagem de todos os municípios da UGRHI-1 Esta Ação deverá ser incluída na revisão do PAPI 2024/2027
A17: SM-11-2022 | B17: 2022 | C17: 8.1 - Capacitação técnica em planejamento e gestão de recursos hídricos | D17: Prioritário | E17: Desenvolver programa de capacitacao e certificação em conformidade com diretrizes do CRH para Gestão de Recursos Hídricos a ser aplicado aos membros do CBH-SM | F17: Capacitar e certificar os membros do CBH-SM em durante o ano de 2022 | G17: 1 | H17: Sociedade Civil | I17: UGRHi | J17: Membros do CBH-SM | K17: O Plano de Capacitação foi entregue Deliberação CBH-SM 07/2022. A revisão do Plano de Capacitação será realizada no primeiro trimestre de 2024 - para o período 2024/2026 a Capacitação dos membros do CBH-SM ( plenária e CTs) deve ser continua.
A18: SM-12-2022 | B18: 2022 | C18: 8.2 - Educação ambiental vinculada às ações dos planos de bacias hidrográficas | D18: Prioritário | E18: Induzir projeto para elaboração do Plano de Educação Ambiental da UGRHI-1 em conformidade com o plano de Bacias e com as diretrizes do CRH – Deliberação 231 / 2019. | F18: Plano de Educação Ambiental da UGRHI-1 | G18: 1 | H18: Sociedade Civil | I18: UGRHi | J18: UGRHI-1 | K18: O Projeto foi indicado pelo CBH-SM em 2022 - Deliberação CBH-SM 03/2022 e teve atraso de 18 meses na assinatura do contrato devido as alterações realizadas pelo CRH referente a contratação / substituição do grupo de Agentes Técnicos. Contrato FEHIDRO 032/2023 e início em Março de 2024.
A19: SM-13-2022 | B19: 2022 | C19: 8.2 - Educação ambiental vinculada às ações dos planos de bacias hidrográficas | D19: Prioritário | E19: Induzir projetos de Educação Ambiental a serem financiados pelo FEHIDRO segundo as diretrizes e roteiros/MPO do CRH – Deliberação 231/2019 | F19: Desenvolver Programas e Projetos de Educação Ambiental que atendam os municípios da UGRHI-1. | G19: 0 | H19: Sociedade civil | I19: UGRHi | J19: UGRHI-1 | K19: A Câmara Técnica CT-TEAM decidiu não desenvolver esta ação em 2022 e 2023 devido a falta de Recursos financeiros e será incluída na revisão do PAPI 2024/2027
A20: SM-07-2023 | B20: 2023 | C20: 8.3 - Comunicação social e difusão de informações relacionadas à gestão de recursos hídricos | D20: Prioritário | E20: Induzir e apoiar projetos para construir e manter canais de comunicação com a população dos municípios visando a divulgação das ações do CBH-SM e a conscientização sobre a preservação dos recursos hídricos | F20: Implantar programa continuo de Comunicação Social através de canais e mídias digitais de comunicação alem de eventos sociais específicos nos municípios da UGRHI-1 | G20: 0 | H20: Sociedade civil | I20: UGRHi | J20: UGRHI-1 | K20: O projeto foi indicado pelo CBH-SM em 2022 - Deliberação 03/2022 e teve atraso de 12 meses na avaliação do agente técnico devido as alterações realizadas pelo CRH referente a contratação / substituição do grupo de Agentes Técnicos. Tomador desistiu do projeto por não ter equipe disponível devido ao atraso da análise do agente técnico. O projeto será incluído na revisão do PAPI 2024-2027

Sheet Operacional
B1: SubPDC - Delib.CRH N° 190 /2016 | C1: SubPDC - Delib.CRH N° 246/2021 | E1: Area | F1: Executor | G1: Fonte | I1: Tipo de Ação | K1: Prioridade | M1: Fonte
B2: 1.1 - SI | C2: Não se aplica | E2: APRM | F2: Estado | G2: CFURH | I2: Obra | K2: Não prioritário | M2: FEHIDRO - Cobrança estadual
B3: 1.2 - Planejamento | C3: 1.1 - Legislação | E3: Aquífero | F3: Município | G3: Cobrança Estadual | I3: Serviços | K3: PDC 1 e 2 | M3: FEHIDRO - CFURH
B4: 1.3 - Enquadramento | C4: 1.2 - Planejamento | E4: Área rural | F4: Sociedade Civil | G4: Outras | I4: Projeto Básico/Executivo | K4: Prioritário | M4: Cobrança Federal
B5: 1.4 - Monitoramento | C5: 2.1 - Plano | E5: Área urbana | F5: Município e Sociedade Civil | G5: Cobrança Federal | I5: Estudo/Diagnóstico | M5: Tesouro do Estado
B6: 1.5 - Disponibilidade | C6: 2.2 - Outorga | E6: Bacia | F6: Estado e Município | I6: Capacitação | M6: Fundo especial de despesa
B7: 1.6 - Legislação | C7: 2.3 - Cobrança | E7: Corpo hídrico | F7: Estado e Sociedade Civil | M7: Recursos da administração indireta
B8: 1.7 - Poluição | C8: 2.4 - Enquadramento | E8: Município | F8: Estado, Município e Sociedade Civil | M8: Recursos vinculados federais
B9: 2.1 - Planos | C9: 2.5 - Redes de monitoramento e SI | E9: Região Hidrográfica | F9: Iniciativa privada | M9: Operações de crédito
B10: 2.2 - Outorga | C10: 2.6 - Integração | E10: Sub-bacia | M10: Recursos privados da sociedade civil
B11: 2.3 - Cobrança | C11: 2.7 - CORHI | E11: UGRHi | M11: Recursos de instrumentos de fomento
B12: 2.4 - Efetivação | C12: 3.1 - Efluentes | E12: Outra | M12: Outras fontes
B13: 2.5 - Integração | C13: 3.2 - Poluição
B14: 2.6 - CORHI | C14: 3.3 - Resíduos
B15: 3.1 - Efluentes | C15: 3.4 - Intervenções
B16: 3.2 - Resíduos | C16: 4.1 - Controle erosão | G16: PRIORIDADE
B17: 3.3 - Drenagem | C17: 4.2 - Soluções baseadas Natureza | G17: PDC 1 e 2
B18: 3.4 - Erosão | C18: 4.3 - Mananciais | G18: Prioritário
B19: 3.5 - Intervenções | C19: 5.1 - Perdas | G19: Não prioritário
B20: 4.1 - Mananciais | C20: 5.2 - Racionalização
B21: 4.2 - Vegetação | C21: 5.3 - Reuso | E21: Area
B22: 5.1 - Perdas | C22: 6.1 - Captação | E22: APRM
B23: 5.2 - Racionalização | C23: 6.2 - Regularização | E23: Aquífero
B24: 5.3 - Reuso | C24: 7.1 - Drenagem | E24: Área rural (via de circulação; rodovia; distrito; etc.)
B25: 6.1 - Usos | C25: 7.2 - Escassez | E25: Área urbana (bairro; via de circulação; distrito; praça; parque; etc.)
B26: 6.2 - Segurança | C26: 8.1 - Capacitação | E26: Bacia
B27: 6.3 - Aproveitamento | C27: 8.2 - Educação | E27: Corpo hídrico
B28: 7.1 - Criticidades | C28: 8.3 - Comunicação | E28: Município
B29: 7.2 - Inundações | E29: Região Hidrográfica
B30: 7.3 - Estiagens | E30: Sub-bacia
B31: 8.1 - Capacitação | E31: UGRHi
B32: 8.2 - Educação
B33: 8.3 - Comunicação
B36: Delib. CRH N° 246/2021 | BL36: Delib. CRH N° 190/2016, revogada a partir de 31/12/21
A37: Não se aplica | B37: 1.1 - Legislação | C37: 1.2 - Planejamento | D37: 2.1 - Plano | E37: 2.2 - Outorga | F37: 2.3 - Cobrança | G37: 2.4 - Enquadramento | H37: 2.5 - Redes de monitoramento e SI | I37: 2.6 - Integração | J37: 2.7 - CORHI | K37: 3.1 - Efluentes | L37: 3.2 - Poluição | M37: 3.3 - Resíduos | N37: 3.4 - Intervenções | O37: 4.1 - Controle erosão | P37: 4.2 - Soluções baseadas Natureza | Q37: 4.3 - Mananciais | R37: 5.1 - Perdas | S37: 5.2 - Racionalização | T37: 5.3 - Reuso | U37: 6.1 - Captação | V37: 6.2 - Regularização | W37: 7.1 - Drenagem | X37: 7.2 - Escassez | Y37: 8.1 - Capacitação | Z37: 8.2 - Educação | AA37: 8.3 - Comunicação | BH37: 2020 | BI37: 2021 | BL37: 1.1 - SI | BM37: 1.2 - Planejamento | BN37: 1.3 - Enquadramento | BO37: 1.4 - Monitoramento | BP37: 1.5 - Disponibilidade | BQ37: 1.6 - Legislação | BR37: 1.7 - Poluição | BS37: 2.1 - Planos | BT37: 2.2 - Outorga | BU37: 2.3 - Cobrança | BV37: 2.4 - Efetivação | BW37: 2.5 - Integração | BX37: 2.6 - CORHI | BY37: 3.1 - Efluentes | BZ37: 3.2 - Resíduos | CA37: 3.3 - Drenagem | CB37: 3.4 - Erosão | CC37: 3.5 - Intervenções | CD37: 4.1 - Mananciais | CE37: 4.2 - Vegetação | CF37: 5.1 - Perdas | CG37: 5.2 - Racionalização | CH37: 5.3 - Reuso | CI37: 6.1 - Usos | CJ37: 6.2 - Segurança | CK37: 6.3 - Aproveitamento | CL37: 7.1 - Criticidades | CM37: 7.2 - Inundações | CN37: 7.3 - Estiagens | CO37: 8.1 - Capacitação | CP37: 8.2 - Educação | CQ37: 8.3 - Comunicação
A38: Não se aplica | B38: PDC 1 e 2 | C38: PDC 1 e 2 | D38: PDC 1 e 2 | E38: PDC 1 e 2 | F38: PDC 1 e 2 | G38: PDC 1 e 2 | H38: PDC 1 e 2 | I38: PDC 1 e 2 | J38: PDC 1 e 2 | K38: Prioritário | L38: Prioritário | M38: Prioritário | N38: Prioritário | O38: Prioritário | P38: Prioritário | Q38: Prioritário | R38: Prioritário | S38: Prioritário | T38: Prioritário | U38: Prioritário | V38: Prioritário | W38: Prioritário | X38: Prioritário | Y38: Prioritário | Z38: Prioritário | AA38: Prioritário | BH38: 1.1 | BI38: 1.1 | BL38: PDC 1 e 2 | BM38: PDC 1 e 2 | BN38: PDC 1 e 2 | BO38: PDC 1 e 2 | BP38: PDC 1 e 2 | BQ38: PDC 1 e 2 | BR38: PDC 1 e 2 | BS38: PDC 1 e 2 | BT38: PDC 1 e 2 | BU38: PDC 1 e 2 | BV38: PDC 1 e 2 | BW38: PDC 1 e 2 | BX38: PDC 1 e 2 | BY38: Prioritário | BZ38: Prioritário | CA38: Prioritário | CB38: Prioritário | CC38: Prioritário | CD38: Prioritário | CE38: Prioritário | CF38: Prioritário | CG38: Prioritário | CH38: Prioritário | CI38: Prioritário | CJ38: Prioritário | CK38: Prioritário | CL38: Prioritário | CM38: Prioritário | CN38: Prioritário | CO38: Prioritário | CP38: Prioritário | CQ38: Prioritário
K39: Não prioritário | L39: Não prioritário | M39: Não prioritário | N39: Não prioritário | O39: Não prioritário | P39: Não prioritário | Q39: Não prioritário | R39: Não prioritário | S39: Não prioritário | T39: Não prioritário | U39: Não prioritário | V39: Não prioritário | W39: Não prioritário | X39: Não prioritário | Y39: Não prioritário | Z39: Não prioritário | AA39: Não prioritário | BH39: 1.2 | BI39: 1.2 | BY39: Não prioritário | BZ39: Não prioritário | CA39: Não prioritário | CB39: Não prioritário | CC39: Não prioritário | CD39: Não prioritário | CE39: Não prioritário | CF39: Não prioritário | CG39: Não prioritário | CH39: Não prioritário | CI39: Não prioritário | CJ39: Não prioritário | CK39: Não prioritário | CL39: Não prioritário | CM39: Não prioritário | CN39: Não prioritário | CO39: Não prioritário | CP39: Não prioritário | CQ39: Não prioritário
BH40: 1.3 | BI40: 1.3
BH41: 1.4 | BI41: 1.4
BH42: 1.5 | BI42: 1.5
BH43: 1.6 | BI43: 1.6
BH44: 1.7 | BI44: 1.7
A45: Sim | B45: Não | BH45: 2.1 | BI45: 2.1
A46: Sim | B46: Sim | BH46: 2.2 | BI46: 2.2
B47: Não | BH47: 2.3 | BI47: 2.3
BH48: 2.4 | BI48: 2.4
BH49: 2.5 | BI49: 2.5
BH50: 2.6 | BI50: 2.6
A51: Não se aplica | B51: Não se aplica | BH51: 3.1 | BI51: 3.1
A52: 1.1 - Legislação | B52: PDC 1 e 2 | BH52: 3.2 | BI52: 3.2
A53: 1.2 - Planejamento | BH53: 3.3 | BI53: 3.3
A54: 2.1 - Plano | BH54: 3.4 | BI54: 3.4
A55: 2.2 - Outorga | BH55: 3.5 | BI55: 3.5
A56: 2.3 - Cobrança | BH56: 4.1 | BI56: 4.1
A57: 2.4 - Enquadramento | BH57: 4.2 | BI57: 4.2
A58: 2.6 - Integração | BH58: 5.1 | BI58: 5.1
A59: 2.7 - CORHI | BH59: 5.2 | BI59: 5.2
A60: 3.1 - Efluentes | BH60: 5.3 | BI60: 5.3
A61: 3.2 - Poluição | BH61: 6.1 | BI61: 6.1
A62: 3.3 - Resíduos | BH62: 6.2 | BI62: 6.2
A63: 3.4 - Intervenções | BH63: 6.3 | BI63: 6.3
A64: 4.1 - Erosão | BH64: 7.1 | BI64: 7.1
A65: 4.2 - Conservação | BH65: 7.2 | BI65: 7.2
A66: 4.3 - Mananciais | BH66: 7.3 | BI66: 7.3
A67: 5.1 - Perdas | BH67: 8.1 | BI67: 8.1
A68: 5.2 - Racionalização | BH68: 8.2 | BI68: 8.2
A69: 5.3 - Reuso | BH69: 8.3 | BI69: 8.3
A70: 6.1 - Captação
A71: 6.2 - Regularização
A72: 7.1 - Drenagem
A73: 7.2 - Escassez
A74: 8.1 - Capacitação
A75: 8.2 - Educação
A76: 8.3 - Comunicação

Sheet Explicativo (hidden)
A1: Explicativo | B1: Função
A2: sheet PAPI_20_21
A3: Coluna A | B3: PDCs da Delib. CRH 190/2016 = lista suspensa (Operacional)
A4: Coluna B | B4: subPDCs da Delib. CRH 190/2016 = lista suspensa (Operacional)
A5: Coluna E | B5: formatação condicional para % = % tem que coincidir com o informado pelo CBH na Coluna O (Execução)
A6: Coluna F | B6: categorias de Executores de Empreendimentos Fehidro = lista suspensa (Operacional)
A7: Coluna G | B7: Área de abrangencia = delimitações possível em mapeamento = lista suspensa (Operacional)
A8: Coluna H | B8: Nome da área de abrangencia conforme consta no Empreendimento Fehidro ou TR ou similar (preenchimento livre)
A9: Coluna I | B9: R$ total que consta no PAPI vigente aprovado pelo CBH no RS
A10: Coluna J | B10: R$ total disponibilizado para investimento conforme Deliberação do COFEHIDRO
A11: Coluna K | B11: R$ total efetivamente pago/repassado neste exercício (Coluna L) ao Executor da Ação = tem que coincidir com informações do SINFehidro Quando R$ de K é maior que R$ de I, valor é destacado em vermelho = CBH tem que explicar a extrapolação dos recursos
A12: Coluna L | B12: ano/exercício ao qual se referem os dados informados
A13: Coluna M | B13: categorias de Fontes de recursos para os Executores da Ação = lista suspensa (Operacional)
A14: Coluna N | B14: Nome da Fonte de recursos conforme consta no Empreendimento Fehidro ou TR ou similar = tem que coincidir com informações do SinFEHIDRO
A15: Coluna O | B15: Informações relevantes sobre a execução Física e Financeira da Ação = tem que coincidir com a execução do Empreendimento e informações do SinFEHIDRO
A17: sheet PAPI_22_23
A18: Coluna A | B18: PDCs da Delib. CRH 246/2021 = lista suspensa (Operacional)
A19: Coluna B | B19: subPDCs da Delib. CRH 246/2021 = lista suspensa (Operacional)
A20: Coluna E | B20: formatação condicional para % = % tem que coincidir com o informado pelo CBH na Coluna O (Execução)
A21: Coluna F | B21: categorias de Executores de Empreendimentos Fehidro = lista suspensa (Operacional)
A22: Coluna G | B22: Área de abrangencia = delimitações possível em mapeamento = lista suspensa (Operacional)
A23: Coluna H | B23: Nome da área de abrangencia conforme consta no Empreendimento Fehidro ou TR ou similar (preenchimento livre)
A24: Coluna I | B24: R$ total que consta no PAPI vigente aprovado pelo CBH no RS
A25: Coluna J | B25: R$ total disponibilizado para investimento conforme Deliberação do COFEHIDRO
A26: Coluna K | B26: R$ total efetivamente pago/repassado neste exercício (Coluna L) ao Executor da Ação = tem que coincidir com informações do SINFehidro Quando R$ de K é maior que R$ de I, valor é destacado em vermelho = CBH tem que explicar a extrapolação dos recursos
A27: Coluna L | B27: ano/exercício ao qual se referem os dados informados
A28: Coluna M | B28: categorias de Fontes de recursos para os Executores da Ação = lista suspensa (Operacional)
A29: Coluna N | B29: Nome da Fonte de recursos conforme consta no Empreendimento Fehidro ou TR ou similar = tem que coincidir com informações do SinFEHIDRO
A30: Coluna O | B30: Informações relevantes sobre a execução Física e Financeira da Ação = tem que coincidir com a execução do Empreendimento e informações do SinFEHIDRO
A32: sheet Consolidação | B32: DEVE SER BLOQUEADA PARA ALTERAÇÕES
A34: Coluna A | B34: PDCs da Delib. CRH 190/2016 = lista suspensa (Operacional)
A35: Colunas B C D | B35: Cálculos com os valores de Recurso financeiro Executado 2020 (sheet PAPI_20_21; Coluna K) para cada fonte FEHIDRO e para outras (soma da demais fontes)
A36: Colunas E F G | B36: Cálculos com os valores de Recurso financeiro Executado 2021 (sheet PAPI_20_21; Coluna K) para cada fonte FEHIDRO e para outras (soma da demais fontes)
A37: Coluna H | B37: PDCs da Delib. CRH 246/2021 = lista suspensa (Operacional)
A38: Colunas H I J | B38: Cálculos com os valores de Recurso financeiro Executado 2022 (sheet PAPI_22_23; Coluna K) para cada fonte FEHIDRO e para outras (soma da demais fontes)
A39: Colunas K L M | B39: Cálculos com os valores de Recurso financeiro Executado 2023 (sheet PAPI_22_23; Coluna K) para cada fonte FEHIDRO e para outras (soma da demais fontes)

Sheet de-para 246 190 (hidden)
A1: 246 | B1: 190 | C1: Coluna1 | E1: 246 | F1: 190 | G1: Coluna1 | H1: Coluna12 | J1: 190 | K1: 246 | M1: 190 | N1: 246
A2: 1.1 | B2: 1.6 | E2: 1.1 | F2: 1.6 | J2: 1.1 | K2: 2.5 | M2: 1.1 | N2: 2.5
A3: 1.2 | B3: 1.2 | E3: 1.2 | F3: 1.2 | G3: 1.5 | H3: 1.7 | J3: 1.2 | K3: 1.2 | M3: 1.2 | N3: 1.2
A4: 2.1 | B4: 2.1 | E4: 2.1 | F4: 2.1 | J4: 1.3 | K4: 2.4 | M4: 1.3 | N4: 2.4
A5: 2.2 | B5: 2.2 | E5: 2.2 | F5: 2.2 | J5: 1.4 | K5: 2.5 | M5: 1.4 | N5: 2.5
A6: 2.3 | B6: 2.3 | E6: 2.3 | F6: 2.3 | J6: 1.5 | K6: 6.1 | M6: 1.5 | N6: 1.2
A7: 2.4 | B7: 1.3 | E7: 2.4 | F7: 1.3 | G7: 2.4 | J7: 1.6 | K7: 1.1 | M7: 1.6 | N7: 1.1
A8: 2.4 | B8: 2.4 | E8: 2.5 | F8: 1.1 | G8: 1.4 | H8: 7.1 | J8: 1.7 | K8: 3.2 | M8: 1.7 | N8: 1.2
A9: 2.5 | B9: 1.1 | C9: 1.4 | E9: 2.6 | F9: 2.5 | J9: 2.1 | K9: 2.1 | M9: 2.1 | N9: 2.1
A10: 2.6 | B10: 2.5 | E10: 2.7 | F10: 2.6 | J10: 2.2 | K10: 2.2 | M10: 2.2 | N10: 2.2
A11: 2.7 | B11: 2.6 | E11: 3.1 | F11: 3.1 | J11: 2.3 | K11: 2.3 | M11: 2.3 | N11: 2.3
A12: 3.1 | B12: 3.1 | E12: 3.2 | J12: 2.4 | K12: 2.4 | M12: 2.4 | N12: 2.4
A13: 3.2 | B13: 1.7 | E13: 3.3 | F13: 3.2 | J13: 2.5 | K13: 2.6 | M13: 2.5 | N13: 2.6
A14: 3.3 | B14: 3.2 | E14: 3.4 | F14: 3.5 | J14: 2.6 | K14: 2.7 | M14: 2.6 | N14: 2.7
A15: 3.4 | B15: 3.5 | E15: 4.1 | F15: 3.4 | J15: 3.1 | K15: 3.1 | M15: 3.1 | N15: 3.1
A16: 4.1 | B16: 3.4 | E16: 4.2 | F16: 4.2 | J16: 3.2 | K16: 3.3 | M16: 3.2 | N16: 3.3
A17: 4.2 | B17: 4.2 | E17: 4.3 | F17: 4.1 | J17: 3.3 | K17: 7.1 | M17: 3.4 | N17: 4.1
A18: 4.3 | B18: 4.1 | E18: 5.1 | F18: 5.1 | J18: 3.4 | K18: 4.1 | M18: 3.5 | N18: 3.4
A19: 5.1 | B19: 5.1 | E19: 5.2 | F19: 5.2 | J19: 3.5 | K19: 3.4 | M19: 4.1 | N19: 4.3
A20: 5.2 | B20: 5.2 | E20: 5.3 | F20: 5.3 | J20: 4.1 | K20: 4.3 | M20: 4.2 | N20: 4.2
A21: 5.3 | B21: 5.3 | E21: 6.1 | J21: 4.2 | K21: 4.2 | M21: 5.1 | N21: 5.1
A22: 6.1 | B22: 1.5 | C22: 6.2 | E22: 6.2 | F22: 6.2 | J22: 5.1 | K22: 5.1 | M22: 5.2 | N22: 5.2
A23: 6.2 | B23: 6.1 | C23: 6.3 | E23: 7.1 | F23: 7.2 | J23: 5.2 | K23: 5.2 | M23: 5.3 | N23: 5.3
A24: 7.1 | B24: 3.3 | C24: 7.2 | E24: 7.2 | F24: 7.3 | J24: 5.3 | K24: 5.3 | M24: 6.2 | N24: 6.2
A25: 7.2 | B25: 7.1 | C25: 7.3 | E25: 8.1 | F25: 8.1 | J25: 6.1 | K25: 6.2 | M25: 7.1 | N25: 2.5
A26: 8.1 | B26: 8.1 | E26: 8.2 | F26: 8.2 | J26: 6.2 | K26: 6.1 | M26: 7.2 | N26: 7.1
A27: 8.2 | B27: 8.2 | E27: 8.3 | F27: 8.3 | J27: 6.3 | K27: 6.2 | M27: 7.3 | N27: 7.2
A28: 8.3 | B28: 8.3 | J28: 7.1 | K28: 7.2 | M28: 8.1 | N28: 8.1
J29: 7.2 | K29: 7.1 | M29: 8.2 | N29: 8.2
J30: 7.3 | K30: 7.2 | M30: 8.3 | N30: 8.3
J31: 8.1 | K31: 8.1
J32: 8.2 | K32: 8.2
J33: 8.3 | K33: 8.3
